Workbook

Sheet Utilitaire (hidden)
B3: Mot de passe: | C3: !1320PACC | D3: Fiche verrouillée: | E3: Oui - diffusion en ligne
B4: Fiche validée: | C4: Oui | D4: Fiche générée
B5: GES attendu: | D5: Est-ce que le pop-up "validation" s'affiche: | E5: Générée
B6: Feuille accueil complètement remplie: | C6: Oui | D6: Exercice de suivi: | E6: 2022-03-31 | F6: Date de l'exercice: | G6: 2022-03-31
B7: Statut action: | C7: =Accueil!D58 -> en cours | F7: Année Courante | G7: 2022-2023
B8: Feuille Utilitaire visible: | C8: Non | D8: Titre des Onglets: | E8: Plan d'action 2013-2020 sur les changements climatiques
B9: Dernière ligne de la zone de défilement de l'onglet détail des projets: | C9: 679
B10: nombre d'indicateurs approuvés: | C10: 6
B11: Secteur: | C11: Plan d'action 2013-2020 sur les changements climatiques
B12: Numéro de séquence de l'action: | C12: 20.01 | D12: Remplir la section Évaluation requis : | E12: =IF(Utilitaire!C7=I21,"Oui",IF(C7=I23,"Oui","Non")) -> Non | F12: Première ligne masquée dans l'onglet Indicateurs : | G12: 164
B13: Première ligne masquée dans l'onglet Description: | C13: 86 | D13: Affiche onglet Évaluation: | E13: Oui | F13: Première ligne masquée dans l'onglet Évaluation: | G13: 51
B15: Listes Déroulantes
B16: Onglet "Détail des projets" | G16: Onglet "Indicateurs" | H16: DRFM COF | I16: Accueil
B17: Région Administrative | C17: Statut | D17: Classification | E17: Type d'émissions | F17: Info GES | G17: Type d'indicateur | H17: Exercice de suivi | I17: Statut de l'action | J17: Programmes | K17: Fiche verrouillée
B18: 99-toutes les régions | C18: COVID-19 - Reporté ou prolongé | D18: SU-Subvention | E18: QC-Québec | F18: Oui | G18: Minimum à atteindre | H18: 2013-2014-1 | I18: non démarrée | J18: Sans objet | K18: Oui - partenaire
B19: 01-Bas-Saint-Laurent | C19: COVID-19 - Suspendu | D19: CF-Contrat fonctionnement | E19: HQ-Hors-Québec | F19: Non | G19: Maximum à ne pas dépasser | H19: 2013-2014-2 | I19: en élaboration | J19: Programme "Faites de l'air!" | K19: Oui - diffusion en ligne
B20: 02-Saguenay- Lac-Saint-Jean | C20: COVID-19 - Annulé | D20: CI-Contrat immobilisation | E20: ND-Non distingué | G20: Binaire | H20: 2014-2015-1 | I20: en cours | J20: Programme Action-Climat Québec | K20: Non - BGFV
B21: 03-Capitale-Nationale | C21: AC-Actif | D21: CP-Contrat service professionnel | H21: 2014-2015-2 | I21: terminée | J21: Programme Chauffez vert
B22: 04-Mauricie | C22: TE-Terminé | D22: CT-Contrat service technique | H22: 2015-2016-1 | I22: en suspens | J22: Programme Climat municipalités - Phase 2
B23: 05-Estrie | C23: AT-En attente | D23: PI-Projet à l'interne | H23: 2015-2016-2 | I23: Retirée du PACC | J23: Programme d’aide gouvernementale à l’amélioration des services de transport en commun (PAGASTC )
B24: 06-Montréal | C24: SU-Suspendu | D24: AU-Autre | G24: Étape | H24: 2016-2017-1 | J24: Programme d’aide gouvernementale au transport collectif des personnes (PAGTCP)
B25: 07-Outaouais | C25: AN-Annulé | G25: Recherche | H25: 2016-2017-2 | J25: Programme d’aide gouvernementale transitoire en matière de transport routier des personnes | K25: Commentaires
B26: 08-Abitibi-Témiscamingue | C26: AB-Abandonné | G26: Étude de cas et caractérisation des impacts des CC | H26: 2017-2018-1 | J26: Programme d'aide à la réduction des émissions de gaz à effet de serre dans le transport routier des marchandises - ÉcoCamionnage | K26: Accueil
B27: 09-Côte-Nord | C27: Projet en lien avec le transport | D27: Horizon temporel Potentiel GES | F27: Catégories | G27: Surveillance et prévention | H27: 2017-2018-2 | J27: Programme d'aide à la réhabilitation des terrains contaminés - ClimatSol-Plus - Volet 1 | K27: Description
B28: 10-Nord-du-Québec | C28: Oui | D28: À la fin du projet (suite au dernier versement) | F28: Agricole | G28: Réalisation | H28: 2018-2019-1 | J28: Programme d'aide à l'amélioration de l'efficacité du transport maritime, aérien et ferroviaire en matière de réduction des émissions de GES (PETMAF) | K28: Détail des projets
B29: 11-Gaspésie-Iles-de-la-Madeleine | C29: Non | D29: Cinq ans après la commercialisation du produit | F29: Aménagement du territoire | G29: Aide à la décision | H29: 2018-2019-2 | I29: Part de financement par le PACC | J29: Programme d'aide au développement du transport collectif (PADTC) | K29: GES
B30: 12-Chaudières-Appalaches | D30: Dix ans après la commercialisation du produit | F30: Bâtiment | G30: Sensibilisation et formation | H30: 2019-2020-1 | I30: Variable | J30: Programme d'aide aux nouvelles mobilités des personnes (NOMO) | K30: Indicateurs
B31: 13-Laval | D31: 2030 | F31: Biodiversité, écosystèmes et ressources naturelles | G31: Cadre législatif | H31: 2019-2020-2 | I31: =10 & " %" -> 10 % | J31: Programme d'aide financière au développement des transports actifs dans les périmètres urbains (TAPU) | K31: Validation
B32: 14-Lanaudière | D32: 2040 | F32: Industriel, commercial et institutionnel | H32: 2020-2021-1 | I32: =20 & " %" -> 20 % | J32: Programme d'aide financière pour la planification de milieux de vie durables | K32: Tout - autres
B33: 15-Laurentides | D33: 2050 | F33: Matières résiduelles | H33: 2020-2021-2 | I33: =30 & " %" -> 30 % | J33: Programme d'aide financière pour le compostage domestique et communautaire (ACDC)
B34: 16-Montérégie | F34: Reddition de comptes et partenariats | H34: 2021-2022-1 | I34: =40 & " %" -> 40 % | J34: Programme d'aide gouvernementale au transport collectif régional (PAGTCR)
B35: 17-Centre-du-Québec | F35: Santé et sécurité publique | G35: Ajustements | H35: 2021-2022-2 | I35: =50 & " %" -> 50 % | J35: Programme d'appui à la lutte contre les changements climatiques en agriculture (PALCCA) | K35: Onglet Évaluation
B36: Québec méridional | F36: Transports | G36: Agriculture | H36: 2022-2023-1 | I36: =60 & " %" -> 60 % | J36: Programme de biomasse forestière résiduelle | K36: Type de document
B37: À l'extérieur du Québec | F37: Autres | G37: Aménagement du territoire | H37: 2022-2023-2 | I37: =70 & " %" -> 70 % | J37: Programme de coopération climatique internationale (PCCI) | K37: Cadre d'évaluation
G38: Bâtiments et infrastructures | H38: 2023-2024-1 | I38: =80 & " %" -> 80 % | J38: Programme de formation continue sur l'utilisation du bois dans la construction | K38: Cadre de suivi d'évaluation préliminaire
G39: Forêts | H39: 2023-2024-2 | I39: =90 & " %" -> 90 % | J39: Programme de récupération et de valorisation des réfrigérateurs et congélateurs domestiques | K39: Rapport d'évaluation
B40: Onglet "Description" | G40: Industriel, commercial et institutionnel | I40: =100 & " %" -> 100 % | J40: Programme de soutien à la promotion de l'électrification des transports | K40: Résultats
B41: Clientèle | C41: État d'avancement | D41: Moyens | E41: Finalité | F41: COVID | G41: Océan, fleuve ou cours d'eau | J41: Programme de soutien à la réalisation de projets de démonstration de taxis électriques
B42: Citoyens | C42: Nouvelle | D42: Encadrement légal (politiques, stratégies, codes, réglementations, etc.) | E42: Adaptation aux effets des changements climatiques | F42: Aucun changement prévu | G42: Politiques et gestion | J42: Programme de soutien à l'intégration de l'adaptation aux changements climatiques à la planification municipale (PIACC) | K42: Type d'évaluation
B43: Entreprises (grandes entreprises) | C43: En cours | D43: Innovation, recherche et développement | E43: Réduction des émissions de gaz à effet de serre | F43: Diminution des coûts prévus | G43: Services à la population | J43: Programme de soutien au déploiement des autobus scolaires électriques au Québec | K43: En cours d'action
B44: Entreprises (petites ou moyennes entreprises) | C44: Complétée | D44: Réalisation (programmes et subventions favorisant l'exécution de solutions établies) | E44: Réduction et adaptation | F44: Augmentation des coûts prévus | G44: Suivi de l'état de l'environnement | J44: Programme de soutien aux essais de fertilisation | K44: Lorsque l'action est terminée
B45: Établissements de recherche | C45: Inactive | D45: Sensibilisation, formation et promotion | E45: Coordination | F45: L'augmentation prévue du coûts des projets rend le budget 2013-2020 insuffisant pour garantir la réalisation de tous les projets entamés | G45: Autres | J45: Programme de soutien aux municipalités dans la mise en place d'infrastructures de gestion durable des eaux de pluie à la source
B46: Ministères et organismes gouvernementaux | C46: Abandonnée | F46: moins d'un mois | J46: Programme de subventions à l’adaptation des taxis et des autocars interurbains pour le transport des personnes se déplaçant en fauteuil roulant
B47: Municipalités et organismes municipaux | F47: de 1 à 6 mois | J47: Programme de traitement des matières organiques par biométhanisation et compostage (PTMOBC) | K47: Recommandation
B48: Organismes à but non lucratif | F48: de 7 à 12 mois | J48: Programme de vitrine technologique pour les bâtiments et les solutions innovantes en bois | K48: Reconduire
F49: plus de 12 mois | J49: Programme d'innovation en construction bois | K49: Ne pas reconduire
F50: Aucun changement | G50: Risques | J50: Programme ÉcoPerformance | K50: Voir commentaire ci-dessous
F51: Retards prévus, mais les engagements seront tous pris avant le 31 décembre 2020 | G51: Biodiversité | J51: Programme Prime-Vert 2013-2018 | K51: Objectifs initiaux
F52: Retards prévus et les engagements ne pourront pas tous être pris avant le 31 décembre 2020 | G52: Économie | J52: Programme Roulez vert | K52: Oui
F53: Les échéanciers pourront être devancés | G53: Environnement | J53: Programme Technoclimat | K53: Partiellement
F54: Des cibles pourraient être atteintes avant les délais prévus | G54: Ressources naturelles | J54: Programme visant à rendre les établissements d'enseignement écoresponsables | K54: Non
F55: Toutes les cibles devraient être atteintes dans les délais prévus | G55: Santé et sécurité publique | J55: Programme visant la réduction des émissions de GES par le développement du transport intermodal (PREGTI)
F56: Toutes les cibles devraient être atteintes avec certains retards | G56: Services à la population | J56: Programme visant la réduction, la récupération et le recyclage des matières organiques du secteur des industries, commerces et institutions (ICI)
F58: Aucune cible ne pourra être atteinte | J58: Autre programme
G61: Effets des changements climatiques
G62: Dégradation d'écosystèmes
G63: Dégradation du pergélisol
G64: Intensification de l'érosion
G65: Exacerbation des aléas naturels
G66: Intensification des îlots de chaleur
G67: Modifications des régimes hydriques, de vagues ou de glaces
G68: Modifications des régimes de précipitations
G69: Propagation de maladies ou d'espèces nuisibles
G70: Qualité de l'air
G71: Tous les effets
G72: Autres
K82: Onglet de la fiche
K83: Accueil
K84: Administration
K85: Description
K86: Détail des projets
K87: GES
K88: Adaptation
K89: Indicateurs
K90: Commentaires
B227: ONGLET INDICATEURS: Liste des statuts de l'action
C228: 2013-2014 | D228: 2014-2015 | E228: 2015-2016 | F228: 2016-2017 | G228: 2017-2018 | H228: 2018-2019 | I228: 2019-2020 | J228: 2020-2021 | K228: 2021-2022 | L228: 2022-2023 | M228: 2023-2024 | N228: 2024-2025 | O228: 2025-2026 | P228: 2026-2027 | Q228: 2027-2028 | R228: 2026-2029
B229: Valeurs actuelles | C229: =IF(C228=$G$7,IF(Accueil!$D$58<>$C$239,Accueil!$D$58,IF(ISBLANK(C230),B230,C230)),C230) -> non démarrée | D229: =IF(D228=$G$7,IF(Accueil!$D$58<>$C$239,Accueil!$D$58,IF(ISBLANK(D230),C230,D230)),D230) -> non démarrée | E229: =IF(E228=$G$7,IF(Accueil!$D$58<>$C$239,Accueil!$D$58,IF(ISBLANK(E230),D230,E230)),E230) -> non démarrée | F229: =IF(F228=$G$7,IF(Accueil!$D$58<>$C$239,Accueil!$D$58,IF(ISBLANK(F230),E230,F230)),F230) -> non démarrée | G229: =IF(G228=$G$7,IF(Accueil!$D$58<>$C$239,Accueil!$D$58,IF(ISBLANK(G230),F230,G230)),G230) -> non démarrée | H229: =IF(H228=$G$7,IF(Accueil!$D$58<>$C$239,Accueil!$D$58,IF(ISBLANK(H230),G230,H230)),H230) -> non démarrée | I229: =IF(I228=$G$7,IF(Accueil!$D$58<>$C$239,Accueil!$D$58,IF(ISBLANK(I230),H230,I230)),I230) -> non démarrée | J229: =IF(J228=$G$7,IF(Accueil!$D$58<>$C$239,Accueil!$D$58,IF(ISBLANK(J230),I230,J230)),J230) -> non démarrée | K229: =IF(K228=$G$7,IF(Accueil!$D$58<>$C$239,Accueil!$D$58,IF(ISBLANK(K230),J230,K230)),K230) -> non démarrée | L229: =IF(L228=$G$7,IF(Accueil!$D$58<>$C$239,Accueil!$D$58,IF(ISBLANK(L230),K230,L230)),L230) -> en cours | M229: =IF(M228=$G$7,IF(Accueil!$D$58<>$C$239,Accueil!$D$58,IF(ISBLANK(M230),L230,M230)),M230) -> 0 | N229: =IF(N228=$G$7,IF(Accueil!$D$58<>$C$239,Accueil!$D$58,IF(ISBLANK(N230),M230,N230)),N230) -> 0 | O229: =IF(O228=$G$7,IF(Accueil!$D$58<>$C$239,Accueil!$D$58,IF(ISBLANK(O230),N230,O230)),O230) -> 0 | P229: =IF(P228=$G$7,IF(Accueil!$D$58<>$C$239,Accueil!$D$58,IF(ISBLANK(P230),O230,P230)),P230) -> 0 | Q229: =IF(Q228=$G$7,IF(Accueil!$D$58<>$C$239,Accueil!$D$58,IF(ISBLANK(Q230),P230,Q230)),Q230) -> 0 | R229: =IF(R228=$G$7,IF(Accueil!$D$58<>$C$239,Accueil!$D$58,IF(ISBLANK(R230),Q230,R230)),R230) -> 0
B230: Valeurs précédentes | C230: non démarrée | D230: non démarrée | E230: non démarrée | F230: non démarrée | G230: non démarrée | H230: non démarrée | I230: non démarrée | J230: non démarrée | K230: non démarrée
B233: IdStatutAction | C233: codeStatutAction | D233: valeurStatutAction | E233: rangStatut
B234: 1 | C234: =I18 -> non démarrée | D234: 0 | E234: 1
B235: 2 | C235: =I19 -> en élaboration | D235: 0 | E235: 2
B236: 3 | C236: en cours | D236: 0.5 | E236: 3
B237: 4 | C237: terminée | D237: 1 | E237: 4
B238: 5 | C238: en suspens | D238: 0 | E238: 5
B239: 6 | C239: Retirée du PACC | D239: 0 | E239: 6

Sheet Accueil
E2: EXERCICE DE SUIVI DU PLAN D'ACTION 2013-2020 SUR LES CHANGEMENTS CLIMATIQUES
B10: Bienvenue dans votre fiche de suivi du FECC - Gestion des matières résiduelles
B14: Échéance de transmission : | D14: 2022-06-14
B15: Nouveautés pour l’exercice de suivi de mai 2020
B16: RAPPEL :
B17: * Fin du PACC : Les conventions de subventions se rapportant aux engagements saisis à SAGIR sont maintenant signées.
B18: * Fin du PACC : Les projets réalisés à l'interne dans vos organisations doivent se terminer avant le 31 décembre 2022
B19: * Fin du PACC : Vous devez compléter l'onglet Évaluation.
B20: Consignes générales :
B21: →Les informations doivent correspondre à l'avancement de l'action en date du 31 mars 2022.
B22: →Assurez-vous de valider votre fiche (onglet Validation) avant de la transmettre à l’adresse suivante : suivi.climatique@environnement.gouv.qc.ca
B23: →Toute information confidentielle doit être saisie en bleu.
B24: →Conservez la fiche en format xlsm afin de pouvoir profiter des outils conviviaux.
B25: →La plupart des cellules contenant du texte sont limitées à 250 caractères.
B27: →Copier-coller des informations à partir d’un document Word verrouille les cellules concernées. Pour pouvoir à nouveau écrire et modifier le format de ces cellules, fermez et ouvrez à nouveau la fiche.
B29: →Besoin d’assistance? Écrivez-nous à l’adresse suivante en précisant votre question et vos coordonnées : suivi.climatique@environnement.gouv.qc.ca
K32: suivi.climatique@environnement.gouv.qc.ca
B50: Veuillez vérifier, corriger et compléter les informations ci-dessous :
B52: Priorité : | D52: 20 | E52: Favoriser les énergies renouvelables et l'efficacité énergétique dans les bâtiments résidentiels, commerciaux et institutionnels
B53: Action : | D53: 20.1 | E53: Conversion et efficacité énergétique dans les bâtiments commerciaux et institutionnels (ÉcoPerformance)
B54: Sous-action : | D54: 20.1
B55: Libellé usuel : | D55: 20.1 | E55: Conversion et efficacité énergétique dans les bâtiments commerciaux et institutionnels (Écoperformance)
B56: Programme : | D56: Programme ÉcoPerformance
B57: Nom du programme :
B58: Statut de l’action : | D58: en cours
B59: Raison du statut de l’action :
B63: Informations en date du : | D63: =Utilitaire!G6 -> 2022-03-31
B65: Ministère porteur : | D65: MERN (SITE) | I65: Direction responsable : | K65: DG opérations et innovation
B66: Partenaires : | D66: S.O. | I66: Part de financement par le FECC : | K66: Variable
B67: Budget 2013-2020 (M$) : | D67: 114.08 | I67: Autres sources de financement : | K67: Fonds pour une économie à faibles émissions de carbone (fédéral) et Plan budgétaire 2019-2020
B68: Date de lancement de l’action : | D68: 2013-10-28 | I68: Date de fin de l’action : | K68: 2024-10-31
B69: Section réservée à l’usage exclusif du BECC (lignes 70 à 73 non publiées)
B70: Chargé de projet : | D70: Guy Desbiens | I70: Tél. : | K70: 418 627-6379, poste 708016
B71: Responsable ministériel : | D71: Dominique Deschênes | I71: Tél. : | K71: 418 627-6379, poste 708088
B72: Personne ressource pour le BECC : | D72: Guy Desbiens | I72: Tél. : | K72: 418-627-6379 (708016)
B73: Estimation des sommes résiduelles au 31 décembre 2020 ($) : | D73: 0 | I73: Précisions sur le montant des sommes résiduelles : | K73: s
B74: Téléphone pour informations : | D74: 1 866 266-0008
B75: Référence Web : | D75: https://www.environnement.gouv.qc.ca/ministere/fonds-electrification-changements-climatiques/index.htm
B85: Ministère de l'Énergie et des Ressources naturelles (Sous-Ministère associé de l'Innovation et de la Transition Energétique)

Sheet Description
B2: =Utilitaire!E8 -> Plan d'action 2013-2020 sur les changements climatiques
B3: ="Action " & Accueil!D58 -> Action en cours
B4: =Accueil!D55 -> 20.1 | C4: =Accueil!E55 -> Conversion et efficacité énergétique dans les bâtiments commerciaux et institutionnels (Écoperformance)
B5: Ministère porteur : | D5: =Accueil!$D$65 -> MERN (SITE)
B6: Description
B15: Évaluation des effets de la COVID-19 sur la mise en œuvre de l'action
B16: Résultats attendus :
B17: Échéancier :
B18: Sommes engagées (projets en cours) :
B19: Autres :
B41: Informations en date du : | F41: 2022-03-31
B42: Informations générales
B43: Description de l'action: | C43: ÉcoPerformance est un programme d'aide financière pour des projets d'efficacité énergétique et de conversion. Il vise à réduire les émissions de gaz à effet de serre (GES) et la consommation énergétique des bâtiments commerciaux et institutionnels par le financement de projets ou de mesures liés à la consommation d'énergie. Une des finalités du programme ÉcoPerformance est l'appui financier qui entraîne l'implantation de mesures d'efficacité énergétique dans les bâtiments commerciaux et institutionnels. Le Programme soutient également le recours à l'hydroélectricité et aux énergies émergentes dans les nouveaux bâtiments ainsi que la conversion de systèmes de chauffage fonctionnant aux combustibles fossiles vers ces formes d'énergie. Les énergies émergentes, sources d'énergie renouvelable peu ou pas utilisées sur le marché québécois, sont par exemple : l'énergie solaire, éolienne, hydrolienne, marémotrice, la géothermie, l'aérothermie, l'hydrogène, la bioénergie, etc.
B44: Objectif de l'action: | C44: Le Programme se divise en deux volets : le volet Analyse et le volet Implantation. Le volet Analyse a pour objectif d'identifier et de quantifier les mesures potentielles d'économies de combustible fossile et de réductions d'émissions de GES ainsi que les coûts pour les instaurer. Il permet également l'implantation d'un système de gestion de l'énergie. L'objectif de celui-ci est de soutenir financièrement les organisations souhaitant mettre en place un système de gestion de l'énergie afin d'améliorer leur efficacité énergétique et de réduire leurs émissions de GES. Le volet Implantation a pour objectif de soutenir financièrement des projets permettant de réduire ultimement les émissions de GES, soit des projets d'efficacité énergétique, de réduction des émissions de GES ou de conversion à des sources d'énergie émergentes ou à l'hydroélectricité (à l'exception des projets de conversion à la biomasse forestière résiduelle qui sont couverts par un autre programme).
B45: Bénéficiaires : | C45: Entreprises (grandes entreprises) | E45: Entreprises (petites ou moyennes entreprises) | G45: Établissements de recherche | J45: Municipalités et organismes municipaux | M45: Organismes à but non lucratif
C46: Autres (précisez) :
B47: Critères d'admissibilité : | C47: Un projet admissible doit d'abord permettre une réduction quantifiable des émissions de GES et peut contenir plusieurs mesures. Formulaire de demande signé par le participant, plan de projet et plan de surveillance signés par un ingénieur sont les documents minimaux requis pour présenter une demande. Les demandes sont analysées, en fonction de leurs dates de dépôt, par un chargé de programme pour ensuite être soumises à l'approbation des autorités de TEQ.
B48: Processus de suivi de l'action : | C48: L'action est suivie de manière continuelle. Le budget est suivi hebdomadairement, par l'émission d'un suivi budgétaire hebdomadaire. Ce suivi compare les engagements dans SAGIR, avec les budgets prévus, ainsi que les données fournies par la base de données de suivi du programme ÉcoPerformance. Le suivi de la mise en œuvre des projets est fait en continu par les chargés de programme. La mise en fonction des projets est le moment à partir duquel les déclarations de réductions des émissions de gaz à effet de serre sont comptabilisées. Les réductions sont comptabilisées pour la période d'engagement des participants, tant que les projets sont maintenus. Une reddition de comptes est faite au ministère de l'Environnement et de la Lutte contre les changements climatiques (MELCC) sur la base de deux rapports annuels.
B49: Résultats et co-bénéfices attendus : | C49: Les résultats directs attendus sont l'économie d'énergie, la réduction des émissions de GES, des investissements importants dans les secteurs commercial et institutionnel, la création d'emplois et une amélioration soutenue de la performance des secteurs commercial et institutionnel au Québec. De façon générale, en efficacité énergétique, il y a la création de quatorze emplois par million de dollars investis Les autres avantages ou co-bénéfices attendus de l'action sont de faire appel à des sources d'énergie émergentes ou l'hydroélectricité, de permettre de faire des choix d'équipements plus performants lors de nouveaux projets. Également, l'action permet de transformer le marché et de dynamiser les interventions dans le secteur commercial et institutionnel. Plusieurs analyses permettront aux organisations de se conscientiser sur leur consommation énergétique et de prendre action pour améliorer leur performance.
B50: Résultats et co-bénéfices obtenus dans la dernière année :
B51: Résultats et co-bénéfices obtenus depuis le lancement de l'action : | C51: En date du 31 mars 2022, 126 analyses et 478 projets d'implantation ont été acceptés par le ministre, pour une réduction annuelle potentielle de 126,5 kt de CO2, nécessitant des investissements de 283,5 M$ grâce à des aides financières de 87,7 M$ pour un coût moyen de l'aide financière de 33,80 $/t sur la durée de vie des équipements (20,5 ans). Ces investissements entraîneraient la création de 3 969 emplois.
B53: Classification
B54: Finalité : | C54: Réduction des émissions de gaz à effet de serre | H54: Moyen : | J54: Réalisation (programmes et subventions favorisant l'exécution de solutions établies)
B62: Mise en œuvre
B63: Étapes (depuis le début de l'action) | J63: Échéancier | M63: État d'avancement
A64: 1 | B64: Élaboration du programme | M64: Complétée
A65: 2 | B65: Approbation du Conseil du trésor | J65: 2013-10-23 | M65: Complétée
A66: 3 | B66: Lancement du Programme | J66: 2013-10-28 | M66: Complétée
A67: 4 | B67: Signature de l'entente administrative avec le MDDELCC | J67: 2014-03-14 | M67: Complétée
A68: 5 | B68: Mise en suspens du Programme | J68: 2014-09-01 | M68: Complétée
A69: 6 | B69: Le MERN présente ses programmes à la Commission sur la révision permanente des programmes | J69: 2014-11-01 | M69: Complétée
B70: Mise à jour économique allouant 85 M$ de plus à la priorité | J70: 2014-12-01 | M70: Complétée
A71: 8 | B71: Ouverture du programme à de nouvelles demandes d'aide financière | J71: 2015-10-01 | M71: Complétée
A72: 9 | B72: Enveloppe budgétaire d'engagement pour 20.1 est atteint pour la période 2013-2017 | J72: 2016-06-01 | M72: Complétée
B73: Approbation des cibles des Annexes III par le MDDELCC | J73: 2016-12-01 | M73: Complétée
B74: Sanction du projet de loi no 106, concernant la création de TEQ | J74: 2016-12-01 | M74: Complétée
B75: Le programme est sous la responsabilité de TEQ | J75: 2017-04-01 | M75: Complétée
B76: Le cadre normatif a été modifié et approuvé par le Conseil d'administration de TEQ | J76: 2018-01-31 | M76: Complétée
B77: Le gouvernement fédéral annonce une contribution de 138,28 M$ au programme ÉcoPerformance. De cette somme, un montant de 34,4 M$ est alloué à l'action 20.1 et vise les commerces et institutions. | J77: 2017-12-07 | M77: En cours
B78: Le cadre normatif a été modifié et approuvé par le Conseil d'administration de TEQ | J78: 2018-01-31 | M78: Complétée
B79: Obtention de financement additionnel de 27,7 M$ dans le Budget 2019-2020 du Gouvernement du Québec | J79: 2019-03-27 | M79: Complétée
B80: Révision et adoption du cadre normatif révisé par le conseil d'administration de TEQ | J80: 2019-06-01 | M80: Complétée
B81: Entrée en vigueur de la Loi visant principalement la gouvernance efficace de la lutte contre les changements climatiques et à favoriser l'électrification | J81: 2020-11-01 | M81: Complétée
B190: Ajouter une ligne
B194: Plans, stratégies ou politiques incluant la mise en œuvre de cette action
B195: Abréviation | D195: Nom complet | N195: Numéro de mesure
B196: FEFEC 2018-2023 | D196: Fonds du Leadership pour une économie à faibles émissions en carbone du gouvernement du Canada
B197: PACC 2013-2020 | D197: Plan d'action 2013-2020 sur les changements climatiques | N197: 20,1
B198: Plan directeur | D198: Plan directeur en transition, innovation et efficacité énergétiques 2018-2023 | N198: 64, 67.2, 141

Sheet Détail des projets
B2: =Utilitaire!E8 -> Plan d'action 2013-2020 sur les changements climatiques
B3: ="Action " & Accueil!D58 -> Action en cours
B4: =Accueil!D55 -> 20.1 | C4: =Accueil!E55 -> Conversion et efficacité énergétique dans les bâtiments commerciaux et institutionnels (Écoperformance)
B5: Ministère porteur : | C5: =Accueil!$D$65 -> MERN (SITE)
B6: Détails et prévisions des dépenses par projet
D19: Informations en date du : | G19: 2022-03-31
B22: DÉTAILS DES PROJETS AUTORISÉS | O22: MONTANTS PROVENANT DU FECC ($) | AA22: =MONTH(#REF!) -> 
A23: No | B23: Nom du projet | C23: Nom du requérant ou du bénéficiaire | D23: Volet ou thématique | E23: Catégorie | F23: Nombre de projets | G23: Région administrative | H23: Municipalité | I23: Statut | J23: Classification du projet | K23: Montant engagé ($) | L23: Date de l'engagement | M23: Date du dernier versement | N23: Budget total du projet ($) | O23: 2013-2014 | P23: 2014-2015 | Q23: 2015-2016 | R23: 2016-2017 | S23: 2017-2018 | T23: 2018-2019 | U23: 2019-2020 | V23: 2020-2021 | W23: 2021-2022 | X23: 2022-2023 | Y23: 2023-2024 | Z23: 2024-2025 | AA23: MONTANT DES DÉPENSES RÉELLES ($) | AB23: TOTAL DES DÉPENSES RÉELLES ET PRÉVUES ($)
K24: (convention signée, contrat, lettre de confirmation du ministre ou de son représentant ou lettre d'octroi) | O24: Réel | P24: Réel | Q24: Réel | R24: Réel | S24: Réel | T24: Réel | U24: Réel | V24: Réel | W24: Réel | X24: Prévu | Y24: Prévu | Z24: Prévu
A25: 1 | B25: Implantation de diverses mesures d'efficacité énergétique au Collège Servite (D-686). | C25: Collège Servite | D25: Implantation | E25: Bâtiment | F25: 1 | G25: 05-Estrie | H25: Stanstead-Est | I25: TE | J25: SU | K25: 87905.46 | L25: 2014-02-21 | M25: 2014-04-01 | N25: 300163 | P25: 87905.46 | AA25: =SUM(O25:W25) -> 87905.46 | AB25: =SUM(O25:Z25) -> 87905.46
A26: 2 | B26: Ville de Montréal lot 12 | C26: Ville de Montréal | D26: Analyse | E26: Bâtiment | F26: 1 | G26: 06-Montréal | H26: Montréal | I26: TE | J26: SU | K26: 45000 | L26: 2014-02-21 | M26: 2015-03-19 | N26: 78277.89 | P26: 39138.94 | AA26: =SUM(O26:W26) -> 39138.94 | AB26: =SUM(O26:Z26) -> 39138.94
A27: 3 | B27: Système de récupération d'énergie des gaz de combustion | C27: CCUM, s.e.c. | D27: Implantation | E27: Bâtiment | F27: 1 | G27: 06-Montréal | H27: Montréal | I27: TE | J27: SU | K27: 1207275.48 | L27: 2014-05-23 | M27: 2015-04-01 | N27: 2405313 | P27: 301818.87 | Q27: 905456.61 | AA27: =SUM(O27:W27) -> 1207275.48 | AB27: =SUM(O27:Z27) -> 1207275.48
A28: 4 | B28: Récupération des gaz de combustion par refroidissement mécanique | C28: CCUM, s.e.c. | D28: Analyse | E28: Bâtiment | F28: 1 | G28: 06-Montréal | H28: Montréal | I28: TE | J28: SU | K28: 5500 | L28: 2018-06-19T09:28:13 | M28: 2019-05-09 | N28: 22000 | T28: 2750 | U28: 2750 | AA28: =SUM(O28:W28) -> 5500 | AB28: =SUM(O28:Z28) -> 5500
A29: 5 | B29: Metro Vaudreuil-Dorion | C29: Métro Richelieu inc. | D29: Implantation | E29: Bâtiment | F29: 1 | G29: 16-Montérégie | H29: Vaudreuil-Dorion | I29: TE | J29: SU | K29: 81291.2 | L29: 2014-06-09 | M29: 2015-03-30 | N29: 85832 | P29: 52123.71 | AA29: 52123.71 | AB29: 52123.71
A30: 6 | B30: Étude énergétique de système de production de vapeur et des systèmes thermiques de l'établissement | C30: CSSS de Memphrémagog | D30: Analyse | E30: Bâtiment | F30: 1 | G30: 05-Estrie | H30: Magog | I30: TE | J30: SU | K30: 10000 | L30: 2014-06-05 | M30: 2014-12-04 | N30: 22500 | P30: 10000 | AA30: 10000 | AB30: 10000
A31: 7 | B31: Super C Canon (Saint-Canut) | C31: Métro Richelieu inc. | D31: Implantation | E31: Bâtiment | F31: 1 | G31: 15-Laurentides | H31: Mirabel | I31: TE | J31: SU | K31: 47643.26 | L31: 2014-07-02 | M31: 2014-04-01 | N31: 130603 | P31: 47643.26 | AA31: 47643.26 | AB31: 47643.26
A32: 8 | B32: Changement des chaudières au 2055 Saint-Mathieu à Montréal | C32: Entreprise Agostino inc. | D32: Analyse | E32: Bâtiment | F32: 1 | G32: 06-Montréal | H32: Montréal | I32: TE | J32: SU | K32: 9250 | L32: 2014-07-07 | M32: 2014-10-16 | N32: 18500 | P32: 9250 | AA32: 9250 | AB32: 9250
A33: 9 | B33: Changement des chaudières à l'immeuble 2055 Saint-Mathieu | C33: Entreprise Agostino inc. | D33: Implantation | E33: Bâtiment | F33: 1 | G33: 06-Montréal | H33: Montréal | I33: TE | J33: SU | K33: 247068.74 | L33: 2016-03-23 | M33: 2016-04-01 | N33: 490000 | R33: 247068.74 | AA33: 247068.74 | AB33: 247068.74
A34: 10 | B34: Analyse énergétique à l'École des Prés-Verts | C34: Centre de services scolaire des Hautes-Rivières | D34: Analyse | E34: Bâtiment | F34: 1 | G34: 16-Montérégie | H34: Saint-Jean-sur-Richelieu | I34: TE | J34: SU | K34: 6150 | L34: 2014-07-09 | M34: 2014-09-23 | N34: 12300 | P34: 6150 | AA34: 6150 | AB34: 6150
A35: 11 | B35: Analyse énergétique à l'École Aux-Quatre-Vents | C35: Centre de services scolaire des Hautes-Rivières | D35: Analyse | E35: Bâtiment | F35: 1 | G35: 16-Montérégie | H35: Saint-Jean-sur-Richelieu | I35: TE | J35: SU | K35: 5950 | L35: 2014-07-09 | M35: 2014-09-23 | N35: 11900 | P35: 5950 | AA35: 5950 | AB35: 5950
A36: 12 | B36: Modernisation de la chaufferie | C36: Centre de services scolaire de Saint-Hyacinthe | D36: Analyse | E36: Bâtiment | F36: 1 | G36: 16-Montérégie | H36: Saint-Marcel-de-Richelieu | I36: TE | J36: SU | K36: 2500 | L36: 2014-07-09 | M36: 2014-10-02 | N36: 5000 | P36: 2500 | AA36: 2500 | AB36: 2500
A37: 13 | B37: École Savio - Conversion du mazout vers l'électricité | C37: Centre de services scolaire des Appalaches | D37: Implantation | E37: Bâtiment | F37: 1 | G37: 05-Estrie | H37: Stratford | I37: TE | J37: SU | K37: 33831.56 | L37: 2014-07-18 | M37: 2014-04-01 | N37: 94721 | P37: 33831.56 | AA37: 33831.56 | AB37: 33831.56
A38: 14 | B38: École Marguerite-Bourgeoys - Étude de faisabilité détaillée pour l'implantation de mesures d'efficacité énergétique | C38: Centre de services scolaire des Hautes-Rivières | D38: Analyse | E38: Bâtiment | F38: 1 | G38: 16-Montérégie | H38: Saint-Jean-sur-Richelieu | I38: TE | J38: SU | K38: 4750 | L38: 2014-07-18 | M38: 2014-11-28 | N38: 14144.73 | P38: 4447.87 | AA38: 4447.87 | AB38: 4447.87
A39: 15 | B39: Remplacement du système de réfrigération et récupération de chaleur | C39: Ville de Sherbrooke | D39: Implantation | E39: Bâtiment | F39: 1 | G39: 05-Estrie | H39: Sherbrooke | I39: TE | J39: SU | K39: 0 | L39: 2019-07-24T16:05:14 | M39: 2019-04-01 | N39: 207341 | AA39: 0 | AB39: 0
A40: 16 | B40: Conversion des équipements à l'électricité et installation des équipements requis | C40: Pourvoirie Mirage inc. | D40: Implantation | E40: Bâtiment | F40: 1 | G40: 08-Abitibi-Témiscamingue | H40: Poularies | I40: TE | J40: SU | K40: 1051941.06 | L40: 2015-10-02 | M40: 2017-05-08 | N40: 1945000 | Q40: 262985.26 | R40: 525970.52 | S40: 262985.28 | AA40: 1051941.06 | AB40: 1051941.06
A41: 17 | B41: Centre St-Edmond - Étude de faisabilité détaillée pour l'implantation de mesures d'efficacité énergétique | C41: Centre de services scolaire des Hautes-Rivières | D41: Analyse | E41: Bâtiment | F41: 1 | G41: 16-Montérégie | H41: Saint-Jean-sur-Richelieu | I41: TE | J41: SU | K41: 5100 | L41: 2014-07-07 | M41: 2014-12-05 | N41: 285900 | P41: 5034.54 | AA41: 5034.54 | AB41: 5034.54
A42: 18 | B42: Édifice Wellington-Eddy - Étude visant à identifier des mesures d'efficacité énergétique possibles et à évaluer leur faisabilité technique et économique | C42: 8697841 Canada inc. | D42: Analyse | E42: Bâtiment | F42: 1 | G42: 07-Outaouais | H42: Gatineau | I42: TE | J42: SU | K42: 6650 | L42: 2014-07-02 | M42: 2015-02-24 | N42: 13300 | P42: 6650 | AA42: 6650 | AB42: 6650
A43: 19 | B43: Édifice Wellington-Eddy - Implantation de mesures d'efficacité énergétique | C43: 8697841 Canada inc. | D43: Implantation | E43: Bâtiment | F43: 1 | G43: 07-Outaouais | H43: Gatineau | I43: TE | J43: SU | K43: 227209.59 | L43: 2015-06-09 | M43: 2015-05-05 | N43: 975000 | Q43: 227209.59 | AA43: 227209.59 | AB43: =SUM(O43:Z43) -> 227209.59
A44: 20 | B44: Hôpital de Notre-Dame-du-Lac | C44: Centre de santé et de services sociaux de Témiscouata | D44: Analyse | E44: Bâtiment | F44: 1 | G44: 01-Bas-Saint-Laurent | H44: Témiscouata-sur-le-Lac | I44: TE | J44: SU | K44: 25000 | L44: 2014-07-09 | M44: 2015-03-30 | N44: 69164 | P44: 25000 | AA44: 25000 | AB44: =SUM(O44:Z44) -> 25000
A45: 21 | B45: Projet d'implantation de mesures d'efficacité énergétique | C45: Centre intégré de santé et de services sociaux du Bas-Saint-Laurent | D45: Implantation | E45: Bâtiment | F45: 1 | G45: 01-Bas-Saint-Laurent | H45: Témiscouata-sur-le-Lac | I45: TE | J45: SU | K45: 48869.14 | L45: 2016-06-20 | M45: 2018-04-01 | N45: 1881734 | R45: 12217.28 | S45: 12217.28 | T45: 24434.58 | AA45: 48869.14 | AB45: =SUM(O45:Z45) -> 48869.14
A46: 22 | B46: Conversion des équipements à l'électricité et installation des équipements requis | C46: Pourvoirie Domaine Lounan | D46: Implantation | E46: Bâtiment | F46: 1 | G46: 15-Laurentides | H46: Mont-Saint-Michel | I46: TE | J46: SU | K46: 323369.5607 | L46: 2015-09-18 | M46: 2017-03-06 | N46: 523839 | Q46: 161684.78 | R46: 122340.13 | AA46: 284024.91 | AB46: =SUM(O46:Z46) -> 284024.91
A47: 23 | B47: Remplacement d'une chaudière mazout léger par une chaudière électrique. | C47: Corporation du service de recherche et d'expertise en transformation des produits forestiers de l'Est du Québec (SEREX) | D47: Implantation | E47: Bâtiment | F47: 1 | G47: 01-Bas-Saint-Laurent | H47: Amqui | I47: TE | J47: SU | K47: 17001.89 | L47: 2014-07-08 | M47: 2014-04-01 | N47: 23150 | P47: 16761.89 | AA47: 16761.89 | AB47: =SUM(O47:Z47) -> 16761.89
A48: 24 | B48: Agrandissement École Saint-Laurent | C48: Centre de service scolaire Marguerite -Bourgeoys | D48: Implantation | E48: Bâtiment | F48: 1 | G48: 06-Montréal | H48: Montréal | I48: TE | J48: SU | K48: 48664.54 | L48: 2014-07-02 | M48: 2016-03-31 | N48: 132380 | P48: 36498.42 | Q48: -1662 | AA48: 34836.42 | AB48: =SUM(O48:Z48) -> 34836.42
A49: 25 | B49: Pavillons C1 et C2 - Implantation de mesures en efficacité énergétique | C49: Université de Sherbrooke | D49: Implantation | E49: Bâtiment | F49: 1 | G49: 05-Estrie | H49: Sherbrooke | I49: TE | J49: SU | K49: 360615.44 | L49: 2015-02-18 | M49: 2016-05-30 | N49: 663696 | P49: 270461.58 | R49: -10097.17 | AA49: 260364.41 | AB49: =SUM(O49:Z49) -> 260364.41
A50: 26 | B50: Projet d'efficacité énergétique et intégration d'une boucle géothermique - Pavillon C3 | C50: Université de Sherbrooke | D50: Implantation | E50: Bâtiment | F50: 1 | G50: 05-Estrie | H50: Sherbrooke | I50: TE | J50: SU | K50: 176272.48 | L50: 2018-04-27T14:30:33 | M50: 2018-04-01 | N50: 440000 | T50: 176272.48 | AA50: 176272.48 | AB50: =SUM(O50:Z50) -> 176272.48
A51: 27 | B51: Conversion des équipements à l'électricité | C51: 9147-4882 Québec inc. (Auberge du 31) | D51: Implantation | E51: Bâtiment | F51: 1 | G51: 02-Saguenay--Lac-Saint-Jean | H51: Saguenay | I51: TE | J51: SU | K51: 265421.6562 | L51: 2015-09-18 | M51: 2015-04-01 | N51: 517769 | Q51: 225653.05 | AA51: 225653.05 | AB51: =SUM(O51:Z51) -> 225653.05
A52: 28 | B52: Projet d'efficacité énergétique - Centre d'hébergement de Gracefield | C52: Centre de santé et de services sociaux de la Vallée-de-la-Gatineau | D52: Implantation | E52: Bâtiment | F52: 1 | G52: 07-Outaouais | H52: Gracefield | I52: TE | J52: SU | K52: 149393.17 | L52: 2014-07-09 | M52: 2015-04-01 | N52: 595602 | P52: 37348.29 | Q52: 112044.88 | AA52: =SUM(O52:W52) -> 149393.17 | AB52: =SUM(O52:Z52) -> 149393.17
A53: 29 | B53: Analyse des mesures d'économies d'énergie | C53: Cégep du Vieux Montréal | D53: Analyse | E53: Bâtiment | F53: 1 | G53: 06-Montréal | H53: Montréal | I53: TE | J53: SU | K53: 25000 | L53: 2014-09-16 | M53: 2015-03-24 | N53: 115052 | P53: 25000 | AA53: =SUM(O53:W53) -> 25000 | AB53: =SUM(O53:Z53) -> 25000
A54: 30 | B54: Implantation de mesures d'efficacité énergétique au Cégep du Vieux Montréal | C54: Cégep du Vieux Montréal | D54: Implantation | E54: Bâtiment | F54: 1 | G54: 06-Montréal | H54: Montréal | I54: TE | J54: SU | K54: 535986.36 | L54: 2016-07-25 | M54: 2018-04-01 | N54: 1305984 | R54: 133996.59 | S54: 267993.18 | T54: 133996.59 | AA54: =SUM(O54:W54) -> 535986.36 | AB54: =SUM(O54:Z54) -> 535986.36
A55: 31 | B55: Analyse des mesures d'économies d'énergie à l’hôpital Saint-François d’Assise | C55: CHU de Québec | D55: Analyse | E55: Bâtiment | F55: 1 | G55: 03-Capitale-Nationale | H55: Québec | I55: TE | J55: SU | K55: 25000 | L55: 2014-07-15 | M55: 2015-02-25 | N55: 259889 | P55: 25000 | AA55: =SUM(O55:W55) -> 25000 | AB55: =SUM(O55:Z55) -> 25000
A56: 32 | B56: Projet d'implantation de mesures d'efficacité énergétique à l'Hôpital Saint-François d'Assise | C56: CHU de Québec - Université Laval | D56: Implantation | E56: Bâtiment | F56: 1 | G56: 03-Capitale-Nationale | H56: Québec | I56: TE | J56: SU | K56: 2032576.27 | L56: 2016-01-11 | M56: 2018-04-01 | N56: 5417543 | Q56: 508144.07 | R56: 508144.07 | S56: 508144.07 | T56: 508144.06 | AA56: =SUM(O56:W56) -> 2032576.27 | AB56: =SUM(O56:Z56) -> 2032576.27
A57: 33 | B57: Analyse énergétique chez CFP Brome - Boucherie | C57: Centre de services scolaire du Val-des-Cerfs | D57: Analyse | E57: Bâtiment | F57: 1 | G57: 05-Estrie | H57: Cowansville | I57: TE | J57: SU | K57: 5006 | L57: 2014-07-14 | M57: 2015-03-30 | N57: 10012 | P57: 5006 | AA57: =SUM(O57:W57) -> 5006 | AB57: =SUM(O57:Z57) -> 5006
A58: 34 | B58: Projet d'efficacité énergétique et de modernisation des équipements électro-mécaniques | C58: Propriétés DCV s.e.c. | D58: Analyse | E58: Bâtiment | F58: 1 | G58: 06-Montréal | H58: Montréal | I58: TE | J58: SU | K58: 24600 | L58: 2014-07-29 | M58: 2014-11-12 | N58: 50000 | P58: 24600 | AA58: =SUM(O58:W58) -> 24600 | AB58: =SUM(O58:Z58) -> 24600
A59: 35 | B59: Centre Saint-Charles - Récupération chaleur sur système ammoniac | C59: Ville de Montréal | D59: Implantation | E59: Bâtiment | F59: 1 | G59: 06-Montréal | H59: Montréal | I59: TE | J59: SU | K59: 192885.25 | L59: 2014-12-10 | M59: 2015-04-01 | N59: 456521 | P59: 48221.31 | Q59: -25615.6 | AA59: =SUM(O59:W59) -> 22605.71 | AB59: =SUM(O59:Z59) -> 22605.71
A60: 36 | B60: Réfrigération CO2 avec récupération de chaleur - No 88076 - IGA Saint-Antoine | C60: Sobeys Capital Incorporée | D60: Implantation | E60: Bâtiment | F60: 1 | G60: 15-Laurentides | H60: Saint-Jérôme | I60: TE | J60: SU | K60: 0 | L60: 2014-12-03 | M60: 2014-04-01 | N60: 45000 | AA60: =SUM(O60:W60) -> 0 | AB60: =SUM(O60:Z60) -> 0
A61: 37 | B61: Supermarché Marquis l'Assomption - Réfrigération CO2 et récupération de chaleur | C61: Supermarché Marquis l'Assomption inc. | D61: Implantation | E61: Bâtiment | F61: 1 | G61: 14-Lanaudière | H61: L'Assomption | I61: TE | J61: SU | K61: 159877.3663 | L61: 2014-12-10 | M61: 2015-04-01 | N61: 185417 | P61: 79938.68792 | Q61: 20948.45536 | AA61: =SUM(O61:W61) -> 100887.1433 | AB61: =SUM(O61:Z61) -> 100887.1433
A62: 38 | B62: Projet d’efficacité énergétique à l'Hôtel-Dieu de Roberval | C62: CSSS Domaine-du-Roy | D62: Implantation | E62: Bâtiment | F62: 1 | G62: 02-Saguenay--Lac-Saint-Jean | H62: Roberval | I62: TE | J62: SU | K62: 1513883.57 | L62: 2015-01-14 | M62: 2015-04-01 | N62: 6669947 | P62: 756941.78 | Q62: 756941.79 | AA62: =SUM(O62:W62) -> 1513883.57 | AB62: =SUM(O62:Z62) -> 1513883.57
A63: 39 | B63: Conversion du système de chauffage à la biénergie. | C63: Ville de Montréal | D63: Implantation | E63: Bâtiment | F63: 1 | G63: 06-Montréal | H63: Montréal | I63: TE | J63: SU | K63: 26972.99 | L63: 2016-10-27 | M63: 2018-04-01 | N63: 58443 | R63: 6743.25 | S63: 13486.5 | T63: 6743.24 | AA63: =SUM(O63:W63) -> 26972.99 | AB63: =SUM(O63:Z63) -> 26972.99
A64: 40 | B64: Conversion du système de chauffage au gaz naturel vers l'aérothermie | C64: Collège Sainte-Anne | D64: Implantation | E64: Bâtiment | F64: 1 | G64: 06-Montréal | H64: Montréal | I64: TE | J64: SU | K64: 458179 | L64: 2014-11-12 | M64: 2014-04-01 | N64: 855700 | P64: 458179 | AA64: =SUM(O64:W64) -> 458179 | AB64: =SUM(O64:Z64) -> 458179
A65: 41 | B65: Construction d'une ligne électrique | C65: Pourvoirie du Lac Beauregard | D65: Implantation | E65: Bâtiment | F65: 1 | G65: 15-Laurentides | H65: Mont-Laurier | I65: TE | J65: SU | K65: 256696.38 | L65: 2015-09-23 | M65: 2017-05-23 | N65: 562193 | Q65: 192522.3 | S65: 35621.34 | AA65: =SUM(O65:W65) -> 228143.64 | AB65: =SUM(O65:Z65) -> 228143.64
A66: 42 | B66: Rénovation et mise aux normes de l'aréna Roberto-Luongo | C66: Ville de Montréal | D66: Implantation | E66: Bâtiment | F66: 1 | G66: 06-Montréal | H66: Montréal | I66: TE | J66: SU | K66: 159808.34 | L66: 2015-02-24 | M66: 2015-04-01 | N66: 355113 | Q66: 147171.99 | AA66: =SUM(O66:W66) -> 147171.99 | AB66: =SUM(O66:Z66) -> 147171.99
A67: 43 | B67: No 360 - IGA Longueuil - Réfrigération CO2 avec récupération de chaleur | C67: Sobeys Capital Incorporée | D67: Implantation | E67: Bâtiment | F67: 1 | G67: 16-Montérégie | H67: Longueuil | I67: TE | J67: SU | K67: 0 | L67: 2014-12-10 | M67: 2014-04-01 | N67: 75000 | AA67: =SUM(O67:W67) -> 0 | AB67: =SUM(O67:Z67) -> 0
A68: 44 | B68: Projet d'efficacité énergétique - Pavillon des Sciences | C68: Collège d'enseignement général et professionel de Trois-Rivières | D68: Implantation | E68: Bâtiment | F68: 1 | G68: 04-Mauricie | H68: Trois-Rivières | I68: TE | J68: SU | K68: 611075.69 | L68: 2015-03-11 | M68: 2015-04-01 | N68: 1733512 | P68: 305537.85 | Q68: 305537.84 | AA68: =SUM(O68:W68) -> 611075.69 | AB68: =SUM(O68:Z68) -> 611075.69
A69: 45 | B69: Réfrigération au CO2 avec récupération de chaleur- No 08033 IGA Sainte-Thérèse (Daigle) | C69: Sobeys Capital Incorporée | D69: Implantation | E69: Bâtiment | F69: 1 | G69: 15-Laurentides | H69: Sainte-Thérèse | I69: TE | J69: SU | K69: 0 | L69: 2014-12-10 | M69: 2016-03-29 | N69: 56250 | AA69: =SUM(O69:W69) -> 0 | AB69: =SUM(O69:Z69) -> 0
A70: 46 | B70: Analyse de mesures d'efficacité énergétique | C70: Soltron Realty LP | D70: Analyse | E70: Bâtiment | F70: 1 | G70: 06-Montréal | H70: Montréal | I70: TE | J70: SU | K70: 19000 | L70: 2014-09-16 | M70: 2014-12-08 | N70: 38000 | P70: 19000 | AA70: =SUM(O70:W70) -> 19000 | AB70: =SUM(O70:Z70) -> 19000
A71: 47 | B71: Réfrigération au CO2 avec récupération de chaleur - No 8724 - IGA Ayer's Cliff | C71: Sobeys Capital Incorporée | D71: Implantation | E71: Bâtiment | F71: 1 | G71: 05-Estrie | H71: Stanstead-Est | I71: TE | J71: SU | K71: 0 | L71: 2014-12-09 | M71: 2015-04-01 | N71: 37500 | AA71: =SUM(O71:W71) -> 0 | AB71: =SUM(O71:Z71) -> 0
A72: 48 | B72: Réfrigération CO2 avec récupération de chaleur - No 0444 IGA Saint-Romuald | C72: Sobeys Capital Incorporée | D72: Implantation | E72: Bâtiment | F72: 1 | G72: 12-Chaudière-Appalaches | H72: Lévis | I72: TE | J72: SU | K72: 0 | L72: 2014-12-10 | M72: 2016-03-29 | N72: 56250 | AA72: =SUM(O72:W72) -> 0 | AB72: =SUM(O72:Z72) -> 0
A73: 49 | B73: Réfrigération au CO2 avec récupération de chaleur | C73: Sobeys Capital Incorporée | D73: Implantation | E73: Bâtiment | F73: 1 | G73: 06-Montréal | H73: Montréal | I73: TE | J73: SU | K73: 20677.76364 | L73: 2015-02-05 | M73: 2016-03-24 | N73: 58560 | P73: 15508.32198 | Q73: 5169.441662 | AA73: =SUM(O73:W73) -> 20677.76364 | AB73: =SUM(O73:Z73) -> 20677.76364
A74: 50 | B74: Réfrigération CO2 avec récupération de chaleur - No 8187 - IGA Sainte-Julie | C74: Sobeys Capital Incorporée | D74: Implantation | E74: Bâtiment | F74: 1 | G74: 16-Montérégie | H74: Sainte-Julie | I74: TE | J74: SU | K74: 0 | L74: 2014-12-01 | M74: 2014-04-01 | N74: 26250 | AA74: =SUM(O74:W74) -> 0 | AB74: =SUM(O74:Z74) -> 0
A75: 51 | B75: Projet d'efficacité énergétique - Hôpital de Maniwaki | C75: CSSS Vallée-de-la-Gatineau | D75: Implantation | E75: Bâtiment | F75: 1 | G75: 07-Outaouais | H75: Maniwaki | I75: TE | J75: SU | K75: 465421.59 | L75: 2014-12-10 | M75: 2015-04-01 | N75: 2384418 | P75: 349066.19 | Q75: 116355.4 | AA75: =SUM(O75:W75) -> 465421.59 | AB75: =SUM(O75:Z75) -> 465421.59
A76: 52 | B76: Réfrigération CO2 avec récupération de chaleur (89035) | C76: Sobeys Capital Incorporée | D76: Implantation | E76: Bâtiment | F76: 1 | G76: 08-Abitibi-Témiscamingue | H76: Témiscaming | I76: TE | J76: SU | K76: 0 | L76: 2014-12-10 | M76: 2014-04-01 | N76: 37500 | AA76: =SUM(O76:W76) -> 0 | AB76: =SUM(O76:Z76) -> 0
A77: 53 | B77: Étude spécifique - Nouveau système de ventilation et de récupération d'énergie | C77: Ville de Saint-Jean-sur-Richelieu | D77: Analyse | E77: Bâtiment | F77: 1 | G77: 16-Montérégie | H77: Saint-Jean-sur-Richelieu | I77: TE | J77: SU | K77: 7200 | L77: 2015-01-08 | M77: 2015-03-16 | N77: 58871.26 | P77: 6435.63 | AA77: =SUM(O77:W77) -> 6435.63 | AB77: =SUM(O77:Z77) -> 6435.63
A78: 54 | B78: Analyse de mesures d'efficacité énergétique | C78: Centre de services scolaire des Hautes-Rivières | D78: Analyse | E78: Bâtiment | F78: 1 | G78: 16-Montérégie | H78: Lacolle | I78: TE | J78: SU | K78: 6600 | L78: 2014-12-22 | M78: 2015-03-26 | N78: 77894 | P78: 5447 | AA78: =SUM(O78:W78) -> 5447 | AB78: =SUM(O78:Z78) -> 5447
A79: 55 | B79: Projet d'efficacité énergétique de l'agrandissement de l'Hôpital du Haut-Richelieu–Rouville | C79: Centre intégré de santé et de services sociaux de la Montérégie-Centre | D79: Implantation | E79: Bâtiment | F79: 1 | G79: 16-Montérégie | H79: Saint-Jean-sur-Richelieu | I79: TE | J79: SU | K79: 371038.83 | L79: 2014-09-24 | M79: 2018-05-17 | N79: 1096611 | P79: 92759.71 | Q79: 92759.71 | T79: 84630.67 | AA79: =SUM(O79:W79) -> 270150.09 | AB79: =SUM(O79:Z79) -> 270150.09
A80: 56 | B80: Étude d'efficacité énergétique pour 17 bâtiments | C80: Commission scolaire English-Montréal | D80: Analyse | E80: Bâtiment | F80: 1 | G80: 06-Montréal | H80: Montréal | I80: TE | J80: SU | K80: 149396.5 | L80: 2015-02-24 | M80: 2015-03-31 | N80: 343537 | P80: 149396.5 | AA80: =SUM(O80:W80) -> 149396.5 | AB80: =SUM(O80:Z80) -> 149396.5
A81: 57 | B81: Projet d'efficacité énergétique au nouvel hôtel Holiday Inn à Vaudreuil | C81: Les Constructions Robin inc. | D81: Implantation | E81: Bâtiment | F81: 1 | G81: 16-Montérégie | H81: Vaudreuil-Dorion | I81: TE | J81: SU | K81: 33523.23 | L81: 2015-01-08 | M81: 2015-04-01 | N81: 502219 | P81: 8380.81 | Q81: 24703.46 | AA81: =SUM(O81:W81) -> 33084.27 | AB81: =SUM(O81:Z81) -> 33084.27
A82: 58 | B82: Récupération de chaleur de la buanderie et installation d'un mur solaire | C82: Concept Éco-Plein-Air Le Baluchon inc. | D82: Implantation | E82: Bâtiment | F82: 1 | G82: 04-Mauricie | H82: Saint-Paulin | I82: TE | J82: SU | K82: 18508.37709 | L82: 2015-01-14 | M82: 2018-08-07 | N82: 102145 | R82: 4627.09613 | S82: 9254.192259 | T82: 4627.088698 | AA82: =SUM(O82:W82) -> 18508.37709 | AB82: =SUM(O82:Z82) -> 18508.37709
A83: 59 | B83: Récupération de chaleur sur système réfrigération et efficacité énergétique | C83: Ville de Montréal | D83: Implantation | E83: Bâtiment | F83: 1 | G83: 06-Montréal | H83: Montréal | I83: TE | J83: SU | K83: 140141.3 | L83: 2016-02-10 | M83: 2015-04-01 | N83: 444684 | Q83: 140141.3 | AA83: =SUM(O83:W83) -> 140141.3 | AB83: =SUM(O83:Z83) -> 140141.3
A84: 60 | B84: Étude de faisabilité - Efficacité énergétique dans une buanderie industrielle | C84: Buanderie Laser inc. | D84: Analyse | E84: Bâtiment | F84: 1 | G84: 06-Montréal | H84: Montréal | I84: TE | J84: SU | K84: 7500 | L84: 2014-12-16 | M84: 2015-03-12 | N84: 15000 | P84: 7500 | AA84: =SUM(O84:W84) -> 7500 | AB84: =SUM(O84:Z84) -> 7500
A85: 61 | B85: Optimisation de la chaufferie du bâtiment Gregor House | C85: Groupe Accueil International ltée | D85: Implantation | E85: Bâtiment | F85: 1 | G85: 06-Montréal | H85: Montréal | I85: TE | J85: SU | K85: 144315.71 | L85: 2015-03-20 | M85: 2015-04-01 | N85: 382000 | P85: 36078.9275 | Q85: 108236.78 | AA85: =SUM(O85:W85) -> 144315.7075 | AB85: =SUM(O85:Z85) -> 144315.7075
A86: 62 | B86: Remplacement des chaudières au mazout léger par des systèmes électriques zonés | C86: La fabrique de la paroisse de Saint-Charles-de-Grondines | D86: Implantation | E86: Bâtiment | F86: 1 | G86: 03-Capitale-Nationale | H86: Deschambault-Grondines | I86: TE | J86: SU | K86: 59713.2 | L86: 2015-02-05 | M86: 2014-04-01 | N86: 85973 | P86: 59713.2 | AA86: =SUM(O86:W86) -> 59713.2 | AB86: =SUM(O86:Z86) -> 59713.2
A87: 63 | B87: Gestion efficace de l'ensemble de la consommation d’énergie et de l’appel de puissance électrique | C87: Le Syndicat des copropriétaires du Laurier de l'Île Paton | D87: Implantation | E87: Bâtiment | F87: 1 | G87: 13-Laval | H87: Laval | I87: TE | J87: SU | K87: 86022.58 | L87: 2015-10-29 | M87: 2015-04-01 | N87: 123622 | Q87: 86022.58 | AA87: =SUM(O87:W87) -> 86022.58 | AB87: =SUM(O87:Z87) -> 86022.58
A88: 64 | B88: Réfrigération à l'ammoniac avec récupération de chaleur | C88: Complexe sportif scientifique et éducatif Montcalm inc. | D88: Implantation | E88: Bâtiment | F88: 1 | G88: 14-Lanaudière | H88: Saint-Roch-de-l'Achigan | I88: TE | J88: SU | K88: 284234.28 | L88: 2016-01-12 | M88: 2015-04-01 | N88: 733455 | Q88: 284234.28 | AA88: =SUM(O88:W88) -> 284234.28 | AB88: =SUM(O88:Z88) -> 284234.28
A89: 65 | B89: Réfrigération CO2 avec récupération de chaleur - Phase 1 | C89: SportPlex de l'Énergie inc. | D89: Implantation | E89: Bâtiment | F89: 1 | G89: 16-Montérégie | H89: Varennes | I89: TE | J89: SU | K89: 305657.9533 | L89: 2016-04-28 | M89: 2016-04-01 | N89: 615317 | R89: 305657.9533 | AA89: =SUM(O89:W89) -> 305657.9533 | AB89: =SUM(O89:Z89) -> 305657.9533
A90: 66 | B90: Projet hydroélectrique de 400 kW sur la rivière Brooch | C90: Rébec inc. | D90: Implantation | E90: Bâtiment | F90: 1 | G90: 09-Côte-Nord | H90: Sept-Îles | I90: TE | J90: SU | K90: 1316860.167 | L90: 2015-02-18 | M90: 2020-04-01 | N90: 2642759 | Q90: 313538.14 | S90: 313538.14 | V90: 689783.887 | AA90: =SUM(O90:W90) -> 1316860.167 | AB90: =SUM(O90:Z90) -> 1316860.167
A91: 67 | B91: D654J – Projet en efficacité énergétique au Centre d'hébergement de Sainte-Claire | C91: Centre intégré de santé et de services sociaux de Chaudière-Appalaches | D91: Implantation | E91: Bâtiment | F91: 1 | G91: 12-Chaudière-Appalaches | H91: Sainte-Claire | I91: TE | J91: SU | K91: 46321.47 | L91: 2015-10-26 | M91: 2015-04-01 | N91: 66821 | Q91: 36314.95 | AA91: =SUM(O91:W91) -> 36314.95 | AB91: =SUM(O91:Z91) -> 36314.95
A92: 68 | B92: Réfrigération CO2 avec récupération de chaleur - #8240 - IGA Marché St-Canut | C92: Marché St-Canut inc. | D92: Implantation | E92: Bâtiment | F92: 1 | G92: 15-Laurentides | H92: Mirabel | I92: TE | J92: SU | K92: 0 | L92: 2015-06-09 | M92: 2016-03-24 | N92: 75000 | AA92: =SUM(O92:W92) -> 0 | AB92: =SUM(O92:Z92) -> 0
A93: 69 | B93: Projet d'efficacité énergétique - Centre d'hébergement des Quatre-Temps | C93: Centre intégré universitaire de santé et services sociaux de l'Est-de-l'iÎe-de-Montréal (CIUSSS de l'Est-de-l'Île-de-Montréal ) | D93: Implantation | E93: Bâtiment | F93: 1 | G93: 06-Montréal | H93: Montréal | I93: TE | J93: SU | K93: 79372.69 | L93: 2016-02-24 | M93: 2016-04-01 | N93: 209739 | R93: 79372.69 | AA93: =SUM(O93:W93) -> 79372.69 | AB93: =SUM(O93:Z93) -> 79372.69
A94: 70 | B94: Habitation 340 Plamondon - Projet d'efficacité énergétique | C94: Office municipal d'habitation de Montréal | D94: Implantation | E94: Bâtiment | F94: 1 | G94: 06-Montréal | H94: Montréal | I94: TE | J94: SU | K94: 232561.02 | L94: 2015-12-10 | M94: 2016-04-01 | N94: 683107 | Q94: 58140.25 | R94: 174420.77 | AA94: =SUM(O94:W94) -> 232561.02 | AB94: =SUM(O94:Z94) -> 232561.02
A95: 71 | B95: Habitation 533 André-Grasset - Projet d'efficacité énergétique | C95: Office municipal d'habitation de Montréal | D95: Implantation | E95: Bâtiment | F95: 1 | G95: 06-Montréal | H95: Montréal | I95: TE | J95: SU | K95: 269302.04 | L95: 2016-03-10 | M95: 2016-04-01 | N95: 412235 | R95: 269302.04 | AA95: =SUM(O95:W95) -> 269302.04 | AB95: =SUM(O95:Z95) -> 269302.04
A96: 72 | B96: Étude d'efficacité énergétique visant la récupération de chaleur des refroidisseurs et la géothermie | C96: Aéroport de Québec inc. | D96: Analyse | E96: Bâtiment | F96: 1 | G96: 03-Capitale-Nationale | H96: Québec | I96: TE | J96: SU | K96: 12463.5 | L96: 2015-03-09 | M96: 2015-12-09 | N96: 24902.88 | Q96: 12451.44 | AA96: =SUM(O96:W96) -> 12451.44 | AB96: =SUM(O96:Z96) -> 12451.44
A97: 73 | B97: Réfrigération au CO2 avec récupération de chaleur | C97: Métro Richelieu inc. | D97: Implantation | E97: Bâtiment | F97: 1 | G97: 16-Montérégie | H97: La Prairie | I97: TE | J97: SU | K97: 22694.22846 | L97: 2015-03-18 | M97: 2016-04-01 | N97: 94854 | P97: 5673.558326 | Q97: 5673.558326 | R97: 11347.1118 | AA97: =SUM(O97:W97) -> 22694.22846 | AB97: =SUM(O97:Z97) -> 22694.22846
A98: 74 | B98: D654O - Hôtel-Dieu de Lévis - Projet d'efficacité énergétique | C98: Centre intégré de santé et de services sociaux de Chaudière-Appalaches | D98: Implantation | E98: Bâtiment | F98: 1 | G98: 12-Chaudière-Appalaches | H98: Lévis | I98: TE | J98: SU | K98: 1418066.2 | L98: 2015-11-11 | M98: 2016-04-01 | N98: 6266275 | Q98: 709033.1 | R98: 709033.1 | AA98: =SUM(O98:W98) -> 1418066.2 | AB98: =SUM(O98:Z98) -> 1418066.2
A99: 75 | B99: Projet efficacité énergétique - D635A - Hôpital Anna-Laberge | C99: Centre intégré de santé et de services sociaux (CISSS) de la Montérégie-Ouest | D99: Implantation | E99: Bâtiment | F99: 1 | G99: 16-Montérégie | H99: Châteauguay | I99: TE | J99: SU | K99: 677420.07 | L99: 2015-10-07 | M99: 2016-04-01 | N99: 2653517 | Q99: 338710.04 | R99: 338710.03 | AA99: =SUM(O99:W99) -> 677420.07 | AB99: =SUM(O99:Z99) -> 677420.07
A100: 76 | B100: UQAC - Récupération des hottes des laboratoires | C100: Université du Québec à Chicoutimi | D100: Implantation | E100: Bâtiment | F100: 1 | G100: 02-Saguenay--Lac-Saint-Jean | H100: Saguenay | I100: TE | J100: SU | K100: 85171.94 | L100: 2015-02-18 | M100: 2015-04-01 | N100: 116904 | P100: 63878.96 | Q100: 12001.73 | AA100: =SUM(O100:W100) -> 75880.69 | AB100: =SUM(O100:Z100) -> 75880.69
A101: 77 | B101: Université du Québec à Chicoutimi – Installation de nouvelles chaudières au gaz naturel au Pavillon principal | C101: Université du Québec à Chicoutimi | D101: Implantation | E101: Bâtiment | F101: 1 | G101: 02-Saguenay--Lac-Saint-Jean | H101: Saguenay | I101: TE | J101: SU | K101: 169462.17 | L101: 2018-10-04T14:14:43 | M101: 2019-10-23 | N101: 554981 | U101: 169462.17 | AA101: =SUM(O101:W101) -> 169462.17 | AB101: =SUM(O101:Z101) -> 169462.17
A102: 78 | B102: D654A – Projet en efficacité énergétique au Centre d'hébergement de soins de longue durée Saint-Sylvestre | C102: Centre intégré de santé et de services sociaux de Chaudière-Appalaches | D102: Implantation | E102: Bâtiment | F102: 1 | G102: 12-Chaudière-Appalaches | H102: Saint-Sylvestre | I102: TE | J102: SU | K102: 13926.87 | L102: 2015-10-26 | M102: 2015-04-01 | N102: 36536 | Q102: 13926.87 | AA102: =SUM(O102:W102) -> 13926.87 | AB102: =SUM(O102:Z102) -> 13926.87
A103: 79 | B103: Projet efficacité énergétique - D635D - Centre d'hébergement de Saint-Rémi | C103: Centre intégré de santé et de services sociaux (CISSS) de la Montérégie-Ouest | D103: Implantation | E103: Bâtiment | F103: 1 | G103: 16-Montérégie | H103: Saint-Constant | I103: TE | J103: SU | K103: 14107.42 | L103: 2015-11-02 | M103: 2015-04-01 | N103: 47284 | Q103: 14107.42 | AA103: =SUM(O103:W103) -> 14107.42 | AB103: =SUM(O103:Z103) -> 14107.42
A104: 80 | B104: Projet efficacité énergétique - D635B - Centre d’hébergement de Châteauguay | C104: Centre intégré de santé et de services sociaux (CISSS) de la Montérégie-Ouest | D104: Implantation | E104: Bâtiment | F104: 1 | G104: 16-Montérégie | H104: Châteauguay | I104: TE | J104: SU | K104: 342834.39 | L104: 2015-11-11 | M104: 2016-04-01 | N104: 585100 | Q104: 171417.2 | R104: 171417.19 | AA104: =SUM(O104:W104) -> 342834.39 | AB104: =SUM(O104:Z104) -> 342834.39
A105: 81 | B105: Projet efficacité énergétique - D635C - Centre d’hébergement de La Prairie | C105: Centre intégré de santé et de services sociaux (CISSS) de la Montérégie-Ouest | D105: Implantation | E105: Bâtiment | F105: 1 | G105: 16-Montérégie | H105: La Prairie | I105: TE | J105: SU | K105: 107558.68 | L105: 2015-11-11 | M105: 2015-04-01 | N105: 197389 | Q105: 107558.68 | AA105: =SUM(O105:W105) -> 107558.68 | AB105: =SUM(O105:Z105) -> 107558.68
A106: 82 | B106: Intégration d'un système de gestion énergétique à l'égard d'une conversion partielle de source d'énergie | C106: Syndicat de la copropriété Club Marin III | D106: Implantation | E106: Bâtiment | F106: 1 | G106: 06-Montréal | H106: Montréal | I106: TE | J106: SU | K106: 95627.14 | L106: 2015-10-29 | M106: 2015-04-01 | N106: 160285 | Q106: 95627.14 | AA106: =SUM(O106:W106) -> 95627.14 | AB106: =SUM(O106:Z106) -> 95627.14
A107: 83 | B107: Modernisation énergétique - 9600 Meilleur | C107: 4196236 Canada inc. | D107: Analyse | E107: Bâtiment | F107: 1 | G107: 06-Montréal | H107: Montréal | I107: TE | J107: SU | K107: 10000 | L107: 2015-05-14 | M107: 2015-11-09 | N107: 20000 | Q107: 10000 | AA107: =SUM(O107:W107) -> 10000 | AB107: =SUM(O107:Z107) -> 10000
A108: 84 | B108: Modernisation énergétique au 6300, avenue du Parc | C108: 6300 avenue du Parc inc. | D108: Analyse | E108: Bâtiment | F108: 1 | G108: 06-Montréal | H108: Montréal | I108: TE | J108: SU | K108: 6000 | L108: 2015-01-07 | M108: 2015-06-18 | N108: 12000 | Q108: 5500 | AA108: =SUM(O108:W108) -> 5500 | AB108: =SUM(O108:Z108) -> 5500
A109: 85 | B109: Centre jeunesse de Montréal édifice DSM - Projet d'économie d'énergie | C109: Centre intégré universitaire de santé et de services sociaux du Centre-Sud-de-l’Île-de-Montréal | D109: Implantation | E109: Bâtiment | F109: 1 | G109: 06-Montréal | H109: Montréal | I109: TE | J109: SU | K109: 63164.54 | L109: 2016-04-27 | M109: 2016-04-01 | N109: 1424807 | R109: 63164.54 | AA109: =SUM(O109:W109) -> 63164.54 | AB109: =SUM(O109:Z109) -> 63164.54
A110: 86 | B110: Centre jeunesse de Montréal siège social - Projet d'économie d'énergie | C110: Centre intégré universitaire de santé et de services sociaux du Centre-Sud-de-l’Île-de-Montréal | D110: Implantation | E110: Bâtiment | F110: 1 | G110: 06-Montréal | H110: Montréal | I110: TE | J110: SU | K110: 60870.47 | L110: 2016-04-27 | M110: 2016-04-01 | N110: 228191 | R110: 60870.47 | AA110: =SUM(O110:W110) -> 60870.47 | AB110: =SUM(O110:Z110) -> 60870.47
A111: 87 | B111: Centre jeunesse de Montréal Cité des Prairies - Projet d'économie d'énergie | C111: Centre intégré universitaire de santé et de services sociaux du Centre-Sud-de-l’Île-de-Montréal | D111: Implantation | E111: Bâtiment | F111: 1 | G111: 06-Montréal | H111: Montréal | I111: TE | J111: SU | K111: 44807.07 | L111: 2016-04-12 | M111: 2016-04-01 | N111: 150294 | R111: 44807.07 | AA111: =SUM(O111:W111) -> 44807.07 | AB111: =SUM(O111:Z111) -> 44807.07
A112: 88 | B112: Centre jeunesse de Montréal édifice Rose-Virginie Pelletier - Projet d'économie d'énergie | C112: Centre intégré universitaire de santé et de services sociaux du Centre-Sud-de-l’Île-de-Montréal | D112: Implantation | E112: Bâtiment | F112: 1 | G112: 06-Montréal | H112: Montréal | I112: TE | J112: SU | K112: 58205.68 | L112: 2016-04-27 | M112: 2016-04-01 | N112: 268962 | R112: 58205.68 | AA112: =SUM(O112:W112) -> 58205.68 | AB112: =SUM(O112:Z112) -> 58205.68
A113: 89 | B113: Centre jeunesse de Montréal édifice Décarie - Projet d'économie d'énergie | C113: Centre intégré universitaire de santé et de services sociaux du Centre-Sud-de-l’Île-de-Montréal | D113: Implantation | E113: Bâtiment | F113: 1 | G113: 06-Montréal | H113: Montréal | I113: TE | J113: SU | K113: 48914.81 | L113: 2016-04-12 | M113: 2016-04-01 | N113: 234379 | R113: 48914.81 | AA113: =SUM(O113:W113) -> 48914.81 | AB113: =SUM(O113:Z113) -> 48914.81
A114: 90 | B114: Centre jeunesse de Montréal Mont Saint-Antoine - Projet d'économie d'énergie | C114: Centre intégré universitaire de santé et de services sociaux du Centre-Sud-de-l’Île-de-Montréal | D114: Implantation | E114: Bâtiment | F114: 1 | G114: 06-Montréal | H114: Montréal | I114: TE | J114: SU | K114: 94353.18 | L114: 2016-04-27 | M114: 2016-04-01 | N114: 1050286 | R114: 94353.18 | AA114: =SUM(O114:W114) -> 94353.18 | AB114: =SUM(O114:Z114) -> 94353.18
A115: 91 | B115: Optimisation du système de réfrigération de l'aréna | C115: Ville de Chambly | D115: Implantation | E115: Bâtiment | F115: 1 | G115: 16-Montérégie | H115: Chambly | I115: TE | J115: SU | K115: 63353.4646 | L115: 2016-09-01 | M115: 2019-04-01 | N115: 163321 | R115: 15838.36745 | U115: 42825.54533 | AA115: =SUM(O115:W115) -> 58663.91278 | AB115: =SUM(O115:Z115) -> 58663.91278
A116: 92 | B116: Remplacement des chaudières au mazout léger par des systèmes électriques zonés | C116: La Fabrique de la paroisse de Saint-Eustache | D116: Implantation | E116: Bâtiment | F116: 1 | G116: 15-Laurentides | H116: Saint-Eustache | I116: TE | J116: SU | K116: 126341.25 | L116: 2016-02-10 | M116: 2016-04-01 | N116: 189477 | R116: 125607.75 | AA116: =SUM(O116:W116) -> 125607.75 | AB116: =SUM(O116:Z116) -> 125607.75
A117: 93 | B117: Remplacement des chaudières au mazout léger par des systèmes électriques zonés | C117: La Fabrique de la paroisse de Saint-André de La Sarre | D117: Implantation | E117: Bâtiment | F117: 1 | G117: 08-Abitibi-Témiscamingue | H117: La Sarre | I117: TE | J117: SU | K117: 122475 | L117: 2016-03-16 | M117: 2016-04-01 | N117: 150943 | R117: 101086.35 | AA117: =SUM(O117:W117) -> 101086.35 | AB117: =SUM(O117:Z117) -> 101086.35
A118: 94 | B118: Analyse pour l'ajout de chauffage et de climatisation pour l'ensemble du pavillon sportif du collège de Maisonneuve | C118: Collège de Maisonneuve | D118: Analyse | E118: Bâtiment | F118: 1 | G118: 06-Montréal | H118: Montréal | I118: TE | J118: SU | K118: 25000 | L118: 2016-01-27 | M118: 2017-02-23 | N118: 951844 | R118: 25000 | AA118: =SUM(O118:W118) -> 25000 | AB118: =SUM(O118:Z118) -> 25000
A119: 95 | B119: Implantation de mesures en efficacité énergétique en mode ESE | C119: CIUSSS Saguenay-Lac-Saint-Jean | D119: Implantation | E119: Bâtiment | F119: 1 | G119: 02-Saguenay--Lac-Saint-Jean | H119: Saguenay | I119: TE | J119: SU | K119: 1810843.57 | L119: 2016-12-19 | M119: 2018-04-01 | N119: 5284554 | R119: 452710.89 | S119: 452710.89 | T119: 905421.79 | AA119: =SUM(O119:W119) -> 1810843.57 | AB119: =SUM(O119:Z119) -> 1810843.57
A120: 96 | B120: Remplacement des chaudières au mazout léger par des systèmes électriques zonés | C120: La Fabrique de la paroisse Coeur-Immaculé-de-Marie | D120: Implantation | E120: Bâtiment | F120: 1 | G120: 05-Estrie | H120: Wotton | I120: TE | J120: SU | K120: 78339.28 | L120: 2016-02-24 | M120: 2016-04-01 | N120: 135632 | R120: 78339.28 | AA120: =SUM(O120:W120) -> 78339.28 | AB120: =SUM(O120:Z120) -> 78339.28
A121: 97 | B121: Récupération de chaleur sur système de réfrigération | C121: Métro Richelieu inc. | D121: Implantation | E121: Bâtiment | F121: 1 | G121: 12-Chaudière-Appalaches | H121: Saint-Georges | I121: TE | J121: SU | K121: 10072.76 | L121: 2017-07-21T10:54:52 | M121: 2018-04-01 | N121: 57541 | AA121: =SUM(O121:W121) -> 0 | AB121: =SUM(O121:Z121) -> 0
A122: 98 | B122: Conversion partielle du système de chauffage au mazout léger par l'ajout d'une chaudière électrique | C122: La Fabrique de la Paroisse de Sainte-Thérèse-d'Avila | D122: Implantation | E122: Bâtiment | F122: 1 | G122: 02-Saguenay--Lac-Saint-Jean | H122: Dolbeau-Mistassini | I122: TE | J122: SU | K122: 23853 | L122: 2016-02-18 | M122: 2016-04-01 | N122: 37565 | Q122: 17889.75 | R122: 5963.25 | AA122: =SUM(O122:W122) -> 23853 | AB122: =SUM(O122:Z122) -> 23853
A123: 99 | B123: Réfrigération CO2 avec récupération de chaleur (08547) | C123: Sobeys Capital Incorporée | D123: Implantation | E123: Bâtiment | F123: 1 | G123: 06-Montréal | H123: Montréal | I123: TE | J123: SU | K123: 0 | L123: 2016-07-29 | M123: 2016-04-01 | N123: 56250 | AA123: =SUM(O123:W123) -> 0 | AB123: =SUM(O123:Z123) -> 0
A124: 100 | B124: Analyse d'efficacité énergétique dans le but de réduire les gaz à effets de serre | C124: Centre de services scolaire des Hautes-Rivières | D124: Analyse | E124: Bâtiment | F124: 1 | G124: 16-Montérégie | H124: Saint-Blaise-sur-Richelieu | I124: TE | J124: SU | K124: 4250 | L124: 2015-12-07 | M124: 2016-03-15 | N124: 8500 | Q124: 4250 | AA124: =SUM(O124:W124) -> 4250 | AB124: =SUM(O124:Z124) -> 4250
A125: 101 | B125: Optimisation de la récupération de biogaz | C125: Régie de Gestion des Matières Résiduelles de la Mauricie | D125: Analyse | E125: Bâtiment | F125: 1 | G125: 04-Mauricie | H125: Saint-Étienne-des-Grès | I125: TE | J125: SU | K125: 9980 | L125: 2015-12-21 | M125: 2016-04-27 | N125: 19960 | Q125: 4990 | R125: 4990 | AA125: =SUM(O125:W125) -> 9980 | AB125: =SUM(O125:Z125) -> 9980
A126: 102 | B126: Conversion du système de chauffage au mazout vers l'électricité | C126: La Fabrique de la paroisse de Notre-Dame-de-Bonsecours | D126: Implantation | E126: Bâtiment | F126: 1 | G126: 07-Outaouais | H126: Montebello | I126: TE | J126: SU | K126: 71583 | L126: 2016-01-12 | M126: 2016-11-28 | N126: 119969 | Q126: 35791.5 | R126: 34940.58 | AA126: =SUM(O126:W126) -> 70732.08 | AB126: =SUM(O126:Z126) -> 70732.08
A127: 103 | B127: Projet d’optimisation de la chaufferie au foyer de Havre-Saint-Pierre | C127: CISSS de la Côte-Nord | D127: Implantation | E127: Bâtiment | F127: 1 | G127: 09-Côte-Nord | H127: Havre-Saint-Pierre | I127: TE | J127: SU | K127: 101016.12 | L127: 2016-04-27 | M127: 2018-11-05 | N127: 209802 | R127: 50508.06 | S127: 25254.03 | T127: 25254.03 | AA127: =SUM(O127:W127) -> 101016.12 | AB127: =SUM(O127:Z127) -> 101016.12
A128: 104 | B128: Remplacement d'une chaudière mazout léger par une chaudière électrique | C128: Fabrique de la paroisse de Notre-Dame-de-Lourdes | D128: Implantation | E128: Bâtiment | F128: 1 | G128: 01-Bas-Saint-Laurent | H128: Mont-Joli | I128: TE | J128: SU | K128: 15817.91 | L128: 2015-12-14 | M128: 2018-04-26 | N128: 30226 | Q128: 11863.44 | T128: 3954.47 | AA128: =SUM(O128:W128) -> 15817.91 | AB128: =SUM(O128:Z128) -> 15817.91
A129: 105 | B129: Réfrigération CO2 avec récupération de chaleur (88086) | C129: Sobeys Capital Incorporée | D129: Implantation | E129: Bâtiment | F129: 1 | G129: 07-Outaouais | H129: Cantley | I129: TE | J129: SU | K129: 0 | L129: 2016-10-18 | M129: 2018-08-22 | N129: 56250 | AA129: =SUM(O129:W129) -> 0 | AB129: =SUM(O129:Z129) -> 0
A130: 106 | B130: Conversion du mazout vers des thermopompes électriques | C130: ÉnerProx inc. | D130: Implantation | E130: Bâtiment | F130: 1 | G130: 17-Centre-du-Québec | H130: Victoriaville | I130: TE | J130: SU | K130: 22514.42 | L130: 2015-12-04 | M130: 2018-04-01 | N130: 41596 | Q130: 5628.6 | T130: 16885.82 | AA130: =SUM(O130:W130) -> 22514.42 | AB130: =SUM(O130:Z130) -> 22514.42
A131: 107 | B131: Aréna Henri-Desjardins - Étude en efficacité énergétique | C131: Ville de Baie-Comeau | D131: Analyse | E131: Bâtiment | F131: 1 | G131: 09-Côte-Nord | H131: Baie-Comeau | I131: TE | J131: SU | K131: 9750 | L131: 2016-01-14 | M131: 2016-07-14 | N131: 19500 | R131: 9750 | AA131: =SUM(O131:W131) -> 9750 | AB131: =SUM(O131:Z131) -> 9750
A132: 108 | B132: C5464-TRIV Implantation du produit écoAZUR | C132: Le Trois-Rivières (2014) inc. | D132: Implantation | E132: Bâtiment | F132: 1 | G132: 04-Mauricie | H132: Trois-Rivières | I132: TE | J132: SU | K132: 34648.21 | L132: 2016-06-09 | M132: 2016-04-01 | N132: 62200 | R132: 34648.21 | AA132: =SUM(O132:W132) -> 34648.21 | AB132: =SUM(O132:Z132) -> 34648.21
A133: 109 | B133: C5465-CAPT Implantation du produit écoAZUR | C133: Le Bouvier inc. | D133: Implantation | E133: Bâtiment | F133: 1 | G133: 03-Capitale-Nationale | H133: Québec | I133: TE | J133: SU | K133: 34648.21 | L133: 2016-06-09 | M133: 2016-04-01 | N133: 62200 | R133: 34648.21 | AA133: =SUM(O133:W133) -> 34648.21 | AB133: =SUM(O133:Z133) -> 34648.21
A134: 110 | B134: C5466-CMAD Implantation du produit écoAZUR | C134: Restaurant CAP (2014) inc. | D134: Implantation | E134: Bâtiment | F134: 1 | G134: 04-Mauricie | H134: Trois-Rivières | I134: TE | J134: SU | K134: 34648.21 | L134: 2016-06-09 | M134: 2016-04-01 | N134: 62200 | R134: 34648.21 | AA134: =SUM(O134:W134) -> 34648.21 | AB134: =SUM(O134:Z134) -> 34648.21
A135: 111 | B135: C5467-CHLB Implantation du produit écoAZUR | C135: Restaurant Le CHLB inc. | D135: Implantation | E135: Bâtiment | F135: 1 | G135: 03-Capitale-Nationale | H135: Québec | I135: TE | J135: SU | K135: 34648.21 | L135: 2016-06-09 | M135: 2016-04-01 | N135: 62200 | R135: 34648.21 | AA135: =SUM(O135:W135) -> 34648.21 | AB135: =SUM(O135:Z135) -> 34648.21
A136: 112 | B136: C5468-CHNY Implantation du produit écoAZUR | C136: Restaurant Le CHNY inc. | D136: Implantation | E136: Bâtiment | F136: 1 | G136: 12-Chaudière-Appalaches | H136: Lévis | I136: TE | J136: SU | K136: 34648.21 | L136: 2016-06-09 | M136: 2016-04-01 | N136: 62200 | R136: 34648.21 | AA136: =SUM(O136:W136) -> 34648.21 | AB136: =SUM(O136:Z136) -> 34648.21
A137: 113 | B137: C5469-DNCA Implantation du produit écoAZUR | C137: Restaurant Donnacona (2014) inc. | D137: Implantation | E137: Bâtiment | F137: 1 | G137: 03-Capitale-Nationale | H137: Donnacona | I137: TE | J137: SU | K137: 34648.21 | L137: 2016-06-09 | M137: 2016-04-01 | N137: 62200 | R137: 34648.21 | AA137: =SUM(O137:W137) -> 34648.21 | AB137: =SUM(O137:Z137) -> 34648.21
A138: 114 | B138: C5470-DRUM Implantation du produit écoAZUR | C138: Le Drummondvillois (2014) inc. | D138: Implantation | E138: Bâtiment | F138: 1 | G138: 17-Centre-du-Québec | H138: Drummondville | I138: TE | J138: SU | K138: 34648.21 | L138: 2016-06-09 | M138: 2016-04-01 | N138: 62200 | R138: 32947.51 | AA138: =SUM(O138:W138) -> 32947.51 | AB138: =SUM(O138:Z138) -> 32947.51
A139: 115 | B139: C5471-DUBG Implantation du produit écoAZUR | C139: Martin Brie inc. | D139: Implantation | E139: Bâtiment | F139: 1 | G139: 03-Capitale-Nationale | H139: Québec | I139: TE | J139: SU | K139: 34648.21 | L139: 2016-06-09 | M139: 2016-04-01 | N139: 62200 | R139: 34648.21 | AA139: =SUM(O139:W139) -> 34648.21 | AB139: =SUM(O139:Z139) -> 34648.21
A140: 116 | B140: C5472-FLYS Implantation du produit écoAZUR | C140: Le Flys inc. | D140: Implantation | E140: Bâtiment | F140: 1 | G140: 03-Capitale-Nationale | H140: Québec | I140: TE | J140: SU | K140: 34648.21 | L140: 2016-06-09 | M140: 2016-04-01 | N140: 62200 | R140: 34648.21 | AA140: =SUM(O140:W140) -> 34648.21 | AB140: =SUM(O140:Z140) -> 34648.21
A141: 117 | B141: C5473-LZON Implantation du produit écoAZUR | C141: Restaurant Alauzon (2014) inc. | D141: Implantation | E141: Bâtiment | F141: 1 | G141: 12-Chaudière-Appalaches | H141: Lévis | I141: TE | J141: SU | K141: 34648.21 | L141: 2016-06-09 | M141: 2016-04-01 | N141: 62200 | R141: 34648.21 | AA141: =SUM(O141:W141) -> 34648.21 | AB141: =SUM(O141:Z141) -> 34648.21
A142: 118 | B142: C5474-NCHT Implantation du produit écoAZUR | C142: Restaurant Neufchâtel inc. | D142: Implantation | E142: Bâtiment | F142: 1 | G142: 03-Capitale-Nationale | H142: Québec | I142: TE | J142: SU | K142: 34648.21 | L142: 2016-06-09 | M142: 2016-04-01 | N142: 62200 | R142: 34648.21 | AA142: =SUM(O142:W142) -> 34648.21 | AB142: =SUM(O142:Z142) -> 34648.21
A143: 119 | B143: C5475-STMA Implantation du produit écoAZUR | C143: Le STMA (2014) inc. | D143: Implantation | E143: Bâtiment | F143: 1 | G143: 12-Chaudière-Appalaches | H143: Sainte-Marie | I143: TE | J143: SU | K143: 34648.21 | L143: 2016-06-09 | M143: 2016-04-01 | N143: 62200 | R143: 34648.21 | AA143: =SUM(O143:W143) -> 34648.21 | AB143: =SUM(O143:Z143) -> 34648.21
A144: 120 | B144: Analyse de récupération d'énergie au Centre sportif Les 2 Glaces | C144: Ville de Candiac | D144: Analyse | E144: Bâtiment | F144: 1 | G144: 16-Montérégie | H144: Candiac | I144: TE | J144: SU | K144: 4100 | L144: 2016-02-02 | M144: 2016-11-08 | N144: 9443 | R144: 4100 | AA144: =SUM(O144:W144) -> 4100 | AB144: =SUM(O144:Z144) -> 4100
A145: 121 | B145: Projet d'économie d'énergie Capial BLF | C145: Capital BLF inc. | D145: Implantation | E145: Bâtiment | F145: 1 | G145: 03-Capitale-Nationale | H145: Québec | I145: TE | J145: SU | K145: 104678.06 | L145: 2018-03-16T15:40:48 | M145: 2018-04-01 | N145: 214869 | T145: 104678.06 | AA145: =SUM(O145:W145) -> 104678.06 | AB145: =SUM(O145:Z145) -> 104678.06
A146: 122 | B146: Mise à niveau de l'aréna Francis-Bouillon | C146: Ville de Montréal | D146: Implantation | E146: Bâtiment | F146: 1 | G146: 06-Montréal | H146: Montréal | I146: TE | J146: SU | K146: 137551.91 | L146: 2017-05-26 | M146: 2018-04-01 | N146: 399272 | S146: 103163.94 | T146: 8711.46 | AA146: =SUM(O146:W146) -> 111875.4 | AB146: =SUM(O146:Z146) -> 111875.4
A147: 123 | B147: Projet d’efficacité énergétique - Hôpital Sainte-Anne-de-Beaupré | C147: CIUSSS de la Capitale-Nationale | D147: Implantation | E147: Bâtiment | F147: 1 | G147: 03-Capitale-Nationale | H147: Beaupré | I147: TE | J147: SU | K147: 754631.19 | L147: 2016-09-14 | M147: 2018-04-01 | N147: 2200225 | R147: 377315.6 | S147: 188657.8 | T147: 188657.79 | AA147: =SUM(O147:W147) -> 754631.19 | AB147: =SUM(O147:Z147) -> 754631.19
A148: 124 | B148: Réfrigération CO2 avec récupération de chaleur (000259) | C148: Sobeys Capital Incorporée | D148: Implantation | E148: Bâtiment | F148: 1 | G148: 06-Montréal | H148: Montréal | I148: TE | J148: SU | K148: 0 | L148: 2016-12-13 | M148: 2018-04-12 | N148: 56250 | AA148: =SUM(O148:W148) -> 0 | AB148: =SUM(O148:Z148) -> 0
A149: 125 | B149: Étude de faisabilité - Efficacité énergétique dans un supermarché | C149: L'Inter Marché | D149: Analyse | E149: Bâtiment | F149: 1 | G149: 06-Montréal | H149: Montréal | I149: TE | J149: SU | K149: 2500 | L149: 2016-01-15 | M149: 2016-03-14 | N149: 5000 | Q149: 2500 | AA149: =SUM(O149:W149) -> 2500 | AB149: =SUM(O149:Z149) -> 2500
A150: 126 | B150: Rallongement de ligne électrique pour le relais routier | C150: Société de développement de la Baie-James | D150: Analyse | E150: Bâtiment | F150: 1 | G150: 10-Nord-du-Québec | H150: Matagami | I150: TE | J150: SU | K150: 25350 | L150: 2016-02-10 | M150: 2016-04-01 | N150: 31650 | Q150: 12675 | R150: 3150 | AA150: =SUM(O150:W150) -> 15825 | AB150: =SUM(O150:Z150) -> 15825
A151: 127 | B151: Conversion partielle du système de chauffage au mazout à un système de chauffage biénergie à l’électricité, zoné, et au mazout | C151: Municipalité du Canton de Saint-Camille | D151: Implantation | E151: Bâtiment | F151: 1 | G151: 05-Estrie | H151: Saint-Camille | I151: TE | J151: SU | K151: 38775.08 | L151: 2016-02-19 | M151: 2016-04-01 | N151: 55800 | R151: 38775.08 | AA151: =SUM(O151:W151) -> 38775.08 | AB151: =SUM(O151:Z151) -> 38775.08
A152: 128 | B152: Centre Hébergement Alphonse Bonenfant Projet d'efficacité énergétique | C152: CIUSSS de la Capitale-Nationale | D152: Implantation | E152: Bâtiment | F152: 1 | G152: 03-Capitale-Nationale | H152: Saint-Pierre-de-l'Île-d'Orléans | I152: TE | J152: SU | K152: 42132.02 | L152: 2016-06-20 | M152: 2018-04-01 | N152: 78909 | R152: 10533 | S152: 21066 | T152: 10533.02 | AA152: =SUM(O152:W152) -> 42132.02 | AB152: =SUM(O152:Z152) -> 42132.02
A153: 129 | B153: Conversion du système de chauffage au mazout léger vers un système électrique - École Jacques Rocheleau | C153: Centre de services scolaire des Patriotes | D153: Implantation | E153: Bâtiment | F153: 1 | G153: 16-Montérégie | H153: Saint-Basile-le-Grand | I153: TE | J153: SU | K153: 138365.16 | L153: 2016-07-25 | M153: 2019-03-14 | N153: 234240 | R153: 34591.29 | T153: -22996.01 | AA153: =SUM(O153:W153) -> 11595.28 | AB153: =SUM(O153:Z153) -> 11595.28
A154: 130 | B154: Projet d'efficacité énergétique-École L'Arpège | C154: Centre de services scolaire des Patriotes | D154: Implantation | E154: Bâtiment | F154: 1 | G154: 16-Montérégie | H154: Sainte-Julie | I154: TE | J154: SU | K154: 9489.53 | L154: 2016-06-29 | M154: 2018-04-01 | N154: 38666 | R154: 2372.38 | S154: 4744.76 | T154: 2372.39 | AA154: =SUM(O154:W154) -> 9489.53 | AB154: =SUM(O154:Z154) -> 9489.53
A155: 131 | B155: Conversion du système de chauffage au mazout léger vers un système électrique - École Le Rucher | C155: Centre de services scolaire des Patriotes | D155: Implantation | E155: Bâtiment | F155: 1 | G155: 16-Montérégie | H155: Sainte-Julie | I155: TE | J155: SU | K155: 63110.74 | L155: 2016-07-29 | M155: 2018-04-01 | N155: 302115 | R155: 15777.68 | T155: 47333.06 | AA155: =SUM(O155:W155) -> 63110.74 | AB155: =SUM(O155:Z155) -> 63110.74
A156: 132 | B156: Conversion du système de chauffage au mazout léger vers un système électrique - École de l'Odyssée | C156: Centre de services scolaire des Patriotes | D156: Implantation | E156: Bâtiment | F156: 1 | G156: 16-Montérégie | H156: Saint-Amable | I156: TE | J156: SU | K156: 39250.73 | L156: 2016-06-27 | M156: 2018-04-01 | N156: 169043 | R156: 9812.68 | T156: 29438.05 | AA156: =SUM(O156:W156) -> 39250.73 | AB156: =SUM(O156:Z156) -> 39250.73
A157: 133 | B157: Conversion du système de chauffage au mazout léger vers un système électrique - École Au-Fil-de-l'Eau (pavillon Desrochers) | C157: Centre de services scolaire des Patriotes | D157: Implantation | E157: Bâtiment | F157: 1 | G157: 16-Montérégie | H157: Mont-Saint-Hilaire | I157: TE | J157: SU | K157: 37770.23 | L157: 2016-06-27 | M157: 2018-04-01 | N157: 83817 | R157: 9442.56 | S157: 18885.12 | T157: 9442.55 | AA157: =SUM(O157:W157) -> 37770.23 | AB157: =SUM(O157:Z157) -> 37770.23
A158: 134 | B158: Conversion du système de chauffage au mazout léger vers un système électrique - École Louis-Hippolyte-Lafontaine | C158: Centre de services scolaire des Patriotes | D158: Implantation | E158: Bâtiment | F158: 1 | G158: 16-Montérégie | H158: Boucherville | I158: TE | J158: SU | K158: 117454.54 | L158: 2016-08-01 | M158: 2018-04-01 | N158: 169606 | R158: 29363.64 | T158: 88090.9 | AA158: =SUM(O158:W158) -> 117454.54 | AB158: =SUM(O158:Z158) -> 117454.54
A159: 135 | B159: Conversion du système de chauffage au mazout léger vers un système électrique - École Ludger-Duvernay | C159: Centre de services scolaire des Patriotes | D159: Implantation | E159: Bâtiment | F159: 1 | G159: 16-Montérégie | H159: Verchères | I159: TE | J159: SU | K159: 102577.82 | L159: 2016-07-29 | M159: 2018-04-01 | N159: 172095 | R159: 25644.46 | S159: 51288.92 | T159: 25644.44 | AA159: =SUM(O159:W159) -> 102577.82 | AB159: =SUM(O159:Z159) -> 102577.82
A160: 136 | B160: Projet d'efficacité énergétique - École secondaire Mont-Bruno | C160: Centre de services scolaire des Patriotes | D160: Implantation | E160: Bâtiment | F160: 1 | G160: 16-Montérégie | H160: Saint-Bruno-de-Montarville | I160: TE | J160: SU | K160: 98594.0865 | L160: 2016-08-16 | M160: 2020-04-01 | N160: 434804 | R160: 23474.78 | V160: 75119.3065 | AA160: =SUM(O160:W160) -> 98594.0865 | AB160: =SUM(O160:Z160) -> 98594.0865
A161: 137 | B161: Conversion partielle du système de chauffage au mazout léger vers un système électrique - École De la Broquerie | C161: Centre de services scolaire des Patriotes | D161: Implantation | E161: Bâtiment | F161: 1 | G161: 16-Montérégie | H161: Boucherville | I161: TE | J161: SU | K161: 93502.09 | L161: 2016-08-16 | M161: 2018-04-01 | N161: 151290 | R161: 23375.52 | T161: 70126.57 | AA161: =SUM(O161:W161) -> 93502.09 | AB161: =SUM(O161:Z161) -> 93502.09
A162: 138 | B162: Conversion du système de chauffage au mazout léger vers un système électrique - École Notre-Dame 1 | C162: Centre de services scolaire des Patriotes | D162: Implantation | E162: Bâtiment | F162: 1 | G162: 16-Montérégie | H162: Otterburn Park | I162: TE | J162: SU | K162: 115632.81 | L162: 2016-08-16 | M162: 2018-04-01 | N162: 221495 | R162: 28908.2 | S162: 57816.4 | T162: 28908.21 | AA162: =SUM(O162:W162) -> 115632.81 | AB162: =SUM(O162:Z162) -> 115632.81
A163: 139 | B163: Conversion du système de chauffage au mazout léger vers un système électrique - École Notre-Dame 2 | C163: Centre de services scolaire des Patriotes | D163: Implantation | E163: Bâtiment | F163: 1 | G163: 16-Montérégie | H163: Otterburn Park | I163: TE | J163: SU | K163: 104711.75 | L163: 2016-08-16 | M163: 2018-04-01 | N163: 191313 | R163: 26177.94 | S163: 52355.88 | T163: 26177.93 | AA163: =SUM(O163:W163) -> 104711.75 | AB163: =SUM(O163:Z163) -> 104711.75
A164: 140 | B164: Conversion du système de chauffage au mazout léger vers un système électrique - École de l'Envolée | C164: Centre de services scolaire des Patriotes | D164: Implantation | E164: Bâtiment | F164: 1 | G164: 16-Montérégie | H164: Saint-Amable | I164: TE | J164: SU | K164: 102099.68 | L164: 2016-08-16 | M164: 2018-04-01 | N164: 168826 | R164: 25524.92 | T164: 76574.76 | AA164: =SUM(O164:W164) -> 102099.68 | AB164: =SUM(O164:Z164) -> 102099.68
A165: 141 | B165: Projet d'efficacité énergétique - École Ozias-Leduc | C165: Centre de services scolaire des Patriotes | D165: Implantation | E165: Bâtiment | F165: 1 | G165: 16-Montérégie | H165: Mont-Saint-Hilaire | I165: TE | J165: SU | K165: 77861.87 | L165: 2016-08-16 | M165: 2018-04-01 | N165: 142047 | R165: 19465.47 | S165: 38930.94 | T165: 19465.46 | AA165: =SUM(O165:W165) -> 77861.87 | AB165: =SUM(O165:Z165) -> 77861.87
A166: 142 | B166: Conversion du système de chauffage au mazout léger vers un système électrique - École Père-Marquette | C166: Centre de services scolaire des Patriotes | D166: Implantation | E166: Bâtiment | F166: 1 | G166: 16-Montérégie | H166: Boucherville | I166: TE | J166: SU | K166: 197590.61 | L166: 2016-08-16 | M166: 2018-04-01 | N166: 506455 | R166: 49397.65 | T166: 108622.22 | AA166: =SUM(O166:W166) -> 158019.87 | AB166: =SUM(O166:Z166) -> 158019.87
A167: 143 | B167: Projet d'efficacité énergétique - École De Mortagne | C167: Centre de services scolaire des Patriotes | D167: Implantation | E167: Bâtiment | F167: 1 | G167: 16-Montérégie | H167: Boucherville | I167: TE | J167: SU | K167: 694013.58 | L167: 2016-08-16 | M167: 2018-04-01 | N167: 1040482 | R167: 173503.4 | T167: 510830.93 | AA167: =SUM(O167:W167) -> 684334.33 | AB167: =SUM(O167:Z167) -> 684334.33
A168: 144 | B168: Projet d'efficacité énergétique - École secondaire Polybel | C168: Centre de services scolaire des Patriotes | D168: Implantation | E168: Bâtiment | F168: 1 | G168: 16-Montérégie | H168: Beloeil | I168: TE | J168: SU | K168: 419693.84 | L168: 2016-08-16 | M168: 2018-04-01 | N168: 627640 | R168: 104923.46 | S168: 104923.46 | T168: 126596.67 | AA168: =SUM(O168:W168) -> 336443.59 | AB168: =SUM(O168:Z168) -> 336443.59
A169: 145 | B169: Conversion du système de chauffage au mazout léger vers un système électrique - École des Trois-Temps | C169: Centre de services scolaire des Patriotes | D169: Implantation | E169: Bâtiment | F169: 1 | G169: 16-Montérégie | H169: Saint-Marc-sur-Richelieu | I169: TE | J169: SU | K169: 105646.2 | L169: 2016-08-16 | M169: 2018-04-01 | N169: 201500 | R169: 26411.55 | S169: 52823.1 | T169: 26411.55 | AA169: =SUM(O169:W169) -> 105646.2 | AB169: =SUM(O169:Z169) -> 105646.2
A170: 146 | B170: Conversion du système de chauffage au mazout léger vers un système électrique - École de Salaberry | C170: Centre de services scolaire des Patriotes | D170: Implantation | E170: Bâtiment | F170: 1 | G170: 16-Montérégie | H170: Chambly | I170: TE | J170: SU | K170: 171239.54 | L170: 2016-08-16 | M170: 2019-05-21 | N170: 263135 | R170: 42809.88 | S170: 85619.76 | U170: -11130.07 | AA170: =SUM(O170:W170) -> 117299.57 | AB170: =SUM(O170:Z170) -> 117299.57
A171: 147 | B171: Conversion du système de chauffage au mazout léger vers un système électrique - École Du Carrousel | C171: Centre de services scolaire des Patriotes | D171: Implantation | E171: Bâtiment | F171: 1 | G171: 16-Montérégie | H171: Varennes | I171: TE | J171: SU | K171: 120656.56 | L171: 2016-08-16 | M171: 2019-03-14 | N171: 244299 | R171: 30164.14 | T171: -10744.29 | AA171: =SUM(O171:W171) -> 19419.85 | AB171: =SUM(O171:Z171) -> 19419.85
A172: 148 | B172: Conversion du système de chauffage au mazout léger vers un système électrique - École St-Charles | C172: Centre de services scolaire des Patriotes | D172: Implantation | E172: Bâtiment | F172: 1 | G172: 16-Montérégie | H172: Saint-Charles-sur-Richelieu | I172: TE | J172: SU | K172: 42810.58 | L172: 2016-08-16 | M172: 2018-04-01 | N172: 93944 | R172: 10702.64 | T172: 32107.94 | AA172: =SUM(O172:W172) -> 42810.58 | AB172: =SUM(O172:Z172) -> 42810.58
A173: 149 | B173: Projet d’efficacité énergétique - Le Pavillon Saint-Basile de l’école Jacques Rocheleau | C173: Centre de services scolaire des Patriotes | D173: Implantation | E173: Bâtiment | F173: 1 | G173: 16-Montérégie | H173: Saint-Basile-le-Grand | I173: TE | J173: SU | K173: 65421.98 | L173: 2016-08-16 | M173: 2019-03-14 | N173: 200678 | R173: 16355.5 | T173: -7435.55 | AA173: =SUM(O173:W173) -> 8919.95 | AB173: =SUM(O173:Z173) -> 8919.95
A174: 150 | B174: Conversion du système de chauffage au mazout léger vers un système électrique - École du Parchemin | C174: Centre de services scolaire des Patriotes | D174: Implantation | E174: Bâtiment | F174: 1 | G174: 16-Montérégie | H174: Carignan | I174: TE | J174: SU | K174: 61798.82 | L174: 2016-08-16 | M174: 2018-04-01 | N174: 152641 | R174: 15449.7 | S174: 30899.4 | T174: 15449.72 | AA174: =SUM(O174:W174) -> 61798.82 | AB174: =SUM(O174:Z174) -> 61798.82
A175: 151 | B175: Conversion du système de chauffage au mazout léger vers un système électrique - École François-Williams | C175: Centre de services scolaire des Patriotes | D175: Implantation | E175: Bâtiment | F175: 1 | G175: 16-Montérégie | H175: Saint-Amable | I175: TE | J175: SU | K175: 98089.11 | L175: 2016-08-16 | M175: 2018-04-01 | N175: 170186 | R175: 24522.28 | S175: 49044.56 | T175: 24522.27 | AA175: =SUM(O175:W175) -> 98089.11 | AB175: =SUM(O175:Z175) -> 98089.11
A176: 152 | B176: Conversion du système de chauffage au mazout léger vers un système électrique - École Georges-Étienne-Cartier | C176: Centre de services scolaire des Patriotes | D176: Implantation | E176: Bâtiment | F176: 1 | G176: 16-Montérégie | H176: Saint-Antoine-sur-Richelieu | I176: TE | J176: SU | K176: 76192.61 | L176: 2016-08-16 | M176: 2018-04-01 | N176: 156086 | R176: 19048.15 | T176: 57144.46 | AA176: =SUM(O176:W176) -> 76192.61 | AB176: =SUM(O176:Z176) -> 76192.61
A177: 153 | B177: Projet d'efficacité énergétique - École d'éducation internationale | C177: Centre de services scolaire des Patriotes | D177: Implantation | E177: Bâtiment | F177: 1 | G177: 16-Montérégie | H177: McMasterville | I177: TE | J177: SU | K177: 210125.64 | L177: 2016-08-16 | M177: 2019-04-01 | N177: 408998 | R177: 52531.41 | U177: 150010.27 | AA177: =SUM(O177:W177) -> 202541.68 | AB177: =SUM(O177:Z177) -> 202541.68
A178: 154 | B178: Remplacement des chaudières au mazout léger par des systèmes électriques zonés | C178: Fabrique Saint-André-Avellin | D178: Implantation | E178: Bâtiment | F178: 1 | G178: 07-Outaouais | H178: Saint-André-Avellin | I178: TE | J178: SU | K178: 84386.84 | L178: 2016-02-24 | M178: 2017-11-27 | N178: 117447 | R178: 63290.13 | S178: 21096.71 | AA178: =SUM(O178:W178) -> 84386.84 | AB178: =SUM(O178:Z178) -> 84386.84
A179: 155 | B179: Réfrigération CO2 avec récupération de chaleur (88734) | C179: Sobeys Capital Incorporée | D179: Implantation | E179: Bâtiment | F179: 1 | G179: 03-Capitale-Nationale | H179: Québec | I179: TE | J179: SU | K179: 0 | L179: 2016-10-18 | M179: 2016-04-01 | N179: 56250 | AA179: =SUM(O179:W179) -> 0 | AB179: =SUM(O179:Z179) -> 0
A180: 156 | B180: Efficacité énergétique au 1212, rue Des Pins | C180: Timbercreek Asset Management inc. | D180: Implantation | E180: Bâtiment | F180: 1 | G180: 06-Montréal | H180: Montréal | I180: TE | J180: SU | K180: 505431.41 | L180: 2016-10-25 | M180: 2017-04-01 | N180: 1050000 | R180: 252715.7 | S180: 252715.71 | AA180: =SUM(O180:W180) -> 505431.41 | AB180: =SUM(O180:Z180) -> 505431.41
A181: 157 | B181: Projet d’efficacité énergétique du CSSS Source Nord | C181: CIUSSS de la Capitale-Nationale | D181: Implantation | E181: Bâtiment | F181: 1 | G181: 03-Capitale-Nationale | H181: Québec | I181: TE | J181: SU | K181: 329179.82 | L181: 2017-01-13 | M181: 2018-04-01 | N181: 675546 | R181: 82294.96 | S181: 164589.92 | T181: 82294.94 | AA181: =SUM(O181:W181) -> 329179.82 | AB181: =SUM(O181:Z181) -> 329179.82
A182: 158 | B182: Projet d’efficacité énergétique – Hôpital Chauveau | C182: CIUSSS de la Capitale-Nationale | D182: Implantation | E182: Bâtiment | F182: 1 | G182: 03-Capitale-Nationale | H182: Québec | I182: TE | J182: SU | K182: 108631.53 | L182: 2016-10-17 | M182: 2018-04-01 | N182: 247228 | R182: 27157.88 | S182: 42315.76 | T182: 39157.89 | AA182: =SUM(O182:W182) -> 108631.53 | AB182: =SUM(O182:Z182) -> 108631.53
A183: 159 | B183: Projet d'efficacité énergétique - Manoir Manrese | C183: 9307-1306 Québec inc. | D183: Implantation | E183: Bâtiment | F183: 1 | G183: 03-Capitale-Nationale | H183: Québec | I183: TE | J183: SU | K183: 64604.84 | L183: 2016-03-23 | M183: 2016-04-01 | N183: 136226 | R183: 64604.84 | AA183: =SUM(O183:W183) -> 64604.84 | AB183: =SUM(O183:Z183) -> 64604.84
A184: 160 | B184: C5525-STJC Implantation du produit écoAZUR | C184: Le STJC inc. | D184: Implantation | E184: Bâtiment | F184: 1 | G184: 12-Chaudière-Appalaches | H184: Lévis | I184: TE | J184: SU | K184: 24517.7 | L184: 2016-06-09 | M184: 2018-11-05 | N184: 44000 | S184: 18388.26 | T184: 6129.44 | AA184: =SUM(O184:W184) -> 24517.7 | AB184: =SUM(O184:Z184) -> 24517.7
A185: 161 | B185: C5527-SHER Implantation du produit écoAZUR | C185: Restaurant Normandin (2014) inc. | D185: Implantation | E185: Bâtiment | F185: 1 | G185: 05-Estrie | H185: Sherbrooke | I185: TE | J185: SU | K185: 34648.21 | L185: 2016-06-09 | M185: 2016-04-01 | N185: 62200 | R185: 34648.21 | AA185: =SUM(O185:W185) -> 34648.21 | AB185: =SUM(O185:Z185) -> 34648.21
A186: 162 | B186: C5528-SJPJ Implantation du produit écoAZUR | C186: Le Port-Jolien (2014) inc. | D186: Implantation | E186: Bâtiment | F186: 1 | G186: 12-Chaudière-Appalaches | H186: Saint-Jean-Port-Joli | I186: TE | J186: SU | K186: 40069.85 | L186: 2016-06-09 | M186: 2016-04-01 | N186: 67000 | R186: 40069.85 | AA186: =SUM(O186:W186) -> 40069.85 | AB186: =SUM(O186:Z186) -> 40069.85
A187: 163 | B187: C5533-ROCHE Implantation du produit écoAZUR | C187: Restaurant La rochette (2014) inc. | D187: Implantation | E187: Bâtiment | F187: 1 | G187: 03-Capitale-Nationale | H187: Québec | I187: TE | J187: SU | K187: 37736.92 | L187: 2016-06-09 | M187: 2016-04-01 | N187: 67000 | R187: 37736.92 | AA187: =SUM(O187:W187) -> 37736.92 | AB187: =SUM(O187:Z187) -> 37736.92
A188: 164 | B188: C5534-LVIS Implantation du produit écoAZUR | C188: Restaurant Lévisien inc. | D188: Implantation | E188: Bâtiment | F188: 1 | G188: 12-Chaudière-Appalaches | H188: Lévis | I188: TE | J188: SU | K188: 40069.85 | L188: 2016-06-09 | M188: 2016-04-01 | N188: 67000 | R188: 40069.85 | AA188: =SUM(O188:W188) -> 40069.85 | AB188: =SUM(O188:Z188) -> 40069.85
A189: 165 | B189: C5535-MONY Implantation du produit écoAZUR | C189: Restaurant Montmagny (2014) inc. | D189: Implantation | E189: Bâtiment | F189: 1 | G189: 12-Chaudière-Appalaches | H189: Montmagny | I189: TE | J189: SU | K189: 40069.85 | L189: 2016-06-09 | M189: 2016-04-01 | N189: 67000 | R189: 38034.81 | AA189: =SUM(O189:W189) -> 38034.81 | AB189: =SUM(O189:Z189) -> 38034.81
A190: 166 | B190: C5543-HRIV Implantation du produit écoAZUR | C190: Restaurant Henri IV (2014) inc. | D190: Implantation | E190: Bâtiment | F190: 1 | G190: 03-Capitale-Nationale | H190: Québec | I190: TE | J190: SU | K190: 11676 | L190: 2016-06-09 | M190: 2018-11-05 | N190: 35000 | S190: 8757 | T190: 2919 | AA190: =SUM(O190:W190) -> 11676 | AB190: =SUM(O190:Z190) -> 11676
A191: 167 | B191: C5542-DVAL Implantation du produit écoAZUR | C191: Restaurant Normandin Ste-Foy (2014) inc. | D191: Implantation | E191: Bâtiment | F191: 1 | G191: 03-Capitale-Nationale | H191: Québec | I191: TE | J191: SU | K191: 9775 | L191: 2016-06-09 | M191: 2018-11-05 | N191: 22000 | S191: 7331.25 | T191: 2443.75 | AA191: =SUM(O191:W191) -> 9775 | AB191: =SUM(O191:Z191) -> 9775
A192: 168 | B192: C5529-RIKI Implantation du produit écoAZUR | C192: Le Rimouskais (2014) inc. | D192: Implantation | E192: Bâtiment | F192: 1 | G192: 01-Bas-Saint-Laurent | H192: Rimouski | I192: TE | J192: SU | K192: 40069.85 | L192: 2016-06-09 | M192: 2018-11-05 | N192: 67000 | S192: 30052.38 | T192: 10017.47 | AA192: =SUM(O192:W192) -> 40069.85 | AB192: =SUM(O192:Z192) -> 40069.85
A193: 169 | B193: C5524-STGO Implantation du produit écoAZUR | C193: Restaurant St-Georges (2014) inc. | D193: Implantation | E193: Bâtiment | F193: 1 | G193: 12-Chaudière-Appalaches | H193: Saint-Georges | I193: TE | J193: SU | K193: 34648.21 | L193: 2016-06-09 | M193: 2018-04-01 | N193: 62200 | S193: 25986.15 | T193: 8662.06 | AA193: =SUM(O193:W193) -> 34648.21 | AB193: =SUM(O193:Z193) -> 34648.21
A194: 170 | B194: C5526-CITÉ Implantation du produit écoAZUR | C194: Restaurant Normandin (2014) inc. | D194: Implantation | E194: Bâtiment | F194: 1 | G194: 03-Capitale-Nationale | H194: Québec | I194: TE | J194: SU | K194: 34648.21 | L194: 2016-06-09 | M194: 2016-04-01 | N194: 62200 | R194: 34648.21 | AA194: =SUM(O194:W194) -> 34648.21 | AB194: =SUM(O194:Z194) -> 34648.21
A195: 171 | B195: C5530-RVLOU Implantation du produit écoAZUR | C195: Le Riveloup (2014) inc. | D195: Implantation | E195: Bâtiment | F195: 1 | G195: 01-Bas-Saint-Laurent | H195: Rivière-du-Loup | I195: TE | J195: SU | K195: 40069.85 | L195: 2016-06-09 | M195: 2016-04-01 | N195: 67000 | R195: 39515 | AA195: =SUM(O195:W195) -> 39515 | AB195: =SUM(O195:Z195) -> 39515
A196: 172 | B196: C5531-STJU Implantation du produit écoAZUR | C196: Restaurant le STJU inc. | D196: Implantation | E196: Bâtiment | F196: 1 | G196: 16-Montérégie | H196: Sainte-Julie | I196: TE | J196: SU | K196: 34648.21 | L196: 2016-06-09 | M196: 2016-04-01 | N196: 62200 | R196: 34648.21 | AA196: =SUM(O196:W196) -> 34648.21 | AB196: =SUM(O196:Z196) -> 34648.21
A197: 173 | B197: C5532-STCA Implantation du produit écoAZUR | C197: Restaurant BF (2014) inc. | D197: Implantation | E197: Bâtiment | F197: 1 | G197: 03-Capitale-Nationale | H197: Québec | I197: TE | J197: SU | K197: 40069.85 | L197: 2016-06-09 | M197: 2016-04-01 | N197: 67000 | R197: 40069.85 | AA197: =SUM(O197:W197) -> 40069.85 | AB197: =SUM(O197:Z197) -> 40069.85
A198: 174 | B198: C5541-VBEL Implantation du produit écoAZUR | C198: Restaurant VB (2014) inc. | D198: Implantation | E198: Bâtiment | F198: 1 | G198: 03-Capitale-Nationale | H198: Québec | I198: TE | J198: SU | K198: 11676 | L198: 2016-06-09 | M198: 2016-04-01 | N198: 49800 | R198: 11676 | AA198: =SUM(O198:W198) -> 11676 | AB198: =SUM(O198:Z198) -> 11676
A199: 175 | B199: C5539-GRBY Implantation du produit écoAZUR | C199: Restaurant Normandin (2014) inc. | D199: Implantation | E199: Bâtiment | F199: 1 | G199: 05-Estrie | H199: Granby | I199: TE | J199: SU | K199: 24010.13 | L199: 2016-06-09 | M199: 2018-10-19 | N199: 45800 | S199: 18007.59 | T199: 6002.54 | AA199: =SUM(O199:W199) -> 24010.13 | AB199: =SUM(O199:Z199) -> 24010.13
A200: 176 | B200: C5538-DCHB Implantation du produit écoAZUR | C200: Restaurant Deschambault (2014) inc. | D200: Implantation | E200: Bâtiment | F200: 1 | G200: 03-Capitale-Nationale | H200: Deschambault-Grondines | I200: TE | J200: SU | K200: 40069.85 | L200: 2016-06-09 | M200: 2016-04-01 | N200: 67000 | R200: 40069.85 | AA200: =SUM(O200:W200) -> 40069.85 | AB200: =SUM(O200:Z200) -> 40069.85
A201: 177 | B201: C5537-STAN Implantation du produit écoAZUR | C201: Le St-Anselme inc. | D201: Implantation | E201: Bâtiment | F201: 1 | G201: 12-Chaudière-Appalaches | H201: Saint-Anselme | I201: TE | J201: SU | K201: 40069.85 | L201: 2016-06-09 | M201: 2016-04-01 | N201: 67000 | R201: 40069.85 | AA201: =SUM(O201:W201) -> 40069.85 | AB201: =SUM(O201:Z201) -> 40069.85
A202: 178 | B202: C5536-MOJO Implantation du produit écoAZUR | C202: Restaurant le Mont-Jolien inc. | D202: Implantation | E202: Bâtiment | F202: 1 | G202: 01-Bas-Saint-Laurent | H202: Mont-Joli | I202: TE | J202: SU | K202: 40069.85 | L202: 2016-06-09 | M202: 2016-04-01 | N202: 67000 | R202: 40069.85 | AA202: =SUM(O202:W202) -> 40069.85 | AB202: =SUM(O202:Z202) -> 40069.85
A203: 179 | B203: C5544-ORSV Implantation du produit écoAZUR | C203: Restaurant BDJ (2014) inc. | D203: Implantation | E203: Bâtiment | F203: 1 | G203: 03-Capitale-Nationale | H203: Québec | I203: TE | J203: SU | K203: 9775 | L203: 2016-06-09 | M203: 2018-04-01 | N203: 22000 | S203: 7331.25 | T203: 2443.75 | AA203: =SUM(O203:W203) -> 9775 | AB203: =SUM(O203:Z203) -> 9775
A204: 180 | B204: C5545-JGAU Implantation du produit écoAZUR | C204: Le Gauvinois (2014) inc. | D204: Implantation | E204: Bâtiment | F204: 1 | G204: 03-Capitale-Nationale | H204: Québec | I204: TE | J204: SU | K204: 9775 | L204: 2016-06-09 | M204: 2018-11-05 | N204: 22000 | S204: 7331.25 | T204: 2443.75 | AA204: =SUM(O204:W204) -> 9775 | AB204: =SUM(O204:Z204) -> 9775
A205: 181 | B205: C5546-BSTA Implantation du produit écoAZUR | C205: Le Beauport Ste-Anne (2014) inc. | D205: Implantation | E205: Bâtiment | F205: 1 | G205: 03-Capitale-Nationale | H205: Québec | I205: TE | J205: SU | K205: 9775 | L205: 2016-06-09 | M205: 2018-04-01 | N205: 22000 | S205: 7331.25 | T205: 2443.75 | AA205: =SUM(O205:W205) -> 9775 | AB205: =SUM(O205:Z205) -> 9775
A206: 182 | B206: C5547-TRIO Implantation du produit écoAZUR | C206: Restaurant Normandin (2014) inc. | D206: Implantation | E206: Bâtiment | F206: 1 | G206: 04-Mauricie | H206: Trois-Rivières | I206: TE | J206: SU | K206: 34648.21 | L206: 2016-06-09 | M206: 2016-04-01 | N206: 62200 | R206: 34648.21 | AA206: =SUM(O206:W206) -> 34648.21 | AB206: =SUM(O206:Z206) -> 34648.21
A207: 183 | B207: Ajout de chauffage électrique radiant | C207: Alimentation Sébastien Blackburn inc. | D207: Implantation | E207: Bâtiment | F207: 1 | G207: 02-Saguenay--Lac-Saint-Jean | H207: Saguenay | I207: TE | J207: SU | K207: 23776.14 | L207: 2016-03-14 | M207: 2016-04-01 | N207: 36228 | R207: 23776.14 | AA207: =SUM(O207:W207) -> 23776.14 | AB207: =SUM(O207:Z207) -> 23776.14
A208: 184 | B208: C5540-STHY Implantation du produit écoAZUR | C208: Restaurant Normandin (2014) inc. | D208: Implantation | E208: Bâtiment | F208: 1 | G208: 16-Montérégie | H208: Saint-Hyacinthe | I208: TE | J208: SU | K208: 24010.13 | L208: 2016-06-09 | M208: 2018-04-01 | N208: 45800 | S208: 18007.59 | T208: 6002.54 | AA208: =SUM(O208:W208) -> 24010.13 | AB208: =SUM(O208:Z208) -> 24010.13
A209: 185 | B209: Récupération chaleur résiduelle centrale thermique | C209: Centre Intégré Santé Service Sociaux des Îles | D209: Implantation | E209: Bâtiment | F209: 1 | G209: 11-Gaspésie--Îles-de-la-Madeleine | H209: Les Îles-de-la-Madeleine | I209: TE | J209: SU | K209: 1944282.88 | L209: 2017-03-22 | M209: 2018-04-01 | N209: 4106949 | S209: 972141.44 | T209: 972141.44 | AA209: =SUM(O209:W209) -> 1944282.88 | AB209: =SUM(O209:Z209) -> 1944282.88
A210: 186 | B210: Réfrigération CO2 avec récupération de chaleur (8182) | C210: Sobeys Capital Incorporée | D210: Implantation | E210: Bâtiment | F210: 1 | G210: 02-Saguenay--Lac-Saint-Jean | H210: Normandin | I210: TE | J210: SU | K210: 0 | L210: 2016-10-18 | M210: 2016-04-01 | N210: 37500 | AA210: =SUM(O210:W210) -> 0 | AB210: =SUM(O210:Z210) -> 0
A211: 187 | B211: Agrandissement du 655, Pierre-Bertrand | C211: Groleau Développement immobilier inc. | D211: Analyse | E211: Bâtiment | F211: 1 | G211: 03-Capitale-Nationale | H211: Québec | I211: TE | J211: SU | K211: 5900 | L211: 2016-11-03 | M211: 2017-12-07 | N211: 13637.5 | R211: 2950 | S211: 2950 | AA211: =SUM(O211:W211) -> 5900 | AB211: =SUM(O211:Z211) -> 5900
A212: 188 | B212: Agrandissement du 655, Pierre-Bertrand | C212: Groleau Développement immobilier inc. | D212: Implantation | E212: Bâtiment | F212: 1 | G212: 03-Capitale-Nationale | H212: Québec | I212: TE | J212: SU | K212: 79546.87 | L212: 2018-09-13T13:33:49 | M212: 2019-08-15 | N212: 465000 | T212: 39773.44 | U212: 39773.43 | AA212: =SUM(O212:W212) -> 79546.87 | AB212: =SUM(O212:Z212) -> 79546.87
A213: 189 | B213: Chaufferie de l'école du Parchemin | C213: Centre de services scolaire des Hauts-Cantons | D213: Implantation | E213: Bâtiment | F213: 1 | G213: 05-Estrie | H213: East Angus | I213: TE | J213: SU | K213: 28339.8 | L213: 2017-03-31 | M213: 2018-03-21 | N213: 88780 | S213: 28339.8 | AA213: =SUM(O213:W213) -> 28339.8 | AB213: =SUM(O213:Z213) -> 28339.8
A214: 190 | B214: Analyse pour définir des projets d'efficacité énergétique portant sur 19 bâtiments | C214: Centre de services scolaire Central Québec | D214: Analyse | E214: Bâtiment | F214: 1 | G214: 03-Capitale-Nationale | H214: Québec | I214: TE | J214: SU | K214: 58720 | L214: 2016-11-30 | M214: 2016-04-01 | N214: 117440.3 | R214: 58720 | AA214: =SUM(O214:W214) -> 58720 | AB214: =SUM(O214:Z214) -> 58720
A215: 191 | B215: Hôpital d'Amos - Projet d'efficacité énergétique | C215: Centre intégré de santé et de services sociaux de l'Abitibi-Témiscamingue | D215: Implantation | E215: Bâtiment | F215: 1 | G215: 08-Abitibi-Témiscamingue | H215: Amos | I215: TE | J215: SU | K215: 217837.82 | L215: 2016-10-05 | M215: 2020-02-26 | N215: 492022 | R215: 54459.46 | S215: 54459.46 | U215: 108918.9 | AA215: =SUM(O215:W215) -> 217837.82 | AB215: =SUM(O215:Z215) -> 217837.82
... 449 more rows

Sheet GES
B2: =Utilitaire!E8 -> Plan d'action 2013-2020 sur les changements climatiques
B3: ="Action " & Accueil!D58 -> Action en cours
B4: =Accueil!D55 -> 20.1 | C4: =Accueil!E55 -> Conversion et efficacité énergétique dans les bâtiments commerciaux et institutionnels (Écoperformance)
B5: Ministère porteur : | C5: =Accueil!$D$65 -> MERN (SITE)
B6: GES
B19: Informations en date du : | D19: 2022-03-31
B20: Potentiel de réduction des GES évalué lors de la sélection des projets de cette action : | G20: Oui | I20: Réductions réelles quantifiables des émissions de GES attendues pour cette action : | O20: Oui
F22: ÉVALUATION DU POTENTIEL DE RÉDUCTION ET D'ÉVITEMENT D'ÉMISSIONS DE GES À TERME. | H22: DÉTAIL DES ÉMISSIONS DE GES RÉDUITES OU ÉVITÉES (en tonnes éq. CO2)
B23: Nom du projet | C23: Nom du requérant ou du bénéficiaire | D23: Région administrative | E23: Montant engagé ($) | F23: Potentiel de réduction des GES sur une base annuelle | G23: Horizon temporel pour la réalisation du potentiel | H23: Coût/tonne estimé | I23: Type d'émission | J23: Émissions rapportées dans l'inventaire | K23: Durée du projet | L23: Émissions | N23: Vérifiées | P23: 2013-2014 | R23: 2014-2015 | T23: 2015-2016 | V23: 2016-2017 | X23: 2017-2018 | Z23: 2018-2019 | AB23: 2019-2020 | AD23: 2020-2021 | AF23: 2021-2022 | AH23: 2022-2023 | AJ23: 2023-2024 | AL23: 2024-2025
F24: (tonnes éq. CO2) | H24: $ ------------ tonne éq. CO2 | K24: (années) | L24: Réduites | M24: Évitées | N24: Tierce partie | O24: M/O | P24: Vérifié | Q24: Non vérifié | R24: Vérifié | S24: Non vérifié | T24: Vérifié | U24: Non vérifié | V24: Vérifié | W24: Non vérifié | X24: Vérifié | Y24: Non vérifié | Z24: Vérifié | AA24: Non vérifié | AB24: Vérifié | AC24: Non vérifié | AD24: Vérifié | AE24: Non vérifié | AF24: Vérifié | AG24: Non vérifié | AH24: Vérifié | AI24: Non vérifié | AJ24: Vérifié | AK24: Non vérifié | AL24: Vérifié | AM24: Non vérifié
B25: =IF(LEN('Détail des projets'!B25)=0,"",'Détail des projets'!B25) -> Implantation de diverses mesures d'efficacité énergétique au Collège Servite (D-686). | C25: ='Détail des projets'!C25 -> Collège Servite | D25: =IF(LEN('Détail des projets'!G25)=0,"",'Détail des projets'!G25) -> 05-Estrie | E25: =IF(LEN('Détail des projets'!K25)=0,"",'Détail des projets'!K25) -> 87905.46 | F25: 117.8840341 | G25: À la fin du projet (suite au dernier versement) | H25: 18.96115469 | I25: QC-Québec | J25: Oui | K25: 39.3274765 | L25: 117.8840341 | N25: Non | O25: Oui | P25: 4.187137822 | R25: 117.239859 | T25: 117.5619465 | V25: 117.239859 | X25: 117.239859 | Z25: 117.239859 | AB25: 117.5619465 | AD25: 117.239859 | AF25: 117.239859
B26: =IF(LEN('Détail des projets'!B26)=0,"",'Détail des projets'!B26) -> Ville de Montréal lot 12 | C26: =IF(LEN('Détail des projets'!C26)=0,"",'Détail des projets'!C26) -> Ville de Montréal | D26: =IF(LEN('Détail des projets'!G26)=0,"",'Détail des projets'!G26) -> 06-Montréal | E26: =IF(LEN('Détail des projets'!K26)=0,"",'Détail des projets'!K26) -> 45000 | F26: 0 | G26: À la fin du projet (suite au dernier versement) | H26: 0 | I26: QC-Québec | J26: Oui | K26: 15.00607777 | L26: 0 | N26: Non | O26: Oui
B27: =IF(LEN('Détail des projets'!B27)=0,"",'Détail des projets'!B27) -> Système de récupération d'énergie des gaz de combustion | C27: =IF(LEN('Détail des projets'!C27)=0,"",'Détail des projets'!C27) -> CCUM, s.e.c. | D27: =IF(LEN('Détail des projets'!G27)=0,"",'Détail des projets'!G27) -> 06-Montréal | E27: =IF(LEN('Détail des projets'!K27)=0,"",'Détail des projets'!K27) -> 1207275.48 | F27: 2414.55096 | G27: À la fin du projet (suite au dernier versement) | H27: 20 | I27: QC-Québec | J27: Oui | K27: 25 | L27: 2414.55096 | N27: Non | O27: Oui | P27: 0 | R27: 138.5398092 | T27: 2407.953826 | V27: 2401.356692 | X27: 2401.356692 | Z27: 2401.356692 | AB27: 2407.953826 | AD27: 2401.356692 | AF27: 2401.356692
B28: =IF(LEN('Détail des projets'!B28)=0,"",'Détail des projets'!B28) -> Récupération des gaz de combustion par refroidissement mécanique | C28: =IF(LEN('Détail des projets'!C28)=0,"",'Détail des projets'!C28) -> CCUM, s.e.c. | D28: =IF(LEN('Détail des projets'!G28)=0,"",'Détail des projets'!G28) -> 06-Montréal | E28: =IF(LEN('Détail des projets'!K28)=0,"",'Détail des projets'!K28) -> 5500 | F28: 0 | G28: À la fin du projet (suite au dernier versement) | H28: 0 | I28: QC-Québec | J28: Oui | L28: 0 | N28: Non | O28: Oui
B29: =IF(LEN('Détail des projets'!B29)=0,"",'Détail des projets'!B29) -> Metro Vaudreuil-Dorion | C29: =IF(LEN('Détail des projets'!C29)=0,"",'Détail des projets'!C29) -> Métro Richelieu inc. | D29: =IF(LEN('Détail des projets'!G29)=0,"",'Détail des projets'!G29) -> 16-Montérégie | E29: =IF(LEN('Détail des projets'!K29)=0,"",'Détail des projets'!K29) -> 81291.2 | F29: 90.48709208 | G29: À la fin du projet (suite au dernier versement) | H29: 59.89156253 | I29: QC-Québec | J29: Oui | K29: 15 | L29: 90.48709208 | N29: Non | O29: Oui | P29: 0 | R29: 82.82288483 | T29: 90.23985959 | V29: 89.9926271 | X29: 89.9926271 | Z29: 89.9926271 | AB29: 90.23985959 | AD29: 89.9926271 | AF29: 89.9926271
B30: =IF(LEN('Détail des projets'!B30)=0,"",'Détail des projets'!B30) -> Étude énergétique de système de production de vapeur et des systèmes thermiques de l'établissement | C30: =IF(LEN('Détail des projets'!C30)=0,"",'Détail des projets'!C30) -> CSSS de Memphrémagog | D30: =IF(LEN('Détail des projets'!G30)=0,"",'Détail des projets'!G30) -> 05-Estrie | E30: =IF(LEN('Détail des projets'!K30)=0,"",'Détail des projets'!K30) -> 10000 | F30: 0 | G30: À la fin du projet (suite au dernier versement) | H30: 0 | I30: QC-Québec | J30: Oui | K30: 24.04434395 | L30: 0 | N30: Non | O30: Oui
B31: =IF(LEN('Détail des projets'!B31)=0,"",'Détail des projets'!B31) -> Super C Canon (Saint-Canut) | C31: =IF(LEN('Détail des projets'!C31)=0,"",'Détail des projets'!C31) -> Métro Richelieu inc. | D31: =IF(LEN('Détail des projets'!G31)=0,"",'Détail des projets'!G31) -> 15-Laurentides | E31: =IF(LEN('Détail des projets'!K31)=0,"",'Détail des projets'!K31) -> 47643.26 | F31: 62.05587922 | G31: À la fin du projet (suite au dernier versement) | H31: 51.18414149 | I31: QC-Québec | J31: Oui | K31: 15 | L31: 62.0547154 | N31: Non | O31: Oui | P31: 0 | R31: 11.69883979 | T31: 61.885167 | V31: 61.71561859 | X31: 61.71561859 | Z31: 61.71561859 | AB31: 61.885167 | AD31: 61.71561859 | AF31: 61.71561859
B32: =IF(LEN('Détail des projets'!B32)=0,"",'Détail des projets'!B32) -> Changement des chaudières au 2055 Saint-Mathieu à Montréal | C32: =IF(LEN('Détail des projets'!C32)=0,"",'Détail des projets'!C32) -> Entreprise Agostino inc. | D32: =IF(LEN('Détail des projets'!G32)=0,"",'Détail des projets'!G32) -> 06-Montréal | E32: =IF(LEN('Détail des projets'!K32)=0,"",'Détail des projets'!K32) -> 9250 | F32: 0 | G32: À la fin du projet (suite au dernier versement) | H32: 0 | I32: QC-Québec | J32: Oui | K32: 25 | L32: 0 | N32: Non | O32: Oui
B33: =IF(LEN('Détail des projets'!B33)=0,"",'Détail des projets'!B33) -> Changement des chaudières à l'immeuble 2055 Saint-Mathieu | C33: =IF(LEN('Détail des projets'!C33)=0,"",'Détail des projets'!C33) -> Entreprise Agostino inc. | D33: =IF(LEN('Détail des projets'!G33)=0,"",'Détail des projets'!G33) -> 06-Montréal | E33: =IF(LEN('Détail des projets'!K33)=0,"",'Détail des projets'!K33) -> 247068.74 | F33: 197.6549904 | G33: À la fin du projet (suite au dernier versement) | H33: 50.00000039 | I33: QC-Québec | J33: Oui | K33: 25 | L33: 197.6549904 | N33: Non | O33: Oui | P33: 0 | R33: 0 | T33: 0 | V33: 81.54618458 | X33: 196.5749085 | Z33: 196.5749085 | AB33: 197.1149495 | AD33: 196.5749085 | AF33: 196.5749085
B34: =IF(LEN('Détail des projets'!B34)=0,"",'Détail des projets'!B34) -> Analyse énergétique à l'École des Prés-Verts | C34: =IF(LEN('Détail des projets'!C34)=0,"",'Détail des projets'!C34) -> Centre de services scolaire des Hautes-Rivières | D34: =IF(LEN('Détail des projets'!G34)=0,"",'Détail des projets'!G34) -> 16-Montérégie | E34: =IF(LEN('Détail des projets'!K34)=0,"",'Détail des projets'!K34) -> 6150 | F34: 0 | G34: À la fin du projet (suite au dernier versement) | H34: 0 | I34: QC-Québec | J34: Oui | K34: 19.39767075 | L34: 0 | M34: 0 | N34: Non | O34: Oui
B35: =IF(LEN('Détail des projets'!B35)=0,"",'Détail des projets'!B35) -> Analyse énergétique à l'École Aux-Quatre-Vents | C35: =IF(LEN('Détail des projets'!C35)=0,"",'Détail des projets'!C35) -> Centre de services scolaire des Hautes-Rivières | D35: =IF(LEN('Détail des projets'!G35)=0,"",'Détail des projets'!G35) -> 16-Montérégie | E35: =IF(LEN('Détail des projets'!K35)=0,"",'Détail des projets'!K35) -> 5950 | F35: 0 | G35: À la fin du projet (suite au dernier versement) | H35: 0 | I35: QC-Québec | J35: Oui | K35: 15 | L35: 0 | M35: 0 | N35: Non | O35: Oui
B36: =IF(LEN('Détail des projets'!B36)=0,"",'Détail des projets'!B36) -> Modernisation de la chaufferie | C36: =IF(LEN('Détail des projets'!C36)=0,"",'Détail des projets'!C36) -> Centre de services scolaire de Saint-Hyacinthe | D36: =IF(LEN('Détail des projets'!G36)=0,"",'Détail des projets'!G36) -> 16-Montérégie | E36: =IF(LEN('Détail des projets'!K36)=0,"",'Détail des projets'!K36) -> 2500 | F36: 0 | G36: À la fin du projet (suite au dernier versement) | H36: 0 | I36: QC-Québec | J36: Oui | K36: 25 | L36: 0 | N36: Non | O36: Oui
B37: =IF(LEN('Détail des projets'!B37)=0,"",'Détail des projets'!B37) -> École Savio - Conversion du mazout vers l'électricité | C37: =IF(LEN('Détail des projets'!C37)=0,"",'Détail des projets'!C37) -> Centre de services scolaire des Appalaches | D37: =IF(LEN('Détail des projets'!G37)=0,"",'Détail des projets'!G37) -> 05-Estrie | E37: =IF(LEN('Détail des projets'!K37)=0,"",'Détail des projets'!K37) -> 33831.56 | F37: 189.8465194 | G37: À la fin du projet (suite au dernier versement) | H37: 50.00001645 | I37: QC-Québec | J37: Oui | K37: 25 | L37: 0 | M37: 27.0652391 | N37: Non | O37: Oui | P37: 0 | R37: 12.3494397 | T37: 26.99129036 | V37: 26.91734162 | X37: 26.91734162 | Z37: 26.91734162 | AB37: 26.99129036 | AD37: 26.91734162 | AF37: 26.91734162
B38: =IF(LEN('Détail des projets'!B38)=0,"",'Détail des projets'!B38) -> École Marguerite-Bourgeoys - Étude de faisabilité détaillée pour l'implantation de mesures d'efficacité énergétique | C38: =IF(LEN('Détail des projets'!C38)=0,"",'Détail des projets'!C38) -> Centre de services scolaire des Hautes-Rivières | D38: =IF(LEN('Détail des projets'!G38)=0,"",'Détail des projets'!G38) -> 16-Montérégie | E38: =IF(LEN('Détail des projets'!K38)=0,"",'Détail des projets'!K38) -> 4750 | F38: 0 | G38: À la fin du projet (suite au dernier versement) | H38: 0 | I38: QC-Québec | J38: Oui | K38: 15.01175022 | L38: 4.36999716 | N38: Non | O38: Oui | T38: 0.2446034271 | V38: 4.346117394 | X38: 4.346117394 | Z38: 4.346117394 | AB38: 4.358057277 | AD38: 4.346117394 | AF38: 4.346117394
B39: =IF(LEN('Détail des projets'!B39)=0,"",'Détail des projets'!B39) -> Remplacement du système de réfrigération et récupération de chaleur | C39: =IF(LEN('Détail des projets'!C39)=0,"",'Détail des projets'!C39) -> Ville de Sherbrooke | D39: =IF(LEN('Détail des projets'!G39)=0,"",'Détail des projets'!G39) -> 05-Estrie | E39: =IF(LEN('Détail des projets'!K39)=0,"",'Détail des projets'!K39) -> 0 | F39: 2.583012744 | G39: À la fin du projet (suite au dernier versement) | H39: 0 | I39: QC-Québec | J39: Oui | K39: 19.95559502 | L39: 2.583012744 | N39: Non | O39: Oui | P39: 0 | R39: 0 | T39: 0 | V39: 0 | X39: 0 | Z39: 0 | AB39: 1.580860259 | AD39: 2.56889792 | AF39: 2.56889792
B40: =IF(LEN('Détail des projets'!B40)=0,"",'Détail des projets'!B40) -> Conversion des équipements à l'électricité et installation des équipements requis | C40: =IF(LEN('Détail des projets'!C40)=0,"",'Détail des projets'!C40) -> Pourvoirie Mirage inc. | D40: =IF(LEN('Détail des projets'!G40)=0,"",'Détail des projets'!G40) -> 08-Abitibi-Témiscamingue | E40: =IF(LEN('Détail des projets'!K40)=0,"",'Détail des projets'!K40) -> 1051941.06 | F40: 957.3387784 | G40: À la fin du projet (suite au dernier versement) | H40: 22.00290874 | I40: QC-Québec | J40: Oui | K40: 50 | L40: 0 | M40: 956.1836325 | N40: Non | O40: Oui | P40: 0 | R40: 0 | T40: 0 | V40: 201.1643161 | X40: 950.9585853 | Z40: 950.9585853 | AB40: 953.5711089 | AD40: 950.9585853 | AF40: 950.9585853
B41: =IF(LEN('Détail des projets'!B41)=0,"",'Détail des projets'!B41) -> Centre St-Edmond - Étude de faisabilité détaillée pour l'implantation de mesures d'efficacité énergétique | C41: =IF(LEN('Détail des projets'!C41)=0,"",'Détail des projets'!C41) -> Centre de services scolaire des Hautes-Rivières | D41: =IF(LEN('Détail des projets'!G41)=0,"",'Détail des projets'!G41) -> 16-Montérégie | E41: =IF(LEN('Détail des projets'!K41)=0,"",'Détail des projets'!K41) -> 5100 | F41: 0 | G41: À la fin du projet (suite au dernier versement) | H41: 0 | I41: QC-Québec | J41: Oui | K41: 20 | L41: 10.870322 | N41: Non | O41: Oui | T41: 5.405460667 | V41: 10.81092133 | X41: 10.81092133 | Z41: 10.81092133 | AB41: 10.84062167 | AD41: 10.81092133 | AF41: 10.81092133
B42: =IF(LEN('Détail des projets'!B42)=0,"",'Détail des projets'!B42) -> Édifice Wellington-Eddy - Étude visant à identifier des mesures d'efficacité énergétique possibles et à évaluer leur faisabilité technique et économique | C42: =IF(LEN('Détail des projets'!C42)=0,"",'Détail des projets'!C42) -> 8697841 Canada inc. | D42: =IF(LEN('Détail des projets'!G42)=0,"",'Détail des projets'!G42) -> 07-Outaouais | E42: =IF(LEN('Détail des projets'!K42)=0,"",'Détail des projets'!K42) -> 6650 | F42: 0 | G42: À la fin du projet (suite au dernier versement) | H42: 0 | I42: QC-Québec | J42: Oui | K42: 0 | L42: 0 | N42: Non | O42: Oui
B43: =IF(LEN('Détail des projets'!B43)=0,"",'Détail des projets'!B43) -> Édifice Wellington-Eddy - Implantation de mesures d'efficacité énergétique | C43: =IF(LEN('Détail des projets'!C43)=0,"",'Détail des projets'!C43) -> 8697841 Canada inc. | D43: =IF(LEN('Détail des projets'!G43)=0,"",'Détail des projets'!G43) -> 07-Outaouais | E43: =IF(LEN('Détail des projets'!K43)=0,"",'Détail des projets'!K43) -> 227209.59 | F43: 343.6442965 | G43: À la fin du projet (suite au dernier versement) | H43: 18.88454592 | I43: QC-Québec | J43: Oui | K43: 30 | L43: 401.0503102 | N43: Non | O43: Oui | P43: 0 | R43: 0 | T43: 282.7075957 | V43: 398.8587784 | X43: 398.8587784 | Z43: 398.8587784 | AB43: 399.9545443 | AD43: 398.8587784 | AF43: 398.8587784
B44: =IF(LEN('Détail des projets'!B44)=0,"",'Détail des projets'!B44) -> Hôpital de Notre-Dame-du-Lac | C44: =IF(LEN('Détail des projets'!C44)=0,"",'Détail des projets'!C44) -> Centre de santé et de services sociaux de Témiscouata | D44: =IF(LEN('Détail des projets'!G44)=0,"",'Détail des projets'!G44) -> 01-Bas-Saint-Laurent | E44: =IF(LEN('Détail des projets'!K44)=0,"",'Détail des projets'!K44) -> 25000 | F44: 0 | G44: À la fin du projet (suite au dernier versement) | H44: 0 | I44: QC-Québec | J44: Oui | K44: 39.95215607 | L44: 0 | N44: Non | O44: Oui
B45: =IF(LEN('Détail des projets'!B45)=0,"",'Détail des projets'!B45) -> Projet d'implantation de mesures d'efficacité énergétique | C45: =IF(LEN('Détail des projets'!C45)=0,"",'Détail des projets'!C45) -> Centre intégré de santé et de services sociaux du Bas-Saint-Laurent | D45: =IF(LEN('Détail des projets'!G45)=0,"",'Détail des projets'!G45) -> 01-Bas-Saint-Laurent | E45: =IF(LEN('Détail des projets'!K45)=0,"",'Détail des projets'!K45) -> 48869.14 | F45: 39.0953149 | G45: À la fin du projet (suite au dernier versement) | H45: 7.434971169 | I45: QC-Québec | J45: Oui | K45: 39.98846436 | L45: 164.3692907 | N45: Non | O45: Oui | P45: 0 | R45: 0 | T45: 0 | V45: 0 | X45: 0 | Z45: 150.4473016 | AB45: 163.9201943 | AD45: 163.4710978 | AF45: 163.4710978
B46: =IF(LEN('Détail des projets'!B46)=0,"",'Détail des projets'!B46) -> Conversion des équipements à l'électricité et installation des équipements requis | C46: =IF(LEN('Détail des projets'!C46)=0,"",'Détail des projets'!C46) -> Pourvoirie Domaine Lounan | D46: =IF(LEN('Détail des projets'!G46)=0,"",'Détail des projets'!G46) -> 15-Laurentides | E46: =IF(LEN('Détail des projets'!K46)=0,"",'Détail des projets'!K46) -> 323369.5607 | F46: 258.6956485 | G46: À la fin du projet (suite au dernier versement) | H46: 28.46313351 | I46: QC-Québec | J46: Oui | K46: 50 | L46: 0 | M46: 227.2199304 | N46: Non | O46: Oui | P46: 0 | R46: 0 | T46: 0 | V46: 187.4874835 | X46: 225.9782914 | Z46: 225.9782914 | AB46: 226.5991109 | AD46: 225.9782914 | AF46: 225.9782914
B47: =IF(LEN('Détail des projets'!B47)=0,"",'Détail des projets'!B47) -> Remplacement d'une chaudière mazout léger par une chaudière électrique. | C47: =IF(LEN('Détail des projets'!C47)=0,"",'Détail des projets'!C47) -> Corporation du service de recherche et d'expertise en transformation des produits forestiers de l'Est du Québec (SEREX) | D47: =IF(LEN('Détail des projets'!G47)=0,"",'Détail des projets'!G47) -> 01-Bas-Saint-Laurent | E47: =IF(LEN('Détail des projets'!K47)=0,"",'Détail des projets'!K47) -> 17001.89 | F47: 19.76977885 | G47: À la fin du projet (suite au dernier versement) | H47: 28.66646466 | I47: QC-Québec | J47: Oui | K47: 30 | L47: 0 | M47: 19.76977885 | N47: Non | O47: Oui | P47: 0 | R47: 14.04410519 | T47: 19.71576306 | V47: 19.66174727 | X47: 19.66174727 | Z47: 19.66174727 | AB47: 19.71576306 | AD47: 19.66174727 | AF47: 19.66174727
B48: =IF(LEN('Détail des projets'!B48)=0,"",'Détail des projets'!B48) -> Agrandissement École Saint-Laurent | C48: =IF(LEN('Détail des projets'!C48)=0,"",'Détail des projets'!C48) -> Centre de service scolaire Marguerite -Bourgeoys | D48: =IF(LEN('Détail des projets'!G48)=0,"",'Détail des projets'!G48) -> 06-Montréal | E48: =IF(LEN('Détail des projets'!K48)=0,"",'Détail des projets'!K48) -> 48664.54 | F48: 53.98166195 | G48: À la fin du projet (suite au dernier versement) | H48: 58.5992142 | I48: QC-Québec | J48: Oui | K48: 29.79870415 | L48: 27.8691326 | N48: Non | O48: Oui | P48: 0 | R48: 5.10172646 | T48: 27.79298743 | V48: 27.71684226 | X48: 27.71684226 | Z48: 27.71684226 | AB48: 27.79298743 | AD48: 27.71684226 | AF48: 27.71684226
B49: =IF(LEN('Détail des projets'!B49)=0,"",'Détail des projets'!B49) -> Pavillons C1 et C2 - Implantation de mesures en efficacité énergétique | C49: =IF(LEN('Détail des projets'!C49)=0,"",'Détail des projets'!C49) -> Université de Sherbrooke | D49: =IF(LEN('Détail des projets'!G49)=0,"",'Détail des projets'!G49) -> 05-Estrie | E49: =IF(LEN('Détail des projets'!K49)=0,"",'Détail des projets'!K49) -> 360615.44 | F49: 1210.473547 | G49: À la fin du projet (suite au dernier versement) | H49: 17.59375904 | I49: QC-Québec | J49: Oui | K49: 25 | L49: 819.8712716 | N49: Non | O49: Oui | P49: 0 | R49: 336.0128162 | T49: 817.6311862 | V49: 815.3911008 | X49: 815.3911008 | Z49: 815.3911008 | AB49: 817.6311862 | AD49: 815.3911008 | AF49: 815.3911008
B50: =IF(LEN('Détail des projets'!B50)=0,"",'Détail des projets'!B50) -> Projet d'efficacité énergétique et intégration d'une boucle géothermique - Pavillon C3 | C50: =IF(LEN('Détail des projets'!C50)=0,"",'Détail des projets'!C50) -> Université de Sherbrooke | D50: =IF(LEN('Détail des projets'!G50)=0,"",'Détail des projets'!G50) -> 05-Estrie | E50: =IF(LEN('Détail des projets'!K50)=0,"",'Détail des projets'!K50) -> 176272.48 | F50: 352.5449636 | G50: À la fin du projet (suite au dernier versement) | H50: 25.00040726 | I50: QC-Québec | J50: Oui | K50: 20 | L50: 52.90096 | M50: 299.638257 | N50: Non | O50: Oui | P50: 0 | R50: 0 | T50: 0 | V50: 0 | X50: 22.1541038 | Z50: 350.6127732 | AB50: 351.5759951 | AD50: 350.6127732 | AF50: 350.6127732
B51: =IF(LEN('Détail des projets'!B51)=0,"",'Détail des projets'!B51) -> Conversion des équipements à l'électricité | C51: =IF(LEN('Détail des projets'!C51)=0,"",'Détail des projets'!C51) -> 9147-4882 Québec inc. (Auberge du 31) | D51: =IF(LEN('Détail des projets'!G51)=0,"",'Détail des projets'!G51) -> 02-Saguenay--Lac-Saint-Jean | E51: =IF(LEN('Détail des projets'!K51)=0,"",'Détail des projets'!K51) -> 265421.6562 | F51: 212.337325 | G51: À la fin du projet (suite au dernier versement) | H51: 36.75743282 | I51: QC-Québec | J51: Oui | K51: 40 | L51: 0 | M51: 180.5224385 | N51: Non | O51: Oui | P51: 0 | R51: 0 | T51: 90.26121926 | V51: 179.5359771 | X51: 179.5359771 | Z51: 179.5359771 | AB51: 180.0292078 | AD51: 179.5359771 | AF51: 179.5359771
B52: =IF(LEN('Détail des projets'!B52)=0,"",'Détail des projets'!B52) -> Projet d'efficacité énergétique - Centre d'hébergement de Gracefield | C52: =IF(LEN('Détail des projets'!C52)=0,"",'Détail des projets'!C52) -> Centre de santé et de services sociaux de la Vallée-de-la-Gatineau | D52: =IF(LEN('Détail des projets'!G52)=0,"",'Détail des projets'!G52) -> 07-Outaouais | E52: =IF(LEN('Détail des projets'!K52)=0,"",'Détail des projets'!K52) -> 149393.17 | F52: 119.5145376 | G52: À la fin du projet (suite au dernier versement) | H52: 36.64267488 | I52: QC-Québec | J52: Oui | K52: 34.83947372 | L52: 0 | M52: 117.0232048 | N52: Non | O52: Oui | P52: 0 | R52: 0 | T52: 90.4851556 | V52: 116.3837337 | X52: 116.3837337 | Z52: 116.3837337 | AB52: 116.7034692 | AD52: 116.3837337 | AF52: 116.3837337
B53: =IF(LEN('Détail des projets'!B53)=0,"",'Détail des projets'!B53) -> Analyse des mesures d'économies d'énergie | C53: =IF(LEN('Détail des projets'!C53)=0,"",'Détail des projets'!C53) -> Cégep du Vieux Montréal | D53: =IF(LEN('Détail des projets'!G53)=0,"",'Détail des projets'!G53) -> 06-Montréal | E53: =IF(LEN('Détail des projets'!K53)=0,"",'Détail des projets'!K53) -> 25000 | F53: 0 | G53: À la fin du projet (suite au dernier versement) | H53: 0 | I53: QC-Québec | J53: Oui | K53: 29.02785301 | L53: 0 | N53: Non | O53: Oui
B54: =IF(LEN('Détail des projets'!B54)=0,"",'Détail des projets'!B54) -> Implantation de mesures d'efficacité énergétique au Cégep du Vieux Montréal | C54: =IF(LEN('Détail des projets'!C54)=0,"",'Détail des projets'!C54) -> Cégep du Vieux Montréal | D54: =IF(LEN('Détail des projets'!G54)=0,"",'Détail des projets'!G54) -> 06-Montréal | E54: =IF(LEN('Détail des projets'!K54)=0,"",'Détail des projets'!K54) -> 535986.36 | F54: 430.161478 | G54: À la fin du projet (suite au dernier versement) | H54: 38.90551705 | I54: QC-Québec | J54: Oui | K54: 28.29138565 | L54: 486.9544372 | N54: Non | O54: Oui | P54: 0 | R54: 0 | T54: 0 | V54: 0 | X54: 292.704853 | Z54: 484.293484 | AB54: 485.6239606 | AD54: 484.293484 | AF54: 484.293484
B55: =IF(LEN('Détail des projets'!B55)=0,"",'Détail des projets'!B55) -> Analyse des mesures d'économies d'énergie à l’hôpital Saint-François d’Assise | C55: =IF(LEN('Détail des projets'!C55)=0,"",'Détail des projets'!C55) -> CHU de Québec | D55: =IF(LEN('Détail des projets'!G55)=0,"",'Détail des projets'!G55) -> 03-Capitale-Nationale | E55: =IF(LEN('Détail des projets'!K55)=0,"",'Détail des projets'!K55) -> 25000 | F55: 0 | G55: À la fin du projet (suite au dernier versement) | H55: 0 | I55: QC-Québec | J55: Oui | K55: 26.35512924 | L55: 0 | N55: Non | O55: Oui
B56: =IF(LEN('Détail des projets'!B56)=0,"",'Détail des projets'!B56) -> Projet d'implantation de mesures d'efficacité énergétique à l'Hôpital Saint-François d'Assise | C56: =IF(LEN('Détail des projets'!C56)=0,"",'Détail des projets'!C56) -> CHU de Québec - Université Laval | D56: =IF(LEN('Détail des projets'!G56)=0,"",'Détail des projets'!G56) -> 03-Capitale-Nationale | E56: =IF(LEN('Détail des projets'!K56)=0,"",'Détail des projets'!K56) -> 2032576.27 | F56: 4065.152538 | G56: À la fin du projet (suite au dernier versement) | H56: 18.88177027 | I56: QC-Québec | J56: Oui | K56: 26.48056793 | L56: 4065.152538 | N56: Non | O56: Oui | P56: 0 | R56: 0 | T56: 0 | V56: 0 | X56: 3709.729365 | Z56: 4042.93859 | AB56: 4054.045564 | AD56: 4042.93859 | AF56: 4042.93859
B57: =IF(LEN('Détail des projets'!B57)=0,"",'Détail des projets'!B57) -> Analyse énergétique chez CFP Brome - Boucherie | C57: =IF(LEN('Détail des projets'!C57)=0,"",'Détail des projets'!C57) -> Centre de services scolaire du Val-des-Cerfs | D57: =IF(LEN('Détail des projets'!G57)=0,"",'Détail des projets'!G57) -> 05-Estrie | E57: =IF(LEN('Détail des projets'!K57)=0,"",'Détail des projets'!K57) -> 5006 | F57: 0 | G57: À la fin du projet (suite au dernier versement) | H57: 0 | I57: QC-Québec | J57: Oui | K57: 20.35276985 | L57: 0 | M57: 0 | N57: Non | O57: Oui
B58: =IF(LEN('Détail des projets'!B58)=0,"",'Détail des projets'!B58) -> Projet d'efficacité énergétique et de modernisation des équipements électro-mécaniques | C58: =IF(LEN('Détail des projets'!C58)=0,"",'Détail des projets'!C58) -> Propriétés DCV s.e.c. | D58: =IF(LEN('Détail des projets'!G58)=0,"",'Détail des projets'!G58) -> 06-Montréal | E58: =IF(LEN('Détail des projets'!K58)=0,"",'Détail des projets'!K58) -> 24600 | F58: 0 | G58: À la fin du projet (suite au dernier versement) | H58: 0 | I58: QC-Québec | J58: Oui | K58: 22.55384064 | L58: 0 | N58: Non | O58: Oui
B59: =IF(LEN('Détail des projets'!B59)=0,"",'Détail des projets'!B59) -> Centre Saint-Charles - Récupération chaleur sur système ammoniac | C59: =IF(LEN('Détail des projets'!C59)=0,"",'Détail des projets'!C59) -> Ville de Montréal | D59: =IF(LEN('Détail des projets'!G59)=0,"",'Détail des projets'!G59) -> 06-Montréal | E59: =IF(LEN('Détail des projets'!K59)=0,"",'Détail des projets'!K59) -> 192885.25 | F59: 189.1038067 | G59: À la fin du projet (suite au dernier versement) | H59: 122.4273483 | I59: QC-Québec | J59: Oui | K59: 30 | L59: 52.51692882 | N59: Non | O59: Oui | P59: 0 | R59: 0 | T59: 18.3665762 | V59: 52.22995106 | X59: 52.22995106 | Z59: 52.22995106 | AB59: 52.37343994 | AD59: 52.22995106 | AF59: 52.22995106
B60: =IF(LEN('Détail des projets'!B60)=0,"",'Détail des projets'!B60) -> Réfrigération CO2 avec récupération de chaleur - No 88076 - IGA Saint-Antoine | C60: =IF(LEN('Détail des projets'!C60)=0,"",'Détail des projets'!C60) -> Sobeys Capital Incorporée | D60: =IF(LEN('Détail des projets'!G60)=0,"",'Détail des projets'!G60) -> 15-Laurentides | E60: =IF(LEN('Détail des projets'!K60)=0,"",'Détail des projets'!K60) -> 0 | F60: 159.4467997 | G60: À la fin du projet (suite au dernier versement) | H60: 0 | I60: QC-Québec | J60: Oui | K60: 15 | L60: 183.033543 | N60: Non | O60: Oui | P60: 0 | R60: 13.50247448 | T60: 182.5334513 | V60: 182.0333597 | X60: 182.0333597 | Z60: 182.0333597 | AB60: 182.5334513 | AD60: 182.0333597 | AF60: 182.0333597
B61: =IF(LEN('Détail des projets'!B61)=0,"",'Détail des projets'!B61) -> Supermarché Marquis l'Assomption - Réfrigération CO2 et récupération de chaleur | C61: =IF(LEN('Détail des projets'!C61)=0,"",'Détail des projets'!C61) -> Supermarché Marquis l'Assomption inc. | D61: =IF(LEN('Détail des projets'!G61)=0,"",'Détail des projets'!G61) -> 14-Lanaudière | E61: =IF(LEN('Détail des projets'!K61)=0,"",'Détail des projets'!K61) -> 159877.3663 | F61: 177.12375 | G61: À la fin du projet (suite au dernier versement) | H61: 80.81717641 | I61: QC-Québec | J61: Oui | K61: 15 | L61: 131.8839826 | N61: Non | O61: Oui | P61: 0 | R61: 30.26845502 | T61: 131.5236438 | V61: 131.1633051 | X61: 131.1633051 | Z61: 131.1633051 | AB61: 131.5236438 | AD61: 131.1633051 | AF61: 131.1633051
B62: =IF(LEN('Détail des projets'!B62)=0,"",'Détail des projets'!B62) -> Projet d’efficacité énergétique à l'Hôtel-Dieu de Roberval | C62: =IF(LEN('Détail des projets'!C62)=0,"",'Détail des projets'!C62) -> CSSS Domaine-du-Roy | D62: =IF(LEN('Détail des projets'!G62)=0,"",'Détail des projets'!G62) -> 02-Saguenay--Lac-Saint-Jean | E62: =IF(LEN('Détail des projets'!K62)=0,"",'Détail des projets'!K62) -> 1513883.57 | F62: 3027.767139 | G62: À la fin du projet (suite au dernier versement) | H62: 13.75116489 | I62: QC-Québec | J62: Oui | K62: 30 | L62: 3669.709881 | N62: Non | O62: Oui | P62: 0 | R62: 0 | T62: 2125.624302 | V62: 3649.656821 | X62: 3649.656821 | Z62: 3649.656821 | AB62: 3659.683351 | AD62: 3649.656821 | AF62: 3649.656821
B63: =IF(LEN('Détail des projets'!B63)=0,"",'Détail des projets'!B63) -> Conversion du système de chauffage à la biénergie. | C63: =IF(LEN('Détail des projets'!C63)=0,"",'Détail des projets'!C63) -> Ville de Montréal | D63: =IF(LEN('Détail des projets'!G63)=0,"",'Détail des projets'!G63) -> 06-Montréal | E63: =IF(LEN('Détail des projets'!K63)=0,"",'Détail des projets'!K63) -> 26972.99 | F63: 73.93520826 | G63: À la fin du projet (suite au dernier versement) | H63: 14.5927715 | I63: QC-Québec | J63: Oui | K63: 25 | L63: 0 | M63: 73.93520826 | N63: Non | O63: Oui | P63: 0 | R63: 0 | T63: 0 | V63: 0 | X63: 73.1271732 | Z63: 73.53119073 | AB63: 73.7331995 | AD63: 73.53119073 | AF63: 73.53119073
B64: =IF(LEN('Détail des projets'!B64)=0,"",'Détail des projets'!B64) -> Conversion du système de chauffage au gaz naturel vers l'aérothermie | C64: =IF(LEN('Détail des projets'!C64)=0,"",'Détail des projets'!C64) -> Collège Sainte-Anne | D64: =IF(LEN('Détail des projets'!G64)=0,"",'Détail des projets'!G64) -> 06-Montréal | E64: =IF(LEN('Détail des projets'!K64)=0,"",'Détail des projets'!K64) -> 458179 | F64: 366.5431967 | G64: À la fin du projet (suite au dernier versement) | H64: 62.50000057 | I64: QC-Québec | J64: Oui | K64: 20 | L64: 366.5431967 | N64: Non | O64: Oui | P64: 0 | R64: 28.04155603 | T64: 365.5417125 | V64: 364.5402284 | X64: 364.5402284 | Z64: 364.5402284 | AB64: 365.5417125 | AD64: 364.5402284 | AF64: 364.5402284
B65: =IF(LEN('Détail des projets'!B65)=0,"",'Détail des projets'!B65) -> Construction d'une ligne électrique | C65: =IF(LEN('Détail des projets'!C65)=0,"",'Détail des projets'!C65) -> Pourvoirie du Lac Beauregard | D65: =IF(LEN('Détail des projets'!G65)=0,"",'Détail des projets'!G65) -> 15-Laurentides | E65: =IF(LEN('Détail des projets'!K65)=0,"",'Détail des projets'!K65) -> 256696.38 | F65: 205.3571059 | G65: À la fin du projet (suite au dernier versement) | H65: 28.12881114 | I65: QC-Québec | J65: Oui | K65: 50 | L65: 0 | M65: 182.5149159 | N65: Non | O65: Oui | P65: 0 | R65: 0 | T65: 27.92577949 | V65: 181.5175667 | X65: 181.5175667 | Z65: 181.5175667 | AB65: 182.0162413 | AD65: 181.5175667 | AF65: 181.5175667
B66: =IF(LEN('Détail des projets'!B66)=0,"",'Détail des projets'!B66) -> Rénovation et mise aux normes de l'aréna Roberto-Luongo | C66: =IF(LEN('Détail des projets'!C66)=0,"",'Détail des projets'!C66) -> Ville de Montréal | D66: =IF(LEN('Détail des projets'!G66)=0,"",'Détail des projets'!G66) -> 06-Montréal | E66: =IF(LEN('Détail des projets'!K66)=0,"",'Détail des projets'!K66) -> 159808.34 | F66: 173.2702199 | G66: À la fin du projet (suite au dernier versement) | H66: 87.86812495 | I66: QC-Québec | J66: Oui | K66: 15 | L66: 121.248625 | N66: Non | O66: Oui | P66: 0 | R66: 0 | T66: 26.1711513 | V66: 120.5860642 | X66: 120.5860642 | Z66: 120.5860642 | AB66: 120.9173446 | AD66: 120.5860642 | AF66: 120.5860642
B67: =IF(LEN('Détail des projets'!B67)=0,"",'Détail des projets'!B67) -> No 360 - IGA Longueuil - Réfrigération CO2 avec récupération de chaleur | C67: =IF(LEN('Détail des projets'!C67)=0,"",'Détail des projets'!C67) -> Sobeys Capital Incorporée | D67: =IF(LEN('Détail des projets'!G67)=0,"",'Détail des projets'!G67) -> 16-Montérégie | E67: =IF(LEN('Détail des projets'!K67)=0,"",'Détail des projets'!K67) -> 0 | F67: 159.4524677 | G67: À la fin du projet (suite au dernier versement) | H67: 0 | I67: QC-Québec | J67: Oui | K67: 15 | L67: 190.9554617 | N67: Non | O67: Oui | P67: 0 | R67: 66.26050174 | T67: 190.4337255 | V67: 189.9119893 | X67: 189.9119893 | Z67: 189.9119893 | AB67: 190.4337255 | AD67: 189.9119893 | AF67: 189.9119893
B68: =IF(LEN('Détail des projets'!B68)=0,"",'Détail des projets'!B68) -> Projet d'efficacité énergétique - Pavillon des Sciences | C68: =IF(LEN('Détail des projets'!C68)=0,"",'Détail des projets'!C68) -> Collège d'enseignement général et professionel de Trois-Rivières | D68: =IF(LEN('Détail des projets'!G68)=0,"",'Détail des projets'!G68) -> 04-Mauricie | E68: =IF(LEN('Détail des projets'!K68)=0,"",'Détail des projets'!K68) -> 611075.69 | F68: 486.492206 | G68: À la fin du projet (suite au dernier versement) | H68: 40.51968261 | I68: QC-Québec | J68: Oui | K68: 29.89401817 | L68: 504.4808414 | N68: Non | O68: Oui | P68: 0 | R68: 164.0251916 | T68: 503.1024784 | V68: 501.7241155 | X68: 501.7241155 | Z68: 501.7241155 | AB68: 503.1024784 | AD68: 501.7241155 | AF68: 501.7241155
B69: =IF(LEN('Détail des projets'!B69)=0,"",'Détail des projets'!B69) -> Réfrigération au CO2 avec récupération de chaleur- No 08033 IGA Sainte-Thérèse (Daigle) | C69: =IF(LEN('Détail des projets'!C69)=0,"",'Détail des projets'!C69) -> Sobeys Capital Incorporée | D69: =IF(LEN('Détail des projets'!G69)=0,"",'Détail des projets'!G69) -> 15-Laurentides | E69: =IF(LEN('Détail des projets'!K69)=0,"",'Détail des projets'!K69) -> 0 | F69: 159.4836415 | G69: À la fin du projet (suite au dernier versement) | H69: 0 | I69: QC-Québec | J69: Oui | K69: 15 | L69: 262.6198254 | N69: Non | O69: Oui | P69: 0 | R69: 28.70162027 | T69: 261.9022849 | V69: 261.1847444 | X69: 261.1847444 | Z69: 261.1847444 | AB69: 261.9022849 | AD69: 261.1847444 | AF69: 261.1847444
B70: =IF(LEN('Détail des projets'!B70)=0,"",'Détail des projets'!B70) -> Analyse de mesures d'efficacité énergétique | C70: =IF(LEN('Détail des projets'!C70)=0,"",'Détail des projets'!C70) -> Soltron Realty LP | D70: =IF(LEN('Détail des projets'!G70)=0,"",'Détail des projets'!G70) -> 06-Montréal | E70: =IF(LEN('Détail des projets'!K70)=0,"",'Détail des projets'!K70) -> 19000 | F70: 0 | G70: À la fin du projet (suite au dernier versement) | H70: 0 | I70: QC-Québec | J70: Oui | K70: 30.82222366 | L70: 0 | N70: Non | O70: Oui
B71: =IF(LEN('Détail des projets'!B71)=0,"",'Détail des projets'!B71) -> Réfrigération au CO2 avec récupération de chaleur - No 8724 - IGA Ayer's Cliff | C71: =IF(LEN('Détail des projets'!C71)=0,"",'Détail des projets'!C71) -> Sobeys Capital Incorporée | D71: =IF(LEN('Détail des projets'!G71)=0,"",'Détail des projets'!G71) -> 05-Estrie | E71: =IF(LEN('Détail des projets'!K71)=0,"",'Détail des projets'!K71) -> 0 | F71: 0.57086748 | G71: À la fin du projet (suite au dernier versement) | H71: 0 | I71: QC-Québec | J71: Oui | K71: 15 | L71: 0.65118228 | N71: Non | O71: Oui | P71: 0 | R71: 0.03914210426 | T71: 0.6494030934 | V71: 0.6476239069 | X71: 0.6476239069 | Z71: 0.6476239069 | AB71: 0.6494030934 | AD71: 0.6476239069 | AF71: 0.6476239069
B72: =IF(LEN('Détail des projets'!B72)=0,"",'Détail des projets'!B72) -> Réfrigération CO2 avec récupération de chaleur - No 0444 IGA Saint-Romuald | C72: =IF(LEN('Détail des projets'!C72)=0,"",'Détail des projets'!C72) -> Sobeys Capital Incorporée | D72: =IF(LEN('Détail des projets'!G72)=0,"",'Détail des projets'!G72) -> 12-Chaudière-Appalaches | E72: =IF(LEN('Détail des projets'!K72)=0,"",'Détail des projets'!K72) -> 0 | F72: 1.81292556 | G72: À la fin du projet (suite au dernier versement) | H72: 0 | I72: QC-Québec | J72: Oui | K72: 15 | L72: 2.25327792 | N72: Non | O72: Oui | P72: 0 | R72: 0.3078248525 | T72: 2.247121423 | V72: 2.240964926 | X72: 1.098873212 | Z72: 0 | AB72: 0 | AD72: 0 | AF72: 0
B73: =IF(LEN('Détail des projets'!B73)=0,"",'Détail des projets'!B73) -> Réfrigération au CO2 avec récupération de chaleur | C73: =IF(LEN('Détail des projets'!C73)=0,"",'Détail des projets'!C73) -> Sobeys Capital Incorporée | D73: =IF(LEN('Détail des projets'!G73)=0,"",'Détail des projets'!G73) -> 06-Montréal | E73: =IF(LEN('Détail des projets'!K73)=0,"",'Détail des projets'!K73) -> 20677.76364 | F73: 56.00586849 | G73: À la fin du projet (suite au dernier versement) | H73: 37.87901204 | I73: QC-Québec | J73: Oui | K73: 15 | L73: 36.39264864 | N73: Non | O73: Oui | P73: 0 | R73: 0.6960342635 | T73: 36.29321517 | V73: 36.1937817 | X73: 36.1937817 | Z73: 36.1937817 | AB73: 36.29321517 | AD73: 36.1937817 | AF73: 36.1937817
B74: =IF(LEN('Détail des projets'!B74)=0,"",'Détail des projets'!B74) -> Réfrigération CO2 avec récupération de chaleur - No 8187 - IGA Sainte-Julie | C74: =IF(LEN('Détail des projets'!C74)=0,"",'Détail des projets'!C74) -> Sobeys Capital Incorporée | D74: =IF(LEN('Détail des projets'!G74)=0,"",'Détail des projets'!G74) -> 16-Montérégie | E74: =IF(LEN('Détail des projets'!K74)=0,"",'Détail des projets'!K74) -> 0 | F74: 0.40413624 | G74: À la fin du projet (suite au dernier versement) | H74: 0 | I74: QC-Québec | J74: Oui | K74: 15 | L74: 0.40413624 | N74: Non | O74: Oui | P74: 0 | R74: 0.006625184262 | T74: 0.4030320426 | V74: 0.4019278452 | X74: 0.4019278452 | Z74: 0.4019278452 | AB74: 0.4030320426 | AD74: 0.4019278452 | AF74: 0.4019278452
B75: =IF(LEN('Détail des projets'!B75)=0,"",'Détail des projets'!B75) -> Projet d'efficacité énergétique - Hôpital de Maniwaki | C75: =IF(LEN('Détail des projets'!C75)=0,"",'Détail des projets'!C75) -> CSSS Vallée-de-la-Gatineau | D75: =IF(LEN('Détail des projets'!G75)=0,"",'Détail des projets'!G75) -> 07-Outaouais | E75: =IF(LEN('Détail des projets'!K75)=0,"",'Détail des projets'!K75) -> 465421.59 | F75: 372.3372739 | G75: À la fin du projet (suite au dernier versement) | H75: 25.72790436 | I75: QC-Québec | J75: Oui | K75: 35 | L75: 516.861363 | N75: Non | O75: Oui | P75: 0 | R75: 0 | T75: 515.4491735 | V75: 514.036984 | X75: 514.036984 | Z75: 514.036984 | AB75: 515.4491735 | AD75: 514.036984 | AF75: 514.036984
B76: =IF(LEN('Détail des projets'!B76)=0,"",'Détail des projets'!B76) -> Réfrigération CO2 avec récupération de chaleur (89035) | C76: =IF(LEN('Détail des projets'!C76)=0,"",'Détail des projets'!C76) -> Sobeys Capital Incorporée | D76: =IF(LEN('Détail des projets'!G76)=0,"",'Détail des projets'!G76) -> 08-Abitibi-Témiscamingue | E76: =IF(LEN('Détail des projets'!K76)=0,"",'Détail des projets'!K76) -> 0 | F76: 0 | G76: À la fin du projet (suite au dernier versement) | H76: 0 | I76: QC-Québec | J76: Oui | K76: 15 | L76: 0.92196372 | N76: Non | O76: Oui | P76: 0 | R76: 0.2947261072 | T76: 0.9194446934 | V76: 0.9169256669 | X76: 0.9169256669 | Z76: 0.9169256669 | AB76: 0.9194446934 | AD76: 0.9169256669 | AF76: 0.9169256669
B77: =IF(LEN('Détail des projets'!B77)=0,"",'Détail des projets'!B77) -> Étude spécifique - Nouveau système de ventilation et de récupération d'énergie | C77: =IF(LEN('Détail des projets'!C77)=0,"",'Détail des projets'!C77) -> Ville de Saint-Jean-sur-Richelieu | D77: =IF(LEN('Détail des projets'!G77)=0,"",'Détail des projets'!G77) -> 16-Montérégie | E77: =IF(LEN('Détail des projets'!K77)=0,"",'Détail des projets'!K77) -> 7200 | F77: 0 | G77: À la fin du projet (suite au dernier versement) | H77: 0 | I77: QC-Québec | J77: Oui | K77: 20 | L77: 31.03963828 | N77: Non | O77: Oui | X77: 20.8985537 | Z77: 30.87002277 | AB77: 30.95483053 | AD77: 30.87002277 | AF77: 30.87002277
B78: =IF(LEN('Détail des projets'!B78)=0,"",'Détail des projets'!B78) -> Analyse de mesures d'efficacité énergétique | C78: =IF(LEN('Détail des projets'!C78)=0,"",'Détail des projets'!C78) -> Centre de services scolaire des Hautes-Rivières | D78: =IF(LEN('Détail des projets'!G78)=0,"",'Détail des projets'!G78) -> 16-Montérégie | E78: =IF(LEN('Détail des projets'!K78)=0,"",'Détail des projets'!K78) -> 6600 | F78: 0 | G78: À la fin du projet (suite au dernier versement) | H78: 0 | I78: QC-Québec | J78: Oui | K78: 25 | L78: 24.36023056 | N78: Non | O78: Oui | T78: 5.99022063 | V78: 24.22711455 | X78: 24.22711455 | Z78: 24.22711455 | AB78: 24.29367255 | AD78: 24.22711455 | AF78: 24.22711455
B79: =IF(LEN('Détail des projets'!B79)=0,"",'Détail des projets'!B79) -> Projet d'efficacité énergétique de l'agrandissement de l'Hôpital du Haut-Richelieu–Rouville | C79: =IF(LEN('Détail des projets'!C79)=0,"",'Détail des projets'!C79) -> Centre intégré de santé et de services sociaux de la Montérégie-Centre | D79: =IF(LEN('Détail des projets'!G79)=0,"",'Détail des projets'!G79) -> 16-Montérégie | E79: =IF(LEN('Détail des projets'!K79)=0,"",'Détail des projets'!K79) -> 371038.83 | F79: 743.212309 | G79: À la fin du projet (suite au dernier versement) | H79: 22.84293601 | I79: QC-Québec | J79: Oui | K79: 30 | L79: 541.4348223 | N79: Non | O79: Oui | P79: 0 | R79: 0 | T79: 0 | V79: 0 | X79: 538.476162 | Z79: 538.476162 | AB79: 539.9554922 | AD79: 538.476162 | AF79: 538.476162
B80: =IF(LEN('Détail des projets'!B80)=0,"",'Détail des projets'!B80) -> Étude d'efficacité énergétique pour 17 bâtiments | C80: =IF(LEN('Détail des projets'!C80)=0,"",'Détail des projets'!C80) -> Commission scolaire English-Montréal | D80: =IF(LEN('Détail des projets'!G80)=0,"",'Détail des projets'!G80) -> 06-Montréal | E80: =IF(LEN('Détail des projets'!K80)=0,"",'Détail des projets'!K80) -> 149396.5 | F80: 0 | G80: À la fin du projet (suite au dernier versement) | H80: 0 | I80: QC-Québec | J80: Oui | K80: 38.45071411 | L80: 0 | N80: Non | O80: Oui
B81: =IF(LEN('Détail des projets'!B81)=0,"",'Détail des projets'!B81) -> Projet d'efficacité énergétique au nouvel hôtel Holiday Inn à Vaudreuil | C81: =IF(LEN('Détail des projets'!C81)=0,"",'Détail des projets'!C81) -> Les Constructions Robin inc. | D81: =IF(LEN('Détail des projets'!G81)=0,"",'Détail des projets'!G81) -> 16-Montérégie | E81: =IF(LEN('Détail des projets'!K81)=0,"",'Détail des projets'!K81) -> 33523.23 | F81: 78.85706467 | G81: À la fin du projet (suite au dernier versement) | H81: 26.05194377 | I81: QC-Québec | J81: Oui | K81: 19.7833519 | L81: 53.41639737 | M81: 11.62739404 | N81: Non | O81: Oui | P81: 0 | R81: 0 | T81: 45.85054149 | V81: 64.68836086 | X81: 64.68836086 | Z81: 64.68836086 | AB81: 64.86607614 | AD81: 64.68836086 | AF81: 64.68836086
B82: =IF(LEN('Détail des projets'!B82)=0,"",'Détail des projets'!B82) -> Récupération de chaleur de la buanderie et installation d'un mur solaire | C82: =IF(LEN('Détail des projets'!C82)=0,"",'Détail des projets'!C82) -> Concept Éco-Plein-Air Le Baluchon inc. | D82: =IF(LEN('Détail des projets'!G82)=0,"",'Détail des projets'!G82) -> 04-Mauricie | E82: =IF(LEN('Détail des projets'!K82)=0,"",'Détail des projets'!K82) -> 18508.37709 | F82: 51.6756005 | G82: À la fin du projet (suite au dernier versement) | H82: 20.29082752 | I82: QC-Québec | J82: Oui | K82: 20 | L82: 45.60774338 | N82: Non | O82: Oui | P82: 0 | R82: 0 | T82: 0 | V82: 0 | X82: 5.856732073 | Z82: 45.35852073 | AB82: 45.48313206 | AD82: 45.35852073 | AF82: 45.35852073
B83: =IF(LEN('Détail des projets'!B83)=0,"",'Détail des projets'!B83) -> Récupération de chaleur sur système réfrigération et efficacité énergétique | C83: =IF(LEN('Détail des projets'!C83)=0,"",'Détail des projets'!C83) -> Ville de Montréal | D83: =IF(LEN('Détail des projets'!G83)=0,"",'Détail des projets'!G83) -> 06-Montréal | E83: =IF(LEN('Détail des projets'!K83)=0,"",'Détail des projets'!K83) -> 140141.3 | F83: 148.4501984 | G83: À la fin du projet (suite au dernier versement) | H83: 43.22590668 | I83: QC-Québec | J83: Oui | K83: 21.83914948 | L83: 148.4520877 | N83: Non | O83: Oui | P83: 0 | R83: 0 | T83: 0.405606797 | V83: 147.6408741 | X83: 147.6408741 | Z83: 147.6408741 | AB83: 148.0464809 | AD83: 147.6408741 | AF83: 147.6408741
B84: =IF(LEN('Détail des projets'!B84)=0,"",'Détail des projets'!B84) -> Étude de faisabilité - Efficacité énergétique dans une buanderie industrielle | C84: =IF(LEN('Détail des projets'!C84)=0,"",'Détail des projets'!C84) -> Buanderie Laser inc. | D84: =IF(LEN('Détail des projets'!G84)=0,"",'Détail des projets'!G84) -> 06-Montréal | E84: =IF(LEN('Détail des projets'!K84)=0,"",'Détail des projets'!K84) -> 7500 | F84: 0 | G84: À la fin du projet (suite au dernier versement) | H84: 0 | I84: QC-Québec | J84: Oui | K84: 0 | L84: 0 | N84: Non | O84: Oui
B85: =IF(LEN('Détail des projets'!B85)=0,"",'Détail des projets'!B85) -> Optimisation de la chaufferie du bâtiment Gregor House | C85: =IF(LEN('Détail des projets'!C85)=0,"",'Détail des projets'!C85) -> Groupe Accueil International ltée | D85: =IF(LEN('Détail des projets'!G85)=0,"",'Détail des projets'!G85) -> 06-Montréal | E85: =IF(LEN('Détail des projets'!K85)=0,"",'Détail des projets'!K85) -> 144315.71 | F85: 115.4525666 | G85: À la fin du projet (suite au dernier versement) | H85: 34.93283071 | I85: QC-Québec | J85: Oui | K85: 35 | L85: 118.035267 | N85: Non | O85: Oui | P85: 0 | R85: 48.37510943 | T85: 117.7127663 | V85: 117.3902655 | X85: 117.3902655 | Z85: 117.3902655 | AB85: 117.7127663 | AD85: 117.3902655 | AF85: 117.3902655
B86: =IF(LEN('Détail des projets'!B86)=0,"",'Détail des projets'!B86) -> Remplacement des chaudières au mazout léger par des systèmes électriques zonés | C86: =IF(LEN('Détail des projets'!C86)=0,"",'Détail des projets'!C86) -> La fabrique de la paroisse de Saint-Charles-de-Grondines | D86: =IF(LEN('Détail des projets'!G86)=0,"",'Détail des projets'!G86) -> 03-Capitale-Nationale | E86: =IF(LEN('Détail des projets'!K86)=0,"",'Détail des projets'!K86) -> 59713.2 | F86: 47.77056381 | G86: À la fin du projet (suite au dernier versement) | H86: 31.24999751 | I86: QC-Québec | J86: Oui | K86: 40 | L86: 0 | M86: 47.77056381 | N86: Non | O86: Oui | P86: 0 | R86: 19.70862059 | T86: 47.64004314 | V86: 47.50952248 | X86: 47.50952248 | Z86: 47.50952248 | AB86: 47.64004314 | AD86: 47.50952248 | AF86: 47.50952248
B87: =IF(LEN('Détail des projets'!B87)=0,"",'Détail des projets'!B87) -> Gestion efficace de l'ensemble de la consommation d’énergie et de l’appel de puissance électrique | C87: =IF(LEN('Détail des projets'!C87)=0,"",'Détail des projets'!C87) -> Le Syndicat des copropriétaires du Laurier de l'Île Paton | D87: =IF(LEN('Détail des projets'!G87)=0,"",'Détail des projets'!G87) -> 13-Laval | E87: =IF(LEN('Détail des projets'!K87)=0,"",'Détail des projets'!K87) -> 86022.58 | F87: 73.10481083 | G87: À la fin du projet (suite au dernier versement) | H87: 47.06808158 | I87: QC-Québec | J87: Oui | K87: 25 | L87: 0 | M87: 73.10481083 | N87: Non | O87: Oui | P87: 0 | R87: 39.94798406 | T87: 72.90507091 | V87: 72.70533099 | X87: 72.70533099 | Z87: 72.70533099 | AB87: 72.90507091 | AD87: 72.70533099 | AF87: 72.70533099
B88: =IF(LEN('Détail des projets'!B88)=0,"",'Détail des projets'!B88) -> Réfrigération à l'ammoniac avec récupération de chaleur | C88: =IF(LEN('Détail des projets'!C88)=0,"",'Détail des projets'!C88) -> Complexe sportif scientifique et éducatif Montcalm inc. | D88: =IF(LEN('Détail des projets'!G88)=0,"",'Détail des projets'!G88) -> 14-Lanaudière | E88: =IF(LEN('Détail des projets'!K88)=0,"",'Détail des projets'!K88) -> 284234.28 | F88: 281.4605635 | G88: À la fin du projet (suite au dernier versement) | H88: 42.14293762 | I88: QC-Québec | J88: Oui | K88: 25 | L88: 237.4677263 | M88: 32.31344801 | N88: Non | O88: Oui | P88: 0 | R88: 0 | T88: 22.11321101 | V88: 268.3069603 | X88: 268.3069603 | Z88: 268.3069603 | AB88: 269.0440673 | AD88: 268.3069603 | AF88: 268.3069603
B89: =IF(LEN('Détail des projets'!B89)=0,"",'Détail des projets'!B89) -> Réfrigération CO2 avec récupération de chaleur - Phase 1 | C89: =IF(LEN('Détail des projets'!C89)=0,"",'Détail des projets'!C89) -> SportPlex de l'Énergie inc. | D89: =IF(LEN('Détail des projets'!G89)=0,"",'Détail des projets'!G89) -> 16-Montérégie | E89: =IF(LEN('Détail des projets'!K89)=0,"",'Détail des projets'!K89) -> 305657.9533 | F89: 329.9880926 | G89: À la fin du projet (suite au dernier versement) | H89: 37.05078579 | I89: QC-Québec | J89: Oui | K89: 25 | L89: 296.4041798 | M89: 33.5839128 | N89: Non | O89: Oui | P89: 0 | R89: 0 | T89: 27.04820431 | V89: 328.184879 | X89: 328.184879 | Z89: 328.184879 | AB89: 329.0864858 | AD89: 328.184879 | AF89: 328.184879
B90: =IF(LEN('Détail des projets'!B90)=0,"",'Détail des projets'!B90) -> Projet hydroélectrique de 400 kW sur la rivière Brooch | C90: =IF(LEN('Détail des projets'!C90)=0,"",'Détail des projets'!C90) -> Rébec inc. | D90: =IF(LEN('Détail des projets'!G90)=0,"",'Détail des projets'!G90) -> 09-Côte-Nord | E90: =IF(LEN('Détail des projets'!K90)=0,"",'Détail des projets'!K90) -> 1316860.167 | F90: 238.7651441 | G90: À la fin du projet (suite au dernier versement) | H90: 39.39721031 | I90: QC-Québec | J90: Oui | K90: 30 | L90: 0 | M90: 1114.173784 | N90: Non | O90: Oui | P90: 0 | R90: 0 | T90: 0 | V90: 0 | X90: 0 | Z90: 0 | AB90: 0 | AD90: 508.3798414 | AF90: 1108.085403
B91: =IF(LEN('Détail des projets'!B91)=0,"",'Détail des projets'!B91) -> D654J – Projet en efficacité énergétique au Centre d'hébergement de Sainte-Claire | C91: =IF(LEN('Détail des projets'!C91)=0,"",'Détail des projets'!C91) -> Centre intégré de santé et de services sociaux de Chaudière-Appalaches | D91: =IF(LEN('Détail des projets'!G91)=0,"",'Détail des projets'!G91) -> 12-Chaudière-Appalaches | E91: =IF(LEN('Détail des projets'!K91)=0,"",'Détail des projets'!K91) -> 46321.47 | F91: 38.97615604 | G91: À la fin du projet (suite au dernier versement) | H91: 47.53826411 | I91: QC-Québec | J91: Oui | K91: 25 | L91: 0 | M91: 38.97615604 | N91: Non | O91: Oui | P91: 0 | R91: 0 | T91: 6.283041547 | V91: 38.76317158 | X91: 38.76317158 | Z91: 38.76317158 | AB91: 38.86966381 | AD91: 38.76317158 | AF91: 38.76317158
B92: =IF(LEN('Détail des projets'!B92)=0,"",'Détail des projets'!B92) -> Réfrigération CO2 avec récupération de chaleur - #8240 - IGA Marché St-Canut | C92: =IF(LEN('Détail des projets'!C92)=0,"",'Détail des projets'!C92) -> Marché St-Canut inc. | D92: =IF(LEN('Détail des projets'!G92)=0,"",'Détail des projets'!G92) -> 15-Laurentides | E92: =IF(LEN('Détail des projets'!K92)=0,"",'Détail des projets'!K92) -> 0 | F92: 159.4548294 | G92: À la fin du projet (suite au dernier versement) | H92: 0 | I92: QC-Québec | J92: Oui | K92: 15.73954201 | L92: 159.4548294 | N92: Non | O92: Oui | P92: 0 | R92: 0 | T92: 152.9197954 | V92: 158.5834915 | X92: 158.5834915 | Z92: 158.5834915 | AB92: 159.0191604 | AD92: 158.5834915 | AF92: 158.5834915
B93: =IF(LEN('Détail des projets'!B93)=0,"",'Détail des projets'!B93) -> Projet d'efficacité énergétique - Centre d'hébergement des Quatre-Temps | C93: =IF(LEN('Détail des projets'!C93)=0,"",'Détail des projets'!C93) -> Centre intégré universitaire de santé et services sociaux de l'Est-de-l'iÎe-de-Montréal (CIUSSS de l'Est-de-l'Île-de-Montréal ) | D93: =IF(LEN('Détail des projets'!G93)=0,"",'Détail des projets'!G93) -> 06-Montréal | E93: =IF(LEN('Détail des projets'!K93)=0,"",'Détail des projets'!K93) -> 79372.69 | F93: 63.49815588 | G93: À la fin du projet (suite au dernier versement) | H93: 41.66666412 | I93: QC-Québec | J93: Oui | K93: 30 | L93: 63.49815588 | N93: Non | O93: Oui | P93: 0 | R93: 0 | T93: 0 | V93: 37.99479819 | X93: 63.15117142 | Z93: 63.15117142 | AB93: 63.32466365 | AD93: 63.15117142 | AF93: 63.15117142
B94: =IF(LEN('Détail des projets'!B94)=0,"",'Détail des projets'!B94) -> Habitation 340 Plamondon - Projet d'efficacité énergétique | C94: =IF(LEN('Détail des projets'!C94)=0,"",'Détail des projets'!C94) -> Office municipal d'habitation de Montréal | D94: =IF(LEN('Détail des projets'!G94)=0,"",'Détail des projets'!G94) -> 06-Montréal | E94: =IF(LEN('Détail des projets'!K94)=0,"",'Détail des projets'!K94) -> 232561.02 | F94: 198.7925108 | G94: À la fin du projet (suite au dernier versement) | H94: 48.30143974 | I94: QC-Québec | J94: Oui | K94: 24.22014999 | L94: 138.6897508 | M94: 60.10276004 | N94: Non | O94: Oui | P94: 0 | R94: 0 | T94: 0 | V94: 0 | X94: 76.58400008 | Z94: 197.706213 | AB94: 198.2493619 | AD94: 197.706213 | AF94: 197.706213
B95: =IF(LEN('Détail des projets'!B95)=0,"",'Détail des projets'!B95) -> Habitation 533 André-Grasset - Projet d'efficacité énergétique | C95: =IF(LEN('Détail des projets'!C95)=0,"",'Détail des projets'!C95) -> Office municipal d'habitation de Montréal | D95: =IF(LEN('Détail des projets'!G95)=0,"",'Détail des projets'!G95) -> 06-Montréal | E95: =IF(LEN('Détail des projets'!K95)=0,"",'Détail des projets'!K95) -> 269302.04 | F95: 215.7317199 | G95: À la fin du projet (suite au dernier versement) | H95: 54.66146961 | I95: QC-Québec | J95: Oui | K95: 22.65249634 | L95: 136.2774658 | M95: 81.21402524 | N95: Non | O95: Oui | P95: 0 | R95: 0 | T95: 0 | V95: 198.4758415 | X95: 216.3030129 | Z95: 216.3030129 | AB95: 216.897252 | AD95: 216.3030129 | AF95: 216.3030129
B96: =IF(LEN('Détail des projets'!B96)=0,"",'Détail des projets'!B96) -> Étude d'efficacité énergétique visant la récupération de chaleur des refroidisseurs et la géothermie | C96: =IF(LEN('Détail des projets'!C96)=0,"",'Détail des projets'!C96) -> Aéroport de Québec inc. | D96: =IF(LEN('Détail des projets'!G96)=0,"",'Détail des projets'!G96) -> 03-Capitale-Nationale | E96: =IF(LEN('Détail des projets'!K96)=0,"",'Détail des projets'!K96) -> 12463.5 | F96: 0 | G96: À la fin du projet (suite au dernier versement) | H96: 0 | I96: QC-Québec | J96: Oui | K96: 25 | L96: 0 | N96: Non | O96: Oui
B97: =IF(LEN('Détail des projets'!B97)=0,"",'Détail des projets'!B97) -> Réfrigération au CO2 avec récupération de chaleur | C97: =IF(LEN('Détail des projets'!C97)=0,"",'Détail des projets'!C97) -> Métro Richelieu inc. | D97: =IF(LEN('Détail des projets'!G97)=0,"",'Détail des projets'!G97) -> 16-Montérégie | E97: =IF(LEN('Détail des projets'!K97)=0,"",'Détail des projets'!K97) -> 22694.22846 | F97: 101.8473843 | G97: À la fin du projet (suite au dernier versement) | H97: 17.81631701 | I97: QC-Québec | J97: Oui | K97: 15 | L97: 84.91926604 | N97: Non | O97: Oui | P97: 0 | R97: 0 | T97: 0 | V97: 66.82171754 | X97: 84.45522633 | Z97: 84.45522633 | AB97: 84.68724619 | AD97: 84.45522633 | AF97: 84.45522633
B98: =IF(LEN('Détail des projets'!B98)=0,"",'Détail des projets'!B98) -> D654O - Hôtel-Dieu de Lévis - Projet d'efficacité énergétique | C98: =IF(LEN('Détail des projets'!C98)=0,"",'Détail des projets'!C98) -> Centre intégré de santé et de services sociaux de Chaudière-Appalaches | D98: =IF(LEN('Détail des projets'!G98)=0,"",'Détail des projets'!G98) -> 12-Chaudière-Appalaches | E98: =IF(LEN('Détail des projets'!K98)=0,"",'Détail des projets'!K98) -> 1418066.2 | F98: 2911.185435 | G98: À la fin du projet (suite au dernier versement) | H98: 11.59226804 | I98: QC-Québec | J98: Oui | K98: 42.02021027 | L98: 417.5826792 | M98: 2493.602756 | N98: Non | O98: Oui | P98: 0 | R98: 0 | T98: 0 | V98: 1447.638659 | X98: 2895.277318 | Z98: 2895.277318 | AB98: 2903.231377 | AD98: 2895.277318 | AF98: 2895.277318
B99: =IF(LEN('Détail des projets'!B99)=0,"",'Détail des projets'!B99) -> Projet efficacité énergétique - D635A - Hôpital Anna-Laberge | C99: =IF(LEN('Détail des projets'!C99)=0,"",'Détail des projets'!C99) -> Centre intégré de santé et de services sociaux (CISSS) de la Montérégie-Ouest | D99: =IF(LEN('Détail des projets'!G99)=0,"",'Détail des projets'!G99) -> 16-Montérégie | E99: =IF(LEN('Détail des projets'!K99)=0,"",'Détail des projets'!K99) -> 677420.07 | F99: 1385.632137 | G99: À la fin du projet (suite au dernier versement) | H99: 12.65014459 | I99: QC-Québec | J99: Oui | K99: 38.64689636 | L99: 282.0450972 | M99: 1103.58704 | N99: Non | O99: Oui | P99: 0 | R99: 0 | T99: 0 | V99: 620.8843455 | X99: 1378.060377 | Z99: 1378.060377 | AB99: 1381.846257 | AD99: 1378.060377 | AF99: 1378.060377
B100: =IF(LEN('Détail des projets'!B100)=0,"",'Détail des projets'!B100) -> UQAC - Récupération des hottes des laboratoires | C100: =IF(LEN('Détail des projets'!C100)=0,"",'Détail des projets'!C100) -> Université du Québec à Chicoutimi | D100: =IF(LEN('Détail des projets'!G100)=0,"",'Détail des projets'!G100) -> 02-Saguenay--Lac-Saint-Jean | E100: =IF(LEN('Détail des projets'!K100)=0,"",'Détail des projets'!K100) -> 85171.94 | F100: 68.13755216 | G100: À la fin du projet (suite au dernier versement) | H100: 62.49999985 | I100: QC-Québec | J100: Oui | K100: 20 | L100: 68.13755216 | N100: Non | O100: Oui | P100: 0 | R100: 19.36149023 | T100: 67.95138398 | V100: 67.76521581 | X100: 67.76521581 | Z100: 67.76521581 | AB100: 67.95138398 | AD100: 67.76521581 | AF100: 67.76521581
B101: =IF(LEN('Détail des projets'!B101)=0,"",'Détail des projets'!B101) -> Université du Québec à Chicoutimi – Installation de nouvelles chaudières au gaz naturel au Pavillon principal | C101: =IF(LEN('Détail des projets'!C101)=0,"",'Détail des projets'!C101) -> Université du Québec à Chicoutimi | D101: =IF(LEN('Détail des projets'!G101)=0,"",'Détail des projets'!G101) -> 02-Saguenay--Lac-Saint-Jean | E101: =IF(LEN('Détail des projets'!K101)=0,"",'Détail des projets'!K101) -> 169462.17 | F101: 135.5697372 | G101: À la fin du projet (suite au dernier versement) | H101: 62.49999945 | I101: QC-Québec | J101: Oui | K101: 20 | L101: 135.5697372 | N101: Non | O101: Oui | P101: 0 | R101: 0 | T101: 0 | V101: 0.7408182361 | X101: 134.828919 | Z101: 134.828919 | AB101: 135.1993281 | AD101: 134.828919 | AF101: 134.828919
B102: =IF(LEN('Détail des projets'!B102)=0,"",'Détail des projets'!B102) -> D654A – Projet en efficacité énergétique au Centre d'hébergement de soins de longue durée Saint-Sylvestre | C102: =IF(LEN('Détail des projets'!C102)=0,"",'Détail des projets'!C102) -> Centre intégré de santé et de services sociaux de Chaudière-Appalaches | D102: =IF(LEN('Détail des projets'!G102)=0,"",'Détail des projets'!G102) -> 12-Chaudière-Appalaches | E102: =IF(LEN('Détail des projets'!K102)=0,"",'Détail des projets'!K102) -> 13926.87 | F102: 43.65625041 | G102: À la fin du projet (suite au dernier versement) | H102: 9.196773155 | I102: QC-Québec | J102: Oui | K102: 34.68738937 | L102: 4.77530896 | M102: 38.88094145 | N102: Non | O102: Oui | P102: 0 | R102: 0 | T102: 3.816939926 | V102: 43.41769166 | X102: 43.41769166 | Z102: 43.41769166 | AB102: 43.53697104 | AD102: 43.41769166 | AF102: 43.41769166
B103: =IF(LEN('Détail des projets'!B103)=0,"",'Détail des projets'!B103) -> Projet efficacité énergétique - D635D - Centre d'hébergement de Saint-Rémi | C103: =IF(LEN('Détail des projets'!C103)=0,"",'Détail des projets'!C103) -> Centre intégré de santé et de services sociaux (CISSS) de la Montérégie-Ouest | D103: =IF(LEN('Détail des projets'!G103)=0,"",'Détail des projets'!G103) -> 16-Montérégie | E103: =IF(LEN('Détail des projets'!K103)=0,"",'Détail des projets'!K103) -> 14107.42 | F103: 11.28593224 | G103: À la fin du projet (suite au dernier versement) | H103: 32.42268982 | I103: QC-Québec | J103: Oui | K103: 38.5532608 | L103: 11.28593224 | N103: Non | O103: Oui | P103: 0 | R103: 0 | T103: 2.220183391 | V103: 11.22426048 | X103: 11.22426048 | Z103: 11.22426048 | AB103: 11.25509636 | AD103: 11.22426048 | AF103: 11.22426048
B104: =IF(LEN('Détail des projets'!B104)=0,"",'Détail des projets'!B104) -> Projet efficacité énergétique - D635B - Centre d’hébergement de Châteauguay | C104: =IF(LEN('Détail des projets'!C104)=0,"",'Détail des projets'!C104) -> Centre intégré de santé et de services sociaux (CISSS) de la Montérégie-Ouest | D104: =IF(LEN('Détail des projets'!G104)=0,"",'Détail des projets'!G104) -> 16-Montérégie | E104: =IF(LEN('Détail des projets'!K104)=0,"",'Détail des projets'!K104) -> 342834.39 | F104: 276.949425 | G104: À la fin du projet (suite au dernier versement) | H104: 48.74032183 | I104: QC-Québec | J104: Oui | K104: 25.39776611 | L104: 276.949425 | N104: Non | O104: Oui | P104: 0 | R104: 0 | T104: 0 | V104: 260.3021918 | X104: 275.4360402 | Z104: 275.4360402 | AB104: 276.1927326 | AD104: 275.4360402 | AF104: 275.4360402
B105: =IF(LEN('Détail des projets'!B105)=0,"",'Détail des projets'!B105) -> Projet efficacité énergétique - D635C - Centre d’hébergement de La Prairie | C105: =IF(LEN('Détail des projets'!C105)=0,"",'Détail des projets'!C105) -> Centre intégré de santé et de services sociaux (CISSS) de la Montérégie-Ouest | D105: =IF(LEN('Détail des projets'!G105)=0,"",'Détail des projets'!G105) -> 16-Montérégie | E105: =IF(LEN('Détail des projets'!K105)=0,"",'Détail des projets'!K105) -> 107558.68 | F105: 86.9183956 | G105: À la fin du projet (suite au dernier versement) | H105: 27.35923769 | I105: QC-Québec | J105: Oui | K105: 45.23033142 | L105: 86.9183956 | N105: Non | O105: Oui | P105: 0 | R105: 0 | T105: 17.09870077 | V105: 86.44343169 | X105: 86.44343169 | Z105: 86.44343169 | AB105: 86.68091364 | AD105: 86.44343169 | AF105: 86.44343169
B106: =IF(LEN('Détail des projets'!B106)=0,"",'Détail des projets'!B106) -> Intégration d'un système de gestion énergétique à l'égard d'une conversion partielle de source d'énergie | C106: =IF(LEN('Détail des projets'!C106)=0,"",'Détail des projets'!C106) -> Syndicat de la copropriété Club Marin III | D106: =IF(LEN('Détail des projets'!G106)=0,"",'Détail des projets'!G106) -> 06-Montréal | E106: =IF(LEN('Détail des projets'!K106)=0,"",'Détail des projets'!K106) -> 95627.14 | F106: 128.6225292 | G106: À la fin du projet (suite au dernier versement) | H106: 49.56474349 | I106: QC-Québec | J106: Oui | K106: 15 | L106: 128.6225292 | N106: Non | O106: Oui | P106: 0 | R106: 47.79416386 | T106: 128.2711015 | V106: 127.9196739 | X106: 127.9196739 | Z106: 127.9196739 | AB106: 128.2711015 | AD106: 127.9196739 | AF106: 127.9196739
B107: =IF(LEN('Détail des projets'!B107)=0,"",'Détail des projets'!B107) -> Modernisation énergétique - 9600 Meilleur | C107: =IF(LEN('Détail des projets'!C107)=0,"",'Détail des projets'!C107) -> 4196236 Canada inc. | D107: =IF(LEN('Détail des projets'!G107)=0,"",'Détail des projets'!G107) -> 06-Montréal | E107: =IF(LEN('Détail des projets'!K107)=0,"",'Détail des projets'!K107) -> 10000 | F107: 0 | G107: À la fin du projet (suite au dernier versement) | H107: 0 | I107: QC-Québec | J107: Oui | K107: 23.08918953 | L107: 0 | N107: Non | O107: Oui
B108: =IF(LEN('Détail des projets'!B108)=0,"",'Détail des projets'!B108) -> Modernisation énergétique au 6300, avenue du Parc | C108: =IF(LEN('Détail des projets'!C108)=0,"",'Détail des projets'!C108) -> 6300 avenue du Parc inc. | D108: =IF(LEN('Détail des projets'!G108)=0,"",'Détail des projets'!G108) -> 06-Montréal | E108: =IF(LEN('Détail des projets'!K108)=0,"",'Détail des projets'!K108) -> 6000 | F108: 0 | G108: À la fin du projet (suite au dernier versement) | H108: 0 | I108: QC-Québec | J108: Oui | K108: 24.96272469 | L108: 0 | N108: Non | O108: Oui
B109: =IF(LEN('Détail des projets'!B109)=0,"",'Détail des projets'!B109) -> Centre jeunesse de Montréal édifice DSM - Projet d'économie d'énergie | C109: =IF(LEN('Détail des projets'!C109)=0,"",'Détail des projets'!C109) -> Centre intégré universitaire de santé et de services sociaux du Centre-Sud-de-l’Île-de-Montréal | D109: =IF(LEN('Détail des projets'!G109)=0,"",'Détail des projets'!G109) -> 06-Montréal | E109: =IF(LEN('Détail des projets'!K109)=0,"",'Détail des projets'!K109) -> 63164.54 | F109: 60.13282344 | G109: À la fin du projet (suite au dernier versement) | H109: 57.4262518 | I109: QC-Québec | J109: Oui | K109: 18.29158211 | L109: 50.29277924 | M109: 9.8400442 | N109: Non | O109: Oui | P109: 0 | R109: 0 | T109: 0 | V109: 51.75365952 | X109: 59.80422878 | Z109: 59.80422878 | AB109: 59.96852611 | AD109: 59.80422878 | AF109: 59.80422878
B110: =IF(LEN('Détail des projets'!B110)=0,"",'Détail des projets'!B110) -> Centre jeunesse de Montréal siège social - Projet d'économie d'énergie | C110: =IF(LEN('Détail des projets'!C110)=0,"",'Détail des projets'!C110) -> Centre intégré universitaire de santé et de services sociaux du Centre-Sud-de-l’Île-de-Montréal | D110: =IF(LEN('Détail des projets'!G110)=0,"",'Détail des projets'!G110) -> 06-Montréal | E110: =IF(LEN('Détail des projets'!K110)=0,"",'Détail des projets'!K110) -> 60870.47 | F110: 49.51067252 | G110: À la fin du projet (suite au dernier versement) | H110: 61.72587185 | I110: QC-Québec | J110: Oui | K110: 19.91776466 | L110: 49.51067252 | N110: Non | O110: Oui | P110: 0 | R110: 0 | T110: 0 | V110: 42.61164438 | X110: 49.2401224 | Z110: 49.2401224 | AB110: 49.37539746 | AD110: 49.2401224 | AF110: 49.2401224
B111: =IF(LEN('Détail des projets'!B111)=0,"",'Détail des projets'!B111) -> Centre jeunesse de Montréal Cité des Prairies - Projet d'économie d'énergie | C111: =IF(LEN('Détail des projets'!C111)=0,"",'Détail des projets'!C111) -> Centre intégré universitaire de santé et de services sociaux du Centre-Sud-de-l’Île-de-Montréal | D111: =IF(LEN('Détail des projets'!G111)=0,"",'Détail des projets'!G111) -> 06-Montréal | E111: =IF(LEN('Détail des projets'!K111)=0,"",'Détail des projets'!K111) -> 44807.07 | F111: 36.93357776 | G111: À la fin du projet (suite au dernier versement) | H111: 48.22007036 | I111: QC-Québec | J111: Oui | K111: 21.1074276 | L111: 44.02338144 | N111: Non | O111: Oui | P111: 0 | R111: 0 | T111: 0 | V111: 37.88897583 | X111: 43.78281651 | Z111: 43.78281651 | AB111: 43.90309898 | AD111: 43.78281651 | AF111: 43.78281651
B112: =IF(LEN('Détail des projets'!B112)=0,"",'Détail des projets'!B112) -> Centre jeunesse de Montréal édifice Rose-Virginie Pelletier - Projet d'économie d'énergie | C112: =IF(LEN('Détail des projets'!C112)=0,"",'Détail des projets'!C112) -> Centre intégré universitaire de santé et de services sociaux du Centre-Sud-de-l’Île-de-Montréal | D112: =IF(LEN('Détail des projets'!G112)=0,"",'Détail des projets'!G112) -> 06-Montréal | E112: =IF(LEN('Détail des projets'!K112)=0,"",'Détail des projets'!K112) -> 58205.68 | F112: 48.9620894 | G112: À la fin du projet (suite au dernier versement) | H112: 42.44586642 | I112: QC-Québec | J112: Oui | K112: 28.00722122 | L112: 48.9620894 | N112: Non | O112: Oui | P112: 0 | R112: 0 | T112: 0 | V112: 42.13950317 | X112: 48.694537 | Z112: 48.694537 | AB112: 48.8283132 | AD112: 48.694537 | AF112: 48.694537
B113: =IF(LEN('Détail des projets'!B113)=0,"",'Détail des projets'!B113) -> Centre jeunesse de Montréal édifice Décarie - Projet d'économie d'énergie | C113: =IF(LEN('Détail des projets'!C113)=0,"",'Détail des projets'!C113) -> Centre intégré universitaire de santé et de services sociaux du Centre-Sud-de-l’Île-de-Montréal | D113: =IF(LEN('Détail des projets'!G113)=0,"",'Détail des projets'!G113) -> 06-Montréal | E113: =IF(LEN('Détail des projets'!K113)=0,"",'Détail des projets'!K113) -> 48914.81 | F113: 52.1065532 | G113: À la fin du projet (suite au dernier versement) | H113: 34.12384361 | I113: QC-Québec | J113: Oui | K113: 27.5099678 | L113: 52.1065532 | N113: Non | O113: Oui | P113: 0 | R113: 0 | T113: 0 | V113: 44.84580398 | X113: 51.82181794 | Z113: 51.82181794 | AB113: 51.96418557 | AD113: 51.82181794 | AF113: 51.82181794
B114: =IF(LEN('Détail des projets'!B114)=0,"",'Détail des projets'!B114) -> Centre jeunesse de Montréal Mont Saint-Antoine - Projet d'économie d'énergie | C114: =IF(LEN('Détail des projets'!C114)=0,"",'Détail des projets'!C114) -> Centre intégré universitaire de santé et de services sociaux du Centre-Sud-de-l’Île-de-Montréal | D114: =IF(LEN('Détail des projets'!G114)=0,"",'Détail des projets'!G114) -> 06-Montréal | E114: =IF(LEN('Détail des projets'!K114)=0,"",'Détail des projets'!K114) -> 94353.18 | F114: 258.0426858 | G114: À la fin du projet (suite au dernier versement) | H114: 14.27637708 | I114: QC-Québec | J114: Oui | K114: 25.61220551 | L114: 82.81688548 | M114: 175.2258003 | N114: Non | O114: Oui | P114: 0 | R114: 0 | T114: 0 | V114: 222.0859181 | X114: 256.6326164 | Z114: 256.6326164 | AB114: 257.3376511 | AD114: 256.6326164 | AF114: 256.6326164
B115: =IF(LEN('Détail des projets'!B115)=0,"",'Détail des projets'!B115) -> Optimisation du système de réfrigération de l'aréna | C115: =IF(LEN('Détail des projets'!C115)=0,"",'Détail des projets'!C115) -> Ville de Chambly | D115: =IF(LEN('Détail des projets'!G115)=0,"",'Détail des projets'!G115) -> 16-Montérégie | E115: =IF(LEN('Détail des projets'!K115)=0,"",'Détail des projets'!K115) -> 63353.4646 | F115: 108.305269 | G115: À la fin du projet (suite au dernier versement) | H115: 25.35798075 | I115: QC-Québec | J115: Oui | K115: 26.48695946 | L115: 94.324301 | N115: Non | O115: Oui | P115: 0 | R115: 0 | T115: 0 | V115: 0 | X115: 0 | Z115: 0 | AB115: 40.97695043 | AD115: 93.80886766 | AF115: 93.80886766
B116: =IF(LEN('Détail des projets'!B116)=0,"",'Détail des projets'!B116) -> Remplacement des chaudières au mazout léger par des systèmes électriques zonés | C116: =IF(LEN('Détail des projets'!C116)=0,"",'Détail des projets'!C116) -> La Fabrique de la paroisse de Saint-Eustache | D116: =IF(LEN('Détail des projets'!G116)=0,"",'Détail des projets'!G116) -> 15-Laurentides | E116: =IF(LEN('Détail des projets'!K116)=0,"",'Détail des projets'!K116) -> 126341.25 | F116: 134.1141516 | G116: À la fin du projet (suite au dernier versement) | H116: 23.55706124 | I116: QC-Québec | J116: Oui | K116: 40 | L116: 0 | M116: 134.0800204 | N116: Non | O116: Oui | P116: 0 | R116: 0 | T116: 0 | V116: 66.30733247 | X116: 133.3473426 | Z116: 133.3473426 | AB116: 133.7136815 | AD116: 133.3473426 | AF116: 133.3473426
B117: =IF(LEN('Détail des projets'!B117)=0,"",'Détail des projets'!B117) -> Remplacement des chaudières au mazout léger par des systèmes électriques zonés | C117: =IF(LEN('Détail des projets'!C117)=0,"",'Détail des projets'!C117) -> La Fabrique de la paroisse de Saint-André de La Sarre | D117: =IF(LEN('Détail des projets'!G117)=0,"",'Détail des projets'!G117) -> 08-Abitibi-Témiscamingue | E117: =IF(LEN('Détail des projets'!K117)=0,"",'Détail des projets'!K117) -> 122475 | F117: 119.930007 | G117: À la fin du projet (suite au dernier versement) | H117: 25.48589135 | I117: QC-Québec | J117: Oui | K117: 40 | L117: 0 | M117: 120.1400005 | N117: Non | O117: Oui | P117: 0 | R117: 0 | T117: 0 | V117: 60.07000026 | X117: 119.4834978 | Z117: 119.4834978 | AB117: 119.8117492 | AD117: 119.4834978 | AF117: 119.4834978
B118: =IF(LEN('Détail des projets'!B118)=0,"",'Détail des projets'!B118) -> Analyse pour l'ajout de chauffage et de climatisation pour l'ensemble du pavillon sportif du collège de Maisonneuve | C118: =IF(LEN('Détail des projets'!C118)=0,"",'Détail des projets'!C118) -> Collège de Maisonneuve | D118: =IF(LEN('Détail des projets'!G118)=0,"",'Détail des projets'!G118) -> 06-Montréal | E118: =IF(LEN('Détail des projets'!K118)=0,"",'Détail des projets'!K118) -> 25000 | F118: 0 | G118: À la fin du projet (suite au dernier versement) | H118: 0 | I118: QC-Québec | J118: Oui | K118: 24.40211105 | L118: 169.8450528 | N118: Non | O118: Oui | X118: 154.9952121 | Z118: 168.9169378 | AB118: 169.3809953 | AD118: 168.9169378 | AF118: 168.9169378
B119: =IF(LEN('Détail des projets'!B119)=0,"",'Détail des projets'!B119) -> Implantation de mesures en efficacité énergétique en mode ESE | C119: =IF(LEN('Détail des projets'!C119)=0,"",'Détail des projets'!C119) -> CIUSSS Saguenay-Lac-Saint-Jean | D119: =IF(LEN('Détail des projets'!G119)=0,"",'Détail des projets'!G119) -> 02-Saguenay--Lac-Saint-Jean | E119: =IF(LEN('Détail des projets'!K119)=0,"",'Détail des projets'!K119) -> 1810843.57 | F119: 3889.105066 | G119: À la fin du projet (suite au dernier versement) | H119: 18.62478426 | I119: QC-Québec | J119: Oui | K119: 25 | L119: 3889.105066 | N119: Non | O119: Oui | P119: 0 | R119: 0 | T119: 0 | V119: 0 | X119: 0 | Z119: 3187.791037 | AB119: 3878.479096 | AD119: 3867.853125 | AF119: 3867.853125
B120: =IF(LEN('Détail des projets'!B120)=0,"",'Détail des projets'!B120) -> Remplacement des chaudières au mazout léger par des systèmes électriques zonés | C120: =IF(LEN('Détail des projets'!C120)=0,"",'Détail des projets'!C120) -> La Fabrique de la paroisse Coeur-Immaculé-de-Marie | D120: =IF(LEN('Détail des projets'!G120)=0,"",'Détail des projets'!G120) -> 05-Estrie | E120: =IF(LEN('Détail des projets'!K120)=0,"",'Détail des projets'!K120) -> 78339.28 | F120: 68.75153082 | G120: À la fin du projet (suite au dernier versement) | H120: 45.57820259 | I120: QC-Québec | J120: Oui | K120: 25 | L120: 0 | M120: 68.75153082 | N120: Non | O120: Oui | P120: 0 | R120: 0 | T120: 0 | V120: 37.00560538 | X120: 68.37583939 | Z120: 68.37583939 | AB120: 68.5636851 | AD120: 68.37583939 | AF120: 68.37583939
B121: =IF(LEN('Détail des projets'!B121)=0,"",'Détail des projets'!B121) -> Récupération de chaleur sur système de réfrigération | C121: =IF(LEN('Détail des projets'!C121)=0,"",'Détail des projets'!C121) -> Métro Richelieu inc. | D121: =IF(LEN('Détail des projets'!G121)=0,"",'Détail des projets'!G121) -> 12-Chaudière-Appalaches | E121: =IF(LEN('Détail des projets'!K121)=0,"",'Détail des projets'!K121) -> 10072.76 | F121: 66.81750219 | G121: À la fin du projet (suite au dernier versement) | H121: 7.007927269 | I121: QC-Québec | J121: Oui | K121: 15 | L121: 95.82253176 | N121: Non | O121: Oui | P121: 0 | R121: 0 | T121: 0 | V121: 0 | X121: 0 | Z121: 0 | AB121: 54.19471059 | AD121: 95.29891137 | AF121: 95.29891137
B122: =IF(LEN('Détail des projets'!B122)=0,"",'Détail des projets'!B122) -> Conversion partielle du système de chauffage au mazout léger par l'ajout d'une chaudière électrique | C122: =IF(LEN('Détail des projets'!C122)=0,"",'Détail des projets'!C122) -> La Fabrique de la Paroisse de Sainte-Thérèse-d'Avila | D122: =IF(LEN('Détail des projets'!G122)=0,"",'Détail des projets'!G122) -> 02-Saguenay--Lac-Saint-Jean | E122: =IF(LEN('Détail des projets'!K122)=0,"",'Détail des projets'!K122) -> 23853 | F122: 86.989312 | G122: À la fin du projet (suite au dernier versement) | H122: 45.09027869 | I122: QC-Québec | J122: Oui | K122: 7 | L122: 0 | M122: 75.5721971 | N122: Non | O122: Oui | P122: 0 | R122: 0 | T122: 24.98425096 | V122: 75.15923428 | X122: 75.15923428 | Z122: 75.15923428 | AB122: 75.36571569 | AD122: 75.15923428 | AF122: 75.15923428
B123: =IF(LEN('Détail des projets'!B123)=0,"",'Détail des projets'!B123) -> Réfrigération CO2 avec récupération de chaleur (08547) | C123: =IF(LEN('Détail des projets'!C123)=0,"",'Détail des projets'!C123) -> Sobeys Capital Incorporée | D123: =IF(LEN('Détail des projets'!G123)=0,"",'Détail des projets'!G123) -> 06-Montréal | E123: =IF(LEN('Détail des projets'!K123)=0,"",'Détail des projets'!K123) -> 0 | F123: 146.9768897 | G123: À la fin du projet (suite au dernier versement) | H123: 0 | I123: QC-Québec | J123: Oui | K123: 15 | L123: 178.5256254 | N123: Non | O123: Oui | P123: 0 | R123: 0 | T123: 9.755498658 | V123: 177.5500756 | X123: 177.5500756 | Z123: 177.5500756 | AB123: 178.0378505 | AD123: 177.5500756 | AF123: 177.5500756
B124: =IF(LEN('Détail des projets'!B124)=0,"",'Détail des projets'!B124) -> Analyse d'efficacité énergétique dans le but de réduire les gaz à effets de serre | C124: =IF(LEN('Détail des projets'!C124)=0,"",'Détail des projets'!C124) -> Centre de services scolaire des Hautes-Rivières | D124: =IF(LEN('Détail des projets'!G124)=0,"",'Détail des projets'!G124) -> 16-Montérégie | E124: =IF(LEN('Détail des projets'!K124)=0,"",'Détail des projets'!K124) -> 4250 | F124: 0 | G124: À la fin du projet (suite au dernier versement) | H124: 0 | I124: QC-Québec | J124: Oui | K124: 0 | L124: 0 | M124: 0 | N124: Non | O124: Oui
B125: =IF(LEN('Détail des projets'!B125)=0,"",'Détail des projets'!B125) -> Optimisation de la récupération de biogaz | C125: =IF(LEN('Détail des projets'!C125)=0,"",'Détail des projets'!C125) -> Régie de Gestion des Matières Résiduelles de la Mauricie | D125: =IF(LEN('Détail des projets'!G125)=0,"",'Détail des projets'!G125) -> 04-Mauricie | E125: =IF(LEN('Détail des projets'!K125)=0,"",'Détail des projets'!K125) -> 9980 | F125: 0 | G125: À la fin du projet (suite au dernier versement) | H125: 0 | I125: QC-Québec | J125: Oui | K125: 20 | L125: 0 | N125: Non | O125: Oui
B126: =IF(LEN('Détail des projets'!B126)=0,"",'Détail des projets'!B126) -> Conversion du système de chauffage au mazout vers l'électricité | C126: =IF(LEN('Détail des projets'!C126)=0,"",'Détail des projets'!C126) -> La Fabrique de la paroisse de Notre-Dame-de-Bonsecours | D126: =IF(LEN('Détail des projets'!G126)=0,"",'Détail des projets'!G126) -> 07-Outaouais | E126: =IF(LEN('Détail des projets'!K126)=0,"",'Détail des projets'!K126) -> 71583 | F126: 69.57237826 | G126: À la fin du projet (suite au dernier versement) | H126: 41.1559885 | I126: QC-Québec | J126: Oui | K126: 25 | L126: 0 | M126: 69.57237826 | N126: Non | O126: Oui | P126: 0 | R126: 0 | T126: 19.95928885 | V126: 69.19220133 | X126: 69.19220133 | Z126: 69.19220133 | AB126: 69.3822898 | AD126: 69.19220133 | AF126: 69.19220133
B127: =IF(LEN('Détail des projets'!B127)=0,"",'Détail des projets'!B127) -> Projet d’optimisation de la chaufferie au foyer de Havre-Saint-Pierre | C127: =IF(LEN('Détail des projets'!C127)=0,"",'Détail des projets'!C127) -> CISSS de la Côte-Nord | D127: =IF(LEN('Détail des projets'!G127)=0,"",'Détail des projets'!G127) -> 09-Côte-Nord | E127: =IF(LEN('Détail des projets'!K127)=0,"",'Détail des projets'!K127) -> 101016.12 | F127: 80.81289965 | G127: À la fin du projet (suite au dernier versement) | H127: 48.34447472 | I127: QC-Québec | J127: Oui | K127: 23 | L127: 90.84813192 | N127: Non | O127: Oui | P127: 0 | R127: 0 | T127: 0 | V127: 0 | X127: 45.17584702 | Z127: 90.35169404 | AB127: 90.59991298 | AD127: 90.35169404 | AF127: 90.35169404
B128: =IF(LEN('Détail des projets'!B128)=0,"",'Détail des projets'!B128) -> Remplacement d'une chaudière mazout léger par une chaudière électrique | C128: =IF(LEN('Détail des projets'!C128)=0,"",'Détail des projets'!C128) -> Fabrique de la paroisse de Notre-Dame-de-Lourdes | D128: =IF(LEN('Détail des projets'!G128)=0,"",'Détail des projets'!G128) -> 01-Bas-Saint-Laurent | E128: =IF(LEN('Détail des projets'!K128)=0,"",'Détail des projets'!K128) -> 15817.91 | F128: 80.76603396 | G128: À la fin du projet (suite au dernier versement) | H128: 6.774978307 | I128: QC-Québec | J128: Oui | K128: 30 | L128: 0 | M128: 77.82514464 | N128: Non | O128: Oui | P128: 0 | R128: 0 | T128: 22.75215977 | V128: 77.39987063 | X128: 77.39987063 | Z128: 77.39987063 | AB128: 77.61250763 | AD128: 77.39987063 | AF128: 77.39987063
B129: =IF(LEN('Détail des projets'!B129)=0,"",'Détail des projets'!B129) -> Réfrigération CO2 avec récupération de chaleur (88086) | C129: =IF(LEN('Détail des projets'!C129)=0,"",'Détail des projets'!C129) -> Sobeys Capital Incorporée | D129: =IF(LEN('Détail des projets'!G129)=0,"",'Détail des projets'!G129) -> 07-Outaouais | E129: =IF(LEN('Détail des projets'!K129)=0,"",'Détail des projets'!K129) -> 0 | F129: 0 | G129: À la fin du projet (suite au dernier versement) | H129: 0 | I129: QC-Québec | J129: Oui | K129: 15 | L129: 1.80016128 | N129: Non | O129: Oui | P129: 0 | R129: 0 | T129: 0 | V129: 0 | X129: 0 | Z129: 1.086982631 | AB129: 1.795242807 | AD129: 1.790324333 | AF129: 1.790324333
B130: =IF(LEN('Détail des projets'!B130)=0,"",'Détail des projets'!B130) -> Conversion du mazout vers des thermopompes électriques | C130: =IF(LEN('Détail des projets'!C130)=0,"",'Détail des projets'!C130) -> ÉnerProx inc. | D130: =IF(LEN('Détail des projets'!G130)=0,"",'Détail des projets'!G130) -> 17-Centre-du-Québec | E130: =IF(LEN('Détail des projets'!K130)=0,"",'Détail des projets'!K130) -> 22514.42 | F130: 18.01153777 | G130: À la fin du projet (suite au dernier versement) | H130: 83.33317414 | I130: QC-Québec | J130: Oui | K130: 15 | L130: 0 | M130: 18.01157041 | N130: Non | O130: Oui | P130: 0 | R130: 0 | T130: 0 | V130: 0 | X130: 0 | Z130: 15.15727783 | AB130: 17.96235847 | AD130: 17.91314653 | AF130: 17.91314653
B131: =IF(LEN('Détail des projets'!B131)=0,"",'Détail des projets'!B131) -> Aréna Henri-Desjardins - Étude en efficacité énergétique | C131: =IF(LEN('Détail des projets'!C131)=0,"",'Détail des projets'!C131) -> Ville de Baie-Comeau | D131: =IF(LEN('Détail des projets'!G131)=0,"",'Détail des projets'!G131) -> 09-Côte-Nord | E131: =IF(LEN('Détail des projets'!K131)=0,"",'Détail des projets'!K131) -> 9750 | F131: 0 | G131: À la fin du projet (suite au dernier versement) | H131: 0 | I131: QC-Québec | J131: Oui | K131: 20 | L131: 0 | M131: 0 | N131: Non | O131: Oui
B132: =IF(LEN('Détail des projets'!B132)=0,"",'Détail des projets'!B132) -> C5464-TRIV Implantation du produit écoAZUR | C132: =IF(LEN('Détail des projets'!C132)=0,"",'Détail des projets'!C132) -> Le Trois-Rivières (2014) inc. | D132: =IF(LEN('Détail des projets'!G132)=0,"",'Détail des projets'!G132) -> 04-Mauricie | E132: =IF(LEN('Détail des projets'!K132)=0,"",'Détail des projets'!K132) -> 34648.21 | F132: 27.71856876 | G132: À la fin du projet (suite au dernier versement) | H132: 117.9676141 | I132: QC-Québec | J132: Oui | K132: 10 | L132: 29.37095088 | N132: Non | O132: Oui | P132: 0 | R132: 0 | T132: 0 | V132: 13.16075395 | X132: 29.21045388 | Z132: 29.21045388 | AB132: 29.29070238 | AD132: 29.21045388 | AF132: 29.21045388
B133: =IF(LEN('Détail des projets'!B133)=0,"",'Détail des projets'!B133) -> C5465-CAPT Implantation du produit écoAZUR | C133: =IF(LEN('Détail des projets'!C133)=0,"",'Détail des projets'!C133) -> Le Bouvier inc. | D133: =IF(LEN('Détail des projets'!G133)=0,"",'Détail des projets'!G133) -> 03-Capitale-Nationale | E133: =IF(LEN('Détail des projets'!K133)=0,"",'Détail des projets'!K133) -> 34648.21 | F133: 27.71856876 | G133: À la fin du projet (suite au dernier versement) | H133: 124.2831633 | I133: QC-Québec | J133: Oui | K133: 10 | L133: 27.87844232 | N133: Non | O133: Oui | P133: 0 | R133: 0 | T133: 0 | V133: 9.673667144 | X133: 27.72610111 | Z133: 27.72610111 | AB133: 27.80227171 | AD133: 27.72610111 | AF133: 27.72610111
B134: =IF(LEN('Détail des projets'!B134)=0,"",'Détail des projets'!B134) -> C5466-CMAD Implantation du produit écoAZUR | C134: =IF(LEN('Détail des projets'!C134)=0,"",'Détail des projets'!C134) -> Restaurant CAP (2014) inc. | D134: =IF(LEN('Détail des projets'!G134)=0,"",'Détail des projets'!G134) -> 04-Mauricie | E134: =IF(LEN('Détail des projets'!K134)=0,"",'Détail des projets'!K134) -> 34648.21 | F134: 27.71856876 | G134: À la fin du projet (suite au dernier versement) | H134: 103.7177134 | I134: QC-Québec | J134: Oui | K134: 10 | L134: 33.40626096 | N134: Non | O134: Oui | P134: 0 | R134: 0 | T134: 0 | V134: 14.7863778 | X134: 33.22371309 | Z134: 33.22371309 | AB134: 33.31498702 | AD134: 33.22371309 | AF134: 33.22371309
B135: =IF(LEN('Détail des projets'!B135)=0,"",'Détail des projets'!B135) -> C5467-CHLB Implantation du produit écoAZUR | C135: =IF(LEN('Détail des projets'!C135)=0,"",'Détail des projets'!C135) -> Restaurant Le CHLB inc. | D135: =IF(LEN('Détail des projets'!G135)=0,"",'Détail des projets'!G135) -> 03-Capitale-Nationale | E135: =IF(LEN('Détail des projets'!K135)=0,"",'Détail des projets'!K135) -> 34648.21 | F135: 27.71856876 | G135: À la fin du projet (suite au dernier versement) | H135: 115.8807434 | I135: QC-Québec | J135: Oui | K135: 10 | L135: 29.89988584 | N135: Non | O135: Oui | P135: 0 | R135: 0 | T135: 0 | V135: 17.1556722 | X135: 29.73649849 | Z135: 29.73649849 | AB135: 29.81819216 | AD135: 29.73649849 | AF135: 29.73649849
B136: =IF(LEN('Détail des projets'!B136)=0,"",'Détail des projets'!B136) -> C5468-CHNY Implantation du produit écoAZUR | C136: =IF(LEN('Détail des projets'!C136)=0,"",'Détail des projets'!C136) -> Restaurant Le CHNY inc. | D136: =IF(LEN('Détail des projets'!G136)=0,"",'Détail des projets'!G136) -> 12-Chaudière-Appalaches | E136: =IF(LEN('Détail des projets'!K136)=0,"",'Détail des projets'!K136) -> 34648.21 | F136: 27.71856876 | G136: À la fin du projet (suite au dernier versement) | H136: 99.4926328 | I136: QC-Québec | J136: Oui | K136: 10 | L136: 34.82490012 | N136: Non | O136: Oui | P136: 0 | R136: 0 | T136: 0 | V136: 12.08405004 | X136: 34.63460012 | Z136: 34.63460012 | AB136: 34.72975012 | AD136: 34.63460012 | AF136: 34.63460012
B137: =IF(LEN('Détail des projets'!B137)=0,"",'Détail des projets'!B137) -> C5469-DNCA Implantation du produit écoAZUR | C137: =IF(LEN('Détail des projets'!C137)=0,"",'Détail des projets'!C137) -> Restaurant Donnacona (2014) inc. | D137: =IF(LEN('Détail des projets'!G137)=0,"",'Détail des projets'!G137) -> 03-Capitale-Nationale | E137: =IF(LEN('Détail des projets'!K137)=0,"",'Détail des projets'!K137) -> 34648.21 | F137: 27.71856876 | G137: À la fin du projet (suite au dernier versement) | H137: 119.1111493 | I137: QC-Québec | J137: Oui | K137: 10 | L137: 29.08897296 | N137: Non | O137: Oui | P137: 0 | R137: 0 | T137: 0 | V137: 10.65006114 | X137: 28.93001682 | Z137: 28.93001682 | AB137: 29.00949489 | AD137: 28.93001682 | AF137: 28.93001682
B138: =IF(LEN('Détail des projets'!B138)=0,"",'Détail des projets'!B138) -> C5470-DRUM Implantation du produit écoAZUR | C138: =IF(LEN('Détail des projets'!C138)=0,"",'Détail des projets'!C138) -> Le Drummondvillois (2014) inc. | D138: =IF(LEN('Détail des projets'!G138)=0,"",'Détail des projets'!G138) -> 17-Centre-du-Québec | E138: =IF(LEN('Détail des projets'!K138)=0,"",'Détail des projets'!K138) -> 34648.21 | F138: 27.71856876 | G138: À la fin du projet (suite au dernier versement) | H138: 84.94656218 | I138: QC-Québec | J138: Oui | K138: 10 | L138: 40.78824276 | N138: Non | O138: Oui | P138: 0 | R138: 0 | T138: 0 | V138: 14.93340035 | X138: 40.56535619 | Z138: 40.56535619 | AB138: 40.67679947 | AD138: 40.56535619 | AF138: 40.56535619
B139: =IF(LEN('Détail des projets'!B139)=0,"",'Détail des projets'!B139) -> C5471-DUBG Implantation du produit écoAZUR | C139: =IF(LEN('Détail des projets'!C139)=0,"",'Détail des projets'!C139) -> Martin Brie inc. | D139: =IF(LEN('Détail des projets'!G139)=0,"",'Détail des projets'!G139) -> 03-Capitale-Nationale | E139: =IF(LEN('Détail des projets'!K139)=0,"",'Détail des projets'!K139) -> 34648.21 | F139: 27.71856876 | G139: À la fin du projet (suite au dernier versement) | H139: 112.9407306 | I139: QC-Québec | J139: Oui | K139: 10 | L139: 30.67822372 | N139: Non | O139: Oui | P139: 0 | R139: 0 | T139: 0 | V139: 14.24944818 | X139: 30.51058315 | Z139: 30.51058315 | AB139: 30.59440344 | AD139: 30.51058315 | AF139: 30.51058315
B140: =IF(LEN('Détail des projets'!B140)=0,"",'Détail des projets'!B140) -> C5472-FLYS Implantation du produit écoAZUR | C140: =IF(LEN('Détail des projets'!C140)=0,"",'Détail des projets'!C140) -> Le Flys inc. | D140: =IF(LEN('Détail des projets'!G140)=0,"",'Détail des projets'!G140) -> 03-Capitale-Nationale | E140: =IF(LEN('Détail des projets'!K140)=0,"",'Détail des projets'!K140) -> 34648.21 | F140: 27.71856876 | G140: À la fin du projet (suite au dernier versement) | H140: 113.5425254 | I140: QC-Québec | J140: Oui | K140: 10 | L140: 30.51562388 | N140: Non | O140: Oui | P140: 0 | R140: 0 | T140: 0 | V140: 12.92328334 | X140: 30.34887184 | Z140: 30.34887184 | AB140: 30.43224786 | AD140: 30.34887184 | AF140: 30.34887184
B141: =IF(LEN('Détail des projets'!B141)=0,"",'Détail des projets'!B141) -> C5473-LZON Implantation du produit écoAZUR | C141: =IF(LEN('Détail des projets'!C141)=0,"",'Détail des projets'!C141) -> Restaurant Alauzon (2014) inc. | D141: =IF(LEN('Détail des projets'!G141)=0,"",'Détail des projets'!G141) -> 12-Chaudière-Appalaches | E141: =IF(LEN('Détail des projets'!K141)=0,"",'Détail des projets'!K141) -> 34648.21 | F141: 27.71856876 | G141: À la fin du projet (suite au dernier versement) | H141: 107.7258932 | I141: QC-Québec | J141: Oui | K141: 10 | L141: 32.16330724 | N141: Non | O141: Oui | P141: 0 | R141: 0 | T141: 0 | V141: 13.09380541 | X141: 31.98755146 | Z141: 31.98755146 | AB141: 32.07542935 | AD141: 31.98755146 | AF141: 31.98755146
B142: =IF(LEN('Détail des projets'!B142)=0,"",'Détail des projets'!B142) -> C5474-NCHT Implantation du produit écoAZUR | C142: =IF(LEN('Détail des projets'!C142)=0,"",'Détail des projets'!C142) -> Restaurant Neufchâtel inc. | D142: =IF(LEN('Détail des projets'!G142)=0,"",'Détail des projets'!G142) -> 03-Capitale-Nationale | E142: =IF(LEN('Détail des projets'!K142)=0,"",'Détail des projets'!K142) -> 34648.21 | F142: 27.71856876 | G142: À la fin du projet (suite au dernier versement) | H142: 101.8227011 | I142: QC-Québec | J142: Oui | K142: 10 | L142: 34.0279816 | N142: Non | O142: Oui | P142: 0 | R142: 0 | T142: 0 | V142: 15.24751088 | X142: 33.84203635 | Z142: 33.84203635 | AB142: 33.93500897 | AD142: 33.84203635 | AF142: 33.84203635
B143: =IF(LEN('Détail des projets'!B143)=0,"",'Détail des projets'!B143) -> C5475-STMA Implantation du produit écoAZUR | C143: =IF(LEN('Détail des projets'!C143)=0,"",'Détail des projets'!C143) -> Le STMA (2014) inc. | D143: =IF(LEN('Détail des projets'!G143)=0,"",'Détail des projets'!G143) -> 12-Chaudière-Appalaches | E143: =IF(LEN('Détail des projets'!K143)=0,"",'Détail des projets'!K143) -> 34648.21 | F143: 27.71856876 | G143: À la fin du projet (suite au dernier versement) | H143: 99.43194331 | I143: QC-Québec | J143: Oui | K143: 10 | L143: 34.84615592 | N143: Non | O143: Oui | P143: 0 | R143: 0 | T143: 0 | V143: 14.09079529 | X143: 34.65573977 | Z143: 34.65573977 | AB143: 34.75094784 | AD143: 34.65573977 | AF143: 34.65573977
B144: =IF(LEN('Détail des projets'!B144)=0,"",'Détail des projets'!B144) -> Analyse de récupération d'énergie au Centre sportif Les 2 Glaces | C144: =IF(LEN('Détail des projets'!C144)=0,"",'Détail des projets'!C144) -> Ville de Candiac | D144: =IF(LEN('Détail des projets'!G144)=0,"",'Détail des projets'!G144) -> 16-Montérégie | E144: =IF(LEN('Détail des projets'!K144)=0,"",'Détail des projets'!K144) -> 4100 | F144: 0 | G144: À la fin du projet (suite au dernier versement) | H144: 0 | I144: QC-Québec | J144: Oui | K144: 15 | L144: 0 | N144: Non | O144: Oui
B145: =IF(LEN('Détail des projets'!B145)=0,"",'Détail des projets'!B145) -> Projet d'économie d'énergie Capial BLF | C145: =IF(LEN('Détail des projets'!C145)=0,"",'Détail des projets'!C145) -> Capital BLF inc. | D145: =IF(LEN('Détail des projets'!G145)=0,"",'Détail des projets'!G145) -> 03-Capitale-Nationale | E145: =IF(LEN('Détail des projets'!K145)=0,"",'Détail des projets'!K145) -> 104678.06 | F145: 88.00972251 | G145: À la fin du projet (suite au dernier versement) | H145: 62.09378969 | I145: QC-Québec | J145: Oui | K145: 18.63734818 | L145: 90.45308432 | N145: Non | O145: Oui | P145: 0 | R145: 0 | T145: 0 | V145: 0 | X145: 0 | Z145: 46.46224003 | AB145: 90.20594475 | AD145: 89.95880517 | AF145: 89.95880517
B146: =IF(LEN('Détail des projets'!B146)=0,"",'Détail des projets'!B146) -> Mise à niveau de l'aréna Francis-Bouillon | C146: =IF(LEN('Détail des projets'!C146)=0,"",'Détail des projets'!C146) -> Ville de Montréal | D146: =IF(LEN('Détail des projets'!G146)=0,"",'Détail des projets'!G146) -> 06-Montréal | E146: =IF(LEN('Détail des projets'!K146)=0,"",'Détail des projets'!K146) -> 137551.91 | F146: 142.5987376 | G146: À la fin du projet (suite au dernier versement) | H146: 64.89257812 | I146: QC-Québec | J146: Oui | K146: 19.75396156 | L146: 107.3043658 | N146: Non | O146: Oui | P146: 0 | R146: 0 | T146: 0 | V146: 0 | X146: 78.57259575 | Z146: 106.7180032 | AB146: 107.0111845 | AD146: 106.7180032 | AF146: 106.7180032
B147: =IF(LEN('Détail des projets'!B147)=0,"",'Détail des projets'!B147) -> Projet d’efficacité énergétique - Hôpital Sainte-Anne-de-Beaupré | C147: =IF(LEN('Détail des projets'!C147)=0,"",'Détail des projets'!C147) -> CIUSSS de la Capitale-Nationale | D147: =IF(LEN('Détail des projets'!G147)=0,"",'Détail des projets'!G147) -> 03-Capitale-Nationale | E147: =IF(LEN('Détail des projets'!K147)=0,"",'Détail des projets'!K147) -> 754631.19 | F147: 814.8615094 | G147: À la fin du projet (suite au dernier versement) | H147: 39.06648827 | I147: QC-Québec | J147: Oui | K147: 20 | L147: 394.4039498 | M147: 571.4253624 | N147: Non | O147: Oui | P147: 0 | R147: 0 | T147: 0 | V147: 0 | X147: 543.6088478 | Z147: 960.5515564 | AB147: 963.1904343 | AD147: 960.5515564 | AF147: 960.5515564
B148: =IF(LEN('Détail des projets'!B148)=0,"",'Détail des projets'!B148) -> Réfrigération CO2 avec récupération de chaleur (000259) | C148: =IF(LEN('Détail des projets'!C148)=0,"",'Détail des projets'!C148) -> Sobeys Capital Incorporée | D148: =IF(LEN('Détail des projets'!G148)=0,"",'Détail des projets'!G148) -> 06-Montréal | E148: =IF(LEN('Détail des projets'!K148)=0,"",'Détail des projets'!K148) -> 0 | F148: 195.1208455 | G148: À la fin du projet (suite au dernier versement) | H148: 0 | I148: QC-Québec | J148: Oui | K148: 15 | L148: 204.135358 | N148: Non | O148: Oui | P148: 0 | R148: 0 | T148: 16.17465952 | V148: 203.0198643 | X148: 203.0198643 | Z148: 203.0198643 | AB148: 203.5776112 | AD148: 203.0198643 | AF148: 203.0198643
B149: =IF(LEN('Détail des projets'!B149)=0,"",'Détail des projets'!B149) -> Étude de faisabilité - Efficacité énergétique dans un supermarché | C149: =IF(LEN('Détail des projets'!C149)=0,"",'Détail des projets'!C149) -> L'Inter Marché | D149: =IF(LEN('Détail des projets'!G149)=0,"",'Détail des projets'!G149) -> 06-Montréal | E149: =IF(LEN('Détail des projets'!K149)=0,"",'Détail des projets'!K149) -> 2500 | F149: 0 | G149: À la fin du projet (suite au dernier versement) | H149: 0 | I149: QC-Québec | J149: Oui | K149: 20.70858383 | L149: 0 | N149: Non | O149: Oui
B150: =IF(LEN('Détail des projets'!B150)=0,"",'Détail des projets'!B150) -> Rallongement de ligne électrique pour le relais routier | C150: =IF(LEN('Détail des projets'!C150)=0,"",'Détail des projets'!C150) -> Société de développement de la Baie-James | D150: =IF(LEN('Détail des projets'!G150)=0,"",'Détail des projets'!G150) -> 10-Nord-du-Québec | E150: =IF(LEN('Détail des projets'!K150)=0,"",'Détail des projets'!K150) -> 25350 | F150: 0 | G150: À la fin du projet (suite au dernier versement) | H150: 0 | I150: QC-Québec | J150: Oui | K150: 0 | L150: 0 | M150: 0 | N150: Non | O150: Oui
B151: =IF(LEN('Détail des projets'!B151)=0,"",'Détail des projets'!B151) -> Conversion partielle du système de chauffage au mazout à un système de chauffage biénergie à l’électricité, zoné, et au mazout | C151: =IF(LEN('Détail des projets'!C151)=0,"",'Détail des projets'!C151) -> Municipalité du Canton de Saint-Camille | D151: =IF(LEN('Détail des projets'!G151)=0,"",'Détail des projets'!G151) -> 05-Estrie | E151: =IF(LEN('Détail des projets'!K151)=0,"",'Détail des projets'!K151) -> 38775.08 | F151: 31.02006525 | G151: À la fin du projet (suite au dernier versement) | H151: 29.59062197 | I151: QC-Québec | J151: Oui | K151: 25 | L151: 0 | M151: 52.41536328 | N151: Non | O151: Oui | P151: 0 | R151: 0 | T151: 0 | V151: 19.47674701 | X151: 52.12894053 | Z151: 52.12894053 | AB151: 52.2721519 | AD151: 52.12894053 | AF151: 52.12894053
B152: =IF(LEN('Détail des projets'!B152)=0,"",'Détail des projets'!B152) -> Centre Hébergement Alphonse Bonenfant Projet d'efficacité énergétique | C152: =IF(LEN('Détail des projets'!C152)=0,"",'Détail des projets'!C152) -> CIUSSS de la Capitale-Nationale | D152: =IF(LEN('Détail des projets'!G152)=0,"",'Détail des projets'!G152) -> 03-Capitale-Nationale | E152: =IF(LEN('Détail des projets'!K152)=0,"",'Détail des projets'!K152) -> 42132.02 | F152: 33.70561605 | G152: À la fin du projet (suite au dernier versement) | H152: 62.49999991 | I152: QC-Québec | J152: Oui | K152: 20 | L152: 33.70561605 | N152: Non | O152: Oui | P152: 0 | R152: 0 | T152: 0 | V152: 0 | X152: 14.64260369 | Z152: 33.52143235 | AB152: 33.6135242 | AD152: 33.52143235 | AF152: 33.52143235
B153: =IF(LEN('Détail des projets'!B153)=0,"",'Détail des projets'!B153) -> Conversion du système de chauffage au mazout léger vers un système électrique - École Jacques Rocheleau | C153: =IF(LEN('Détail des projets'!C153)=0,"",'Détail des projets'!C153) -> Centre de services scolaire des Patriotes | D153: =IF(LEN('Détail des projets'!G153)=0,"",'Détail des projets'!G153) -> 16-Montérégie | E153: =IF(LEN('Détail des projets'!K153)=0,"",'Détail des projets'!K153) -> 138365.16 | F153: 124.196122 | G153: À la fin du projet (suite au dernier versement) | H153: 745.5853932 | I153: QC-Québec | J153: Oui | K153: 20 | L153: 0 | M153: 9.278961288 | N153: Non | O153: Oui | P153: 0 | R153: 0 | T153: 0 | V153: 0 | X153: 2.81411121 | Z153: 9.228256582 | AB153: 9.253608935 | AD153: 9.228256582 | AF153: 9.228256582
B154: =IF(LEN('Détail des projets'!B154)=0,"",'Détail des projets'!B154) -> Projet d'efficacité énergétique-École L'Arpège | C154: =IF(LEN('Détail des projets'!C154)=0,"",'Détail des projets'!C154) -> Centre de services scolaire des Patriotes | D154: =IF(LEN('Détail des projets'!G154)=0,"",'Détail des projets'!G154) -> 16-Montérégie | E154: =IF(LEN('Détail des projets'!K154)=0,"",'Détail des projets'!K154) -> 9489.53 | F154: 7.591627136 | G154: À la fin du projet (suite au dernier versement) | H154: 62.49997418 | I154: QC-Québec | J154: Oui | K154: 20 | L154: 7.591627136 | N154: Non | O154: Oui | P154: 0 | R154: 0 | T154: 0 | V154: 0.9541389297 | X154: 7.550142835 | Z154: 7.550142835 | AB154: 7.570884985 | AD154: 7.550142835 | AF154: 7.550142835
B155: =IF(LEN('Détail des projets'!B155)=0,"",'Détail des projets'!B155) -> Conversion du système de chauffage au mazout léger vers un système électrique - École Le Rucher | C155: =IF(LEN('Détail des projets'!C155)=0,"",'Détail des projets'!C155) -> Centre de services scolaire des Patriotes | D155: =IF(LEN('Détail des projets'!G155)=0,"",'Détail des projets'!G155) -> 16-Montérégie | E155: =IF(LEN('Détail des projets'!K155)=0,"",'Détail des projets'!K155) -> 63110.74 | F155: 91.98460221 | G155: À la fin du projet (suite au dernier versement) | H155: 62.46292619 | I155: QC-Québec | J155: Oui | K155: 20 | L155: 0 | M155: 50.51855865 | N155: Non | O155: Oui | P155: 0 | R155: 0 | T155: 0 | V155: 0 | X155: 14.63105797 | Z155: 50.24250095 | AB155: 50.3805298 | AD155: 50.24250095 | AF155: 50.24250095
B156: =IF(LEN('Détail des projets'!B156)=0,"",'Détail des projets'!B156) -> Conversion du système de chauffage au mazout léger vers un système électrique - École de l'Odyssée | C156: =IF(LEN('Détail des projets'!C156)=0,"",'Détail des projets'!C156) -> Centre de services scolaire des Patriotes | D156: =IF(LEN('Détail des projets'!G156)=0,"",'Détail des projets'!G156) -> 16-Montérégie | E156: =IF(LEN('Détail des projets'!K156)=0,"",'Détail des projets'!K156) -> 39250.73 | F156: 31.40058268 | G156: À la fin du projet (suite au dernier versement) | H156: 58.6024847 | I156: QC-Québec | J156: Oui | K156: 20 | L156: 33.48896399 | N156: Non | O156: Oui | P156: 0 | R156: 0 | T156: 0 | V156: 0 | X156: 0 | Z156: 16.56148219 | AB156: 33.39746409 | AD156: 33.30596419 | AF156: 33.30596419
B157: =IF(LEN('Détail des projets'!B157)=0,"",'Détail des projets'!B157) -> Conversion du système de chauffage au mazout léger vers un système électrique - École Au-Fil-de-l'Eau (pavillon Desrochers) | C157: =IF(LEN('Détail des projets'!C157)=0,"",'Détail des projets'!C157) -> Centre de services scolaire des Patriotes | D157: =IF(LEN('Détail des projets'!G157)=0,"",'Détail des projets'!G157) -> 16-Montérégie | E157: =IF(LEN('Détail des projets'!K157)=0,"",'Détail des projets'!K157) -> 37770.23 | F157: 30.2161828 | G157: À la fin du projet (suite au dernier versement) | H157: 62.50000248 | I157: QC-Québec | J157: Oui | K157: 20 | L157: 0 | M157: 30.2161828 | N157: Non | O157: Oui | P157: 0 | R157: 0 | T157: 0 | V157: 0 | X157: 14.28251263 | Z157: 30.05106705 | AB157: 30.13362492 | AD157: 30.05106705 | AF157: 30.05106705
B158: =IF(LEN('Détail des projets'!B158)=0,"",'Détail des projets'!B158) -> Conversion du système de chauffage au mazout léger vers un système électrique - École Louis-Hippolyte-Lafontaine | C158: =IF(LEN('Détail des projets'!C158)=0,"",'Détail des projets'!C158) -> Centre de services scolaire des Patriotes | D158: =IF(LEN('Détail des projets'!G158)=0,"",'Détail des projets'!G158) -> 16-Montérégie | E158: =IF(LEN('Détail des projets'!K158)=0,"",'Détail des projets'!K158) -> 117454.54 | F158: 93.96363484 | G158: À la fin du projet (suite au dernier versement) | H158: 62.49999811 | I158: QC-Québec | J158: Oui | K158: 20 | L158: 0 | M158: 93.96363484 | N158: Non | O158: Oui | P158: 0 | R158: 0 | T158: 0 | V158: 0 | X158: 41.59046132 | Z158: 93.45017235 | AB158: 93.7069036 | AD158: 93.45017235 | AF158: 93.45017235
B159: =IF(LEN('Détail des projets'!B159)=0,"",'Détail des projets'!B159) -> Conversion du système de chauffage au mazout léger vers un système électrique - École Ludger-Duvernay | C159: =IF(LEN('Détail des projets'!C159)=0,"",'Détail des projets'!C159) -> Centre de services scolaire des Patriotes | D159: =IF(LEN('Détail des projets'!G159)=0,"",'Détail des projets'!G159) -> 16-Montérégie | E159: =IF(LEN('Détail des projets'!K159)=0,"",'Détail des projets'!K159) -> 102577.82 | F159: 82.06225905 | G159: À la fin du projet (suite au dernier versement) | H159: 62.49999768 | I159: QC-Québec | J159: Oui | K159: 20 | L159: 0 | M159: 82.06225905 | N159: Non | O159: Oui | P159: 0 | R159: 0 | T159: 0 | V159: 0 | X159: 72.86949232 | Z159: 81.6138314 | AB159: 81.83804523 | AD159: 81.6138314 | AF159: 81.6138314
B160: =IF(LEN('Détail des projets'!B160)=0,"",'Détail des projets'!B160) -> Projet d'efficacité énergétique - École secondaire Mont-Bruno | C160: =IF(LEN('Détail des projets'!C160)=0,"",'Détail des projets'!C160) -> Centre de services scolaire des Patriotes | D160: =IF(LEN('Détail des projets'!G160)=0,"",'Détail des projets'!G160) -> 16-Montérégie | E160: =IF(LEN('Détail des projets'!K160)=0,"",'Détail des projets'!K160) -> 98594.0865 | F160: 176.394903 | G160: À la fin du projet (suite au dernier versement) | H160: 27.94697716 | I160: QC-Québec | J160: Oui | K160: 20 | L160: 176.394903 | N160: Non | O160: Oui | P160: 0 | R160: 0 | T160: 0 | V160: 0 | X160: 0 | Z160: 0 | AB160: 0 | AD160: 142.1762196 | AF160: 175.4309964
B161: =IF(LEN('Détail des projets'!B161)=0,"",'Détail des projets'!B161) -> Conversion partielle du système de chauffage au mazout léger vers un système électrique - École De la Broquerie | C161: =IF(LEN('Détail des projets'!C161)=0,"",'Détail des projets'!C161) -> Centre de services scolaire des Patriotes | D161: =IF(LEN('Détail des projets'!G161)=0,"",'Détail des projets'!G161) -> 16-Montérégie | E161: =IF(LEN('Détail des projets'!K161)=0,"",'Détail des projets'!K161) -> 93502.09 | F161: 74.80167069 | G161: À la fin du projet (suite au dernier versement) | H161: 62.5000011 | I161: QC-Québec | J161: Oui | K161: 20 | L161: 0 | M161: 74.80167069 | N161: Non | O161: Oui | P161: 0 | R161: 0 | T161: 0 | V161: 0 | X161: 0 | Z161: 37.80958764 | AB161: 74.59729454 | AD161: 74.39291839 | AF161: 74.39291839
B162: =IF(LEN('Détail des projets'!B162)=0,"",'Détail des projets'!B162) -> Conversion du système de chauffage au mazout léger vers un système électrique - École Notre-Dame 1 | C162: =IF(LEN('Détail des projets'!C162)=0,"",'Détail des projets'!C162) -> Centre de services scolaire des Patriotes | D162: =IF(LEN('Détail des projets'!G162)=0,"",'Détail des projets'!G162) -> 16-Montérégie | E162: =IF(LEN('Détail des projets'!K162)=0,"",'Détail des projets'!K162) -> 115632.81 | F162: 92.50625012 | G162: À la fin du projet (suite au dernier versement) | H162: 62.299968 | I162: QC-Québec | J162: Oui | K162: 20 | L162: 0 | M162: 92.80326596 | N162: Non | O162: Oui | P162: 0 | R162: 0 | T162: 0 | V162: 0 | X162: 81.90015001 | Z162: 92.29614429 | AB162: 92.54970512 | AD162: 92.29614429 | AF162: 92.29614429
B163: =IF(LEN('Détail des projets'!B163)=0,"",'Détail des projets'!B163) -> Conversion du système de chauffage au mazout léger vers un système électrique - École Notre-Dame 2 | C163: =IF(LEN('Détail des projets'!C163)=0,"",'Détail des projets'!C163) -> Centre de services scolaire des Patriotes | D163: =IF(LEN('Détail des projets'!G163)=0,"",'Détail des projets'!G163) -> 16-Montérégie | E163: =IF(LEN('Détail des projets'!K163)=0,"",'Détail des projets'!K163) -> 104711.75 | F163: 83.76939778 | G163: À la fin du projet (suite au dernier versement) | H163: 62.50000166 | I163: QC-Québec | J163: Oui | K163: 20 | L163: 0 | M163: 83.76939778 | N163: Non | O163: Oui | P163: 0 | R163: 0 | T163: 0 | V163: 0 | X163: 32.95845158 | Z163: 83.3116415 | AB163: 83.54051964 | AD163: 83.3116415 | AF163: 83.3116415
B164: =IF(LEN('Détail des projets'!B164)=0,"",'Détail des projets'!B164) -> Conversion du système de chauffage au mazout léger vers un système électrique - École de l'Envolée | C164: =IF(LEN('Détail des projets'!C164)=0,"",'Détail des projets'!C164) -> Centre de services scolaire des Patriotes | D164: =IF(LEN('Détail des projets'!G164)=0,"",'Détail des projets'!G164) -> 16-Montérégie | E164: =IF(LEN('Détail des projets'!K164)=0,"",'Détail des projets'!K164) -> 102099.68 | F164: 81.67974132 | G164: À la fin du projet (suite au dernier versement) | H164: 62.50000205 | I164: QC-Québec | J164: Oui | K164: 20 | L164: 0 | M164: 81.67974132 | N164: Non | O164: Oui | P164: 0 | R164: 0 | T164: 0 | V164: 0 | X164: 0 | Z164: 80.11756048 | AB164: 81.45657263 | AD164: 81.23340394 | AF164: 81.23340394
B165: =IF(LEN('Détail des projets'!B165)=0,"",'Détail des projets'!B165) -> Projet d'efficacité énergétique - École Ozias-Leduc | C165: =IF(LEN('Détail des projets'!C165)=0,"",'Détail des projets'!C165) -> Centre de services scolaire des Patriotes | D165: =IF(LEN('Détail des projets'!G165)=0,"",'Détail des projets'!G165) -> 16-Montérégie | E165: =IF(LEN('Détail des projets'!K165)=0,"",'Détail des projets'!K165) -> 77861.87 | F165: 62.28949476 | G165: À la fin du projet (suite au dernier versement) | H165: 53.57142588 | I165: QC-Québec | J165: Oui | K165: 20 | L165: 72.67108232 | N165: Non | O165: Oui | P165: 0 | R165: 0 | T165: 0 | V165: 0 | X165: 21.44392593 | Z165: 72.27397258 | AB165: 72.47252745 | AD165: 72.27397258 | AF165: 72.27397258
B166: =IF(LEN('Détail des projets'!B166)=0,"",'Détail des projets'!B166) -> Conversion du système de chauffage au mazout léger vers un système électrique - École Père-Marquette | C166: =IF(LEN('Détail des projets'!C166)=0,"",'Détail des projets'!C166) -> Centre de services scolaire des Patriotes | D166: =IF(LEN('Détail des projets'!G166)=0,"",'Détail des projets'!G166) -> 16-Montérégie | E166: =IF(LEN('Détail des projets'!K166)=0,"",'Détail des projets'!K166) -> 197590.61 | F166: 158.0724894 | G166: À la fin du projet (suite au dernier versement) | H166: 62.53982004 | I166: QC-Québec | J166: Oui | K166: 20 | L166: 0 | M166: 157.9718409 | N166: Non | O166: Oui | P166: 0 | R166: 0 | T166: 0 | V166: 0 | X166: 33.66613003 | Z166: 157.1086068 | AB166: 157.5402238 | AD166: 157.1086068 | AF166: 157.1086068
B167: =IF(LEN('Détail des projets'!B167)=0,"",'Détail des projets'!B167) -> Projet d'efficacité énergétique - École De Mortagne | C167: =IF(LEN('Détail des projets'!C167)=0,"",'Détail des projets'!C167) -> Centre de services scolaire des Patriotes | D167: =IF(LEN('Détail des projets'!G167)=0,"",'Détail des projets'!G167) -> 16-Montérégie | E167: =IF(LEN('Détail des projets'!K167)=0,"",'Détail des projets'!K167) -> 694013.58 | F167: 615.9640515 | G167: À la fin du projet (suite au dernier versement) | H167: 62.11325482 | I167: QC-Québec | J167: Oui | K167: 20 | L167: 334.4770273 | M167: 224.1908303 | N167: Non | O167: Oui | P167: 0 | R167: 0 | T167: 0 | V167: 0 | X167: 169.4320552 | Z167: 555.6150278 | AB167: 557.1414427 | AD167: 555.6150278 | AF167: 555.6150278
B168: =IF(LEN('Détail des projets'!B168)=0,"",'Détail des projets'!B168) -> Projet d'efficacité énergétique - École secondaire Polybel | C168: =IF(LEN('Détail des projets'!C168)=0,"",'Détail des projets'!C168) -> Centre de services scolaire des Patriotes | D168: =IF(LEN('Détail des projets'!G168)=0,"",'Détail des projets'!G168) -> 16-Montérégie | E168: =IF(LEN('Détail des projets'!K168)=0,"",'Détail des projets'!K168) -> 419693.84 | F168: 338.0489232 | G168: À la fin du projet (suite au dernier versement) | H168: 77.96511954 | I168: QC-Québec | J168: Oui | K168: 20 | L168: 269.154875 | N168: Non | O168: Oui | P168: 0 | R168: 0 | T168: 0 | V168: 0 | X168: 141.9313958 | Z168: 267.6840833 | AB168: 268.4194791 | AD168: 267.6840833 | AF168: 267.6840833
B169: =IF(LEN('Détail des projets'!B169)=0,"",'Détail des projets'!B169) -> Conversion du système de chauffage au mazout léger vers un système électrique - École des Trois-Temps | C169: =IF(LEN('Détail des projets'!C169)=0,"",'Détail des projets'!C169) -> Centre de services scolaire des Patriotes | D169: =IF(LEN('Détail des projets'!G169)=0,"",'Détail des projets'!G169) -> 16-Montérégie | E169: =IF(LEN('Détail des projets'!K169)=0,"",'Détail des projets'!K169) -> 105646.2 | F169: 84.51695606 | G169: À la fin du projet (suite au dernier versement) | H169: 62.50000292 | I169: QC-Québec | J169: Oui | K169: 20 | L169: 0 | M169: 84.51695606 | N169: Non | O169: Oui | P169: 0 | R169: 0 | T169: 0 | V169: 11.77695289 | X169: 84.05511477 | Z169: 84.05511477 | AB169: 84.28603541 | AD169: 84.05511477 | AF169: 84.05511477
B170: =IF(LEN('Détail des projets'!B170)=0,"",'Détail des projets'!B170) -> Conversion du système de chauffage au mazout léger vers un système électrique - École de Salaberry | C170: =IF(LEN('Détail des projets'!C170)=0,"",'Détail des projets'!C170) -> Centre de services scolaire des Patriotes | D170: =IF(LEN('Détail des projets'!G170)=0,"",'Détail des projets'!G170) -> 16-Montérégie | E170: =IF(LEN('Détail des projets'!K170)=0,"",'Détail des projets'!K170) -> 171239.54 | F170: 138.4086975 | G170: À la fin du projet (suite au dernier versement) | H170: 61.78214766 | I170: QC-Québec | J170: Oui | K170: 20 | L170: 0 | M170: 138.5833501 | N170: Non | O170: Oui | P170: 0 | R170: 0 | T170: 0 | V170: 0 | X170: 121.9230566 | Z170: 137.826064 | AB170: 138.2047071 | AD170: 137.826064 | AF170: 137.826064
B171: =IF(LEN('Détail des projets'!B171)=0,"",'Détail des projets'!B171) -> Conversion du système de chauffage au mazout léger vers un système électrique - École Du Carrousel | C171: =IF(LEN('Détail des projets'!C171)=0,"",'Détail des projets'!C171) -> Centre de services scolaire des Patriotes | D171: =IF(LEN('Détail des projets'!G171)=0,"",'Détail des projets'!G171) -> 16-Montérégie | E171: =IF(LEN('Détail des projets'!K171)=0,"",'Détail des projets'!K171) -> 120656.56 | F171: 97.1637417 | G171: À la fin du projet (suite au dernier versement) | H171: 388.2474691 | I171: QC-Québec | J171: Oui | K171: 20 | L171: 15.53587836 | M171: 0.002736776 | N171: Non | O171: Oui | P171: 0 | R171: 0 | T171: 0 | V171: 0 | X171: 0 | Z171: 5.773911635 | AB171: 15.4961599 | AD171: 15.45370467 | AF171: 15.45370467
B172: =IF(LEN('Détail des projets'!B172)=0,"",'Détail des projets'!B172) -> Conversion du système de chauffage au mazout léger vers un système électrique - École St-Charles | C172: =IF(LEN('Détail des projets'!C172)=0,"",'Détail des projets'!C172) -> Centre de services scolaire des Patriotes | D172: =IF(LEN('Détail des projets'!G172)=0,"",'Détail des projets'!G172) -> 16-Montérégie | E172: =IF(LEN('Détail des projets'!K172)=0,"",'Détail des projets'!K172) -> 42810.58 | F172: 34.24846346 | G172: À la fin du projet (suite au dernier versement) | H172: 62.50000098 | I172: QC-Québec | J172: Oui | K172: 20 | L172: 0 | M172: 34.24846346 | N172: Non | O172: Oui | P172: 0 | R172: 0 | T172: 0 | V172: 0 | X172: 18.52785728 | Z172: 34.06131339 | AB172: 34.15488843 | AD172: 34.06131339 | AF172: 34.06131339
B173: =IF(LEN('Détail des projets'!B173)=0,"",'Détail des projets'!B173) -> Projet d’efficacité énergétique - Le Pavillon Saint-Basile de l’école Jacques Rocheleau | C173: =IF(LEN('Détail des projets'!C173)=0,"",'Détail des projets'!C173) -> Centre de services scolaire des Patriotes | D173: =IF(LEN('Détail des projets'!G173)=0,"",'Détail des projets'!G173) -> 16-Montérégie | E173: =IF(LEN('Détail des projets'!K173)=0,"",'Détail des projets'!K173) -> 65421.98 | F173: 52.33758054 | G173: À la fin du projet (suite au dernier versement) | H173: 458.220646 | I173: QC-Québec | J173: Oui | K173: 20 | L173: 0 | M173: 7.138698416 | N173: Non | O173: Oui | P173: 0 | R173: 0 | T173: 0 | V173: 0 | X173: 2.165015093 | Z173: 7.099689135 | AB173: 7.119193776 | AD173: 7.099689135 | AF173: 7.099689135
B174: =IF(LEN('Détail des projets'!B174)=0,"",'Détail des projets'!B174) -> Conversion du système de chauffage au mazout léger vers un système électrique - École du Parchemin | C174: =IF(LEN('Détail des projets'!C174)=0,"",'Détail des projets'!C174) -> Centre de services scolaire des Patriotes | D174: =IF(LEN('Détail des projets'!G174)=0,"",'Détail des projets'!G174) -> 16-Montérégie | E174: =IF(LEN('Détail des projets'!K174)=0,"",'Détail des projets'!K174) -> 61798.82 | F174: 49.43905863 | G174: À la fin du projet (suite au dernier versement) | H174: 62.49999667 | I174: QC-Québec | J174: Oui | K174: 20 | L174: 0 | M174: 49.43905863 | N174: Non | O174: Oui | P174: 0 | R174: 0 | T174: 0 | V174: 0 | X174: 27.55619661 | Z174: 49.16889984 | AB174: 49.30397924 | AD174: 49.16889984 | AF174: 49.16889984
B175: =IF(LEN('Détail des projets'!B175)=0,"",'Détail des projets'!B175) -> Conversion du système de chauffage au mazout léger vers un système électrique - École François-Williams | C175: =IF(LEN('Détail des projets'!C175)=0,"",'Détail des projets'!C175) -> Centre de services scolaire des Patriotes | D175: =IF(LEN('Détail des projets'!G175)=0,"",'Détail des projets'!G175) -> 16-Montérégie | E175: =IF(LEN('Détail des projets'!K175)=0,"",'Détail des projets'!K175) -> 98089.11 | F175: 78.47128863 | G175: À la fin du projet (suite au dernier versement) | H175: 62.46802034 | I175: QC-Québec | J175: Oui | K175: 20 | L175: 0 | M175: 78.51146031 | N175: Non | O175: Oui | P175: 0 | R175: 0 | T175: 0 | V175: 0 | X175: 43.76048608 | Z175: 78.08243594 | AB175: 78.29694813 | AD175: 78.08243594 | AF175: 78.08243594
B176: =IF(LEN('Détail des projets'!B176)=0,"",'Détail des projets'!B176) -> Conversion du système de chauffage au mazout léger vers un système électrique - École Georges-Étienne-Cartier | C176: =IF(LEN('Détail des projets'!C176)=0,"",'Détail des projets'!C176) -> Centre de services scolaire des Patriotes | D176: =IF(LEN('Détail des projets'!G176)=0,"",'Détail des projets'!G176) -> 16-Montérégie | E176: =IF(LEN('Détail des projets'!K176)=0,"",'Détail des projets'!K176) -> 76192.61 | F176: 60.95408929 | G176: À la fin du projet (suite au dernier versement) | H176: 62.49999868 | I176: QC-Québec | J176: Oui | K176: 20 | L176: 0 | M176: 60.95408929 | N176: Non | O176: Oui | P176: 0 | R176: 0 | T176: 0 | V176: 0 | X176: 32.97516306 | Z176: 60.62100683 | AB176: 60.78754806 | AD176: 60.62100683 | AF176: 60.62100683
B177: =IF(LEN('Détail des projets'!B177)=0,"",'Détail des projets'!B177) -> Projet d'efficacité énergétique - École d'éducation internationale | C177: =IF(LEN('Détail des projets'!C177)=0,"",'Détail des projets'!C177) -> Centre de services scolaire des Patriotes | D177: =IF(LEN('Détail des projets'!G177)=0,"",'Détail des projets'!G177) -> 16-Montérégie | E177: =IF(LEN('Détail des projets'!K177)=0,"",'Détail des projets'!K177) -> 210125.64 | F177: 178.2962671 | G177: À la fin du projet (suite au dernier versement) | H177: 63.68506527 | I177: QC-Québec | J177: Oui | K177: 20 | L177: 164.9724618 | N177: Non | O177: Oui | P177: 0 | R177: 0 | T177: 0 | V177: 0 | X177: 0 | Z177: 75.27432002 | AB177: 164.5217174 | AD177: 164.070973 | AF177: 164.070973
B178: =IF(LEN('Détail des projets'!B178)=0,"",'Détail des projets'!B178) -> Remplacement des chaudières au mazout léger par des systèmes électriques zonés | C178: =IF(LEN('Détail des projets'!C178)=0,"",'Détail des projets'!C178) -> Fabrique Saint-André-Avellin | D178: =IF(LEN('Détail des projets'!G178)=0,"",'Détail des projets'!G178) -> 07-Outaouais | E178: =IF(LEN('Détail des projets'!K178)=0,"",'Détail des projets'!K178) -> 84386.84 | F178: 67.50947136 | G178: À la fin du projet (suite au dernier versement) | H178: 49.96318584 | I178: QC-Québec | J178: Oui | K178: 25 | L178: 0 | M178: 67.55921472 | N178: Non | O178: Oui | P178: 0 | R178: 0 | T178: 0 | V178: 23.62726635 | X178: 67.19003868 | Z178: 67.19003868 | AB178: 67.3746267 | AD178: 67.19003868 | AF178: 67.19003868
B179: =IF(LEN('Détail des projets'!B179)=0,"",'Détail des projets'!B179) -> Réfrigération CO2 avec récupération de chaleur (88734) | C179: =IF(LEN('Détail des projets'!C179)=0,"",'Détail des projets'!C179) -> Sobeys Capital Incorporée | D179: =IF(LEN('Détail des projets'!G179)=0,"",'Détail des projets'!G179) -> 03-Capitale-Nationale | E179: =IF(LEN('Détail des projets'!K179)=0,"",'Détail des projets'!K179) -> 0 | F179: 178.5220357 | G179: À la fin du projet (suite au dernier versement) | H179: 0 | I179: QC-Québec | J179: Oui | K179: 15 | L179: 178.5220357 | N179: Non | O179: Oui | P179: 0 | R179: 0 | T179: 0 | V179: 94.13866912 | X179: 177.5465055 | Z179: 177.5465055 | AB179: 178.0342706 | AD179: 177.5465055 | AF179: 177.5465055
B180: =IF(LEN('Détail des projets'!B180)=0,"",'Détail des projets'!B180) -> Efficacité énergétique au 1212, rue Des Pins | C180: =IF(LEN('Détail des projets'!C180)=0,"",'Détail des projets'!C180) -> Timbercreek Asset Management inc. | D180: =IF(LEN('Détail des projets'!G180)=0,"",'Détail des projets'!G180) -> 06-Montréal | E180: =IF(LEN('Détail des projets'!K180)=0,"",'Détail des projets'!K180) -> 505431.41 | F180: 404.3451301 | G180: À la fin du projet (suite au dernier versement) | H180: 24.69150459 | I180: QC-Québec | J180: Oui | K180: 37 | L180: 553.2392054 | N180: Non | O180: Oui | P180: 0 | R180: 0 | T180: 0 | V180: 0 | X180: 458.0095061 | Z180: 550.2160404 | AB180: 551.7276229 | AD180: 550.2160404 | AF180: 550.2160404
B181: =IF(LEN('Détail des projets'!B181)=0,"",'Détail des projets'!B181) -> Projet d’efficacité énergétique du CSSS Source Nord | C181: =IF(LEN('Détail des projets'!C181)=0,"",'Détail des projets'!C181) -> CIUSSS de la Capitale-Nationale | D181: =IF(LEN('Détail des projets'!G181)=0,"",'Détail des projets'!G181) -> 03-Capitale-Nationale | E181: =IF(LEN('Détail des projets'!K181)=0,"",'Détail des projets'!K181) -> 329179.82 | F181: 280.4280889 | G181: À la fin du projet (suite au dernier versement) | H181: 58.69237659 | I181: QC-Québec | J181: Oui | K181: 20 | L181: 280.4280889 | N181: Non | O181: Oui | P181: 0 | R181: 0 | T181: 0 | V181: 0 | X181: 87.34645392 | Z181: 278.895695 | AB181: 279.6618919 | AD181: 278.895695 | AF181: 278.895695
B182: =IF(LEN('Détail des projets'!B182)=0,"",'Détail des projets'!B182) -> Projet d’efficacité énergétique – Hôpital Chauveau | C182: =IF(LEN('Détail des projets'!C182)=0,"",'Détail des projets'!C182) -> CIUSSS de la Capitale-Nationale | D182: =IF(LEN('Détail des projets'!G182)=0,"",'Détail des projets'!G182) -> 03-Capitale-Nationale | E182: =IF(LEN('Détail des projets'!K182)=0,"",'Détail des projets'!K182) -> 108631.53 | F182: 86.90522533 | G182: À la fin du projet (suite au dernier versement) | H182: 62.49945998 | I182: QC-Québec | J182: Oui | K182: 20 | L182: 39.69272388 | M182: 47.21325101 | N182: Non | O182: Oui | P182: 0 | R182: 0 | T182: 0 | V182: 0 | X182: 37.75423499 | Z182: 86.43107886 | AB182: 86.66852687 | AD182: 86.43107886 | AF182: 86.43107886
B183: =IF(LEN('Détail des projets'!B183)=0,"",'Détail des projets'!B183) -> Projet d'efficacité énergétique - Manoir Manrese | C183: =IF(LEN('Détail des projets'!C183)=0,"",'Détail des projets'!C183) -> 9307-1306 Québec inc. | D183: =IF(LEN('Détail des projets'!G183)=0,"",'Détail des projets'!G183) -> 03-Capitale-Nationale | E183: =IF(LEN('Détail des projets'!K183)=0,"",'Détail des projets'!K183) -> 64604.84 | F183: 88.59587537 | G183: À la fin du projet (suite au dernier versement) | H183: 54.73895873 | I183: QC-Québec | J183: Oui | K183: 13.321558 | L183: 88.59587537 | N183: Non | O183: Oui | P183: 0 | R183: 0 | T183: 0 | V183: 21.54380576 | X183: 88.1117449 | Z183: 88.1117449 | AB183: 88.35381014 | AD183: 88.1117449 | AF183: 88.1117449
B184: =IF(LEN('Détail des projets'!B184)=0,"",'Détail des projets'!B184) -> C5525-STJC Implantation du produit écoAZUR | C184: =IF(LEN('Détail des projets'!C184)=0,"",'Détail des projets'!C184) -> Le STJC inc. | D184: =IF(LEN('Détail des projets'!G184)=0,"",'Détail des projets'!G184) -> 12-Chaudière-Appalaches | E184: =IF(LEN('Détail des projets'!K184)=0,"",'Détail des projets'!K184) -> 24517.7 | F184: 20.67432552 | G184: À la fin du projet (suite au dernier versement) | H184: 118.590084 | I184: QC-Québec | J184: Oui | K184: 10 | L184: 20.67432552 | N184: Non | O184: Oui | P184: 0 | R184: 0 | T184: 0 | V184: 0 | X184: 12.37070298 | Z184: 20.56135106 | AB184: 20.61783829 | AD184: 20.56135106 | AF184: 20.56135106
B185: =IF(LEN('Détail des projets'!B185)=0,"",'Détail des projets'!B185) -> C5527-SHER Implantation du produit écoAZUR | C185: =IF(LEN('Détail des projets'!C185)=0,"",'Détail des projets'!C185) -> Restaurant Normandin (2014) inc. | D185: =IF(LEN('Détail des projets'!G185)=0,"",'Détail des projets'!G185) -> 05-Estrie | E185: =IF(LEN('Détail des projets'!K185)=0,"",'Détail des projets'!K185) -> 34648.21 | F185: 27.71856876 | G185: À la fin du projet (suite au dernier versement) | H185: 108.5950285 | I185: QC-Québec | J185: Oui | K185: 10 | L185: 31.90588968 | N185: Non | O185: Oui | P185: 0 | R185: 0 | T185: 0 | V185: 13.59923167 | X185: 31.73154056 | Z185: 31.73154056 | AB185: 31.81871512 | AD185: 31.73154056 | AF185: 31.73154056
B186: =IF(LEN('Détail des projets'!B186)=0,"",'Détail des projets'!B186) -> C5528-SJPJ Implantation du produit écoAZUR | C186: =IF(LEN('Détail des projets'!C186)=0,"",'Détail des projets'!C186) -> Le Port-Jolien (2014) inc. | D186: =IF(LEN('Détail des projets'!G186)=0,"",'Détail des projets'!G186) -> 12-Chaudière-Appalaches | E186: =IF(LEN('Détail des projets'!K186)=0,"",'Détail des projets'!K186) -> 40069.85 | F186: 32.05588023 | G186: À la fin du projet (suite au dernier versement) | H186: 124.9999991 | I186: QC-Québec | J186: Oui | K186: 10 | L186: 32.05588023 | N186: Non | O186: Oui | P186: 0 | R186: 0 | T186: 0 | V186: 2.452362422 | X186: 31.88071149 | Z186: 31.88071149 | AB186: 31.96829586 | AD186: 31.88071149 | AF186: 31.88071149
B187: =IF(LEN('Détail des projets'!B187)=0,"",'Détail des projets'!B187) -> C5533-ROCHE Implantation du produit écoAZUR | C187: =IF(LEN('Détail des projets'!C187)=0,"",'Détail des projets'!C187) -> Restaurant La rochette (2014) inc. | D187: =IF(LEN('Détail des projets'!G187)=0,"",'Détail des projets'!G187) -> 03-Capitale-Nationale | E187: =IF(LEN('Détail des projets'!K187)=0,"",'Détail des projets'!K187) -> 37736.92 | F187: 32.05588023 | G187: À la fin du projet (suite au dernier versement) | H187: 117.6259539 | I187: QC-Québec | J187: Oui | K187: 10 | L187: 32.08213727 | N187: Non | O187: Oui | P187: 0 | R187: 0 | T187: 0 | V187: 8.677955164 | X187: 31.90682505 | Z187: 31.90682505 | AB187: 31.99448116 | AD187: 31.90682505 | AF187: 31.90682505
B188: =IF(LEN('Détail des projets'!B188)=0,"",'Détail des projets'!B188) -> C5534-LVIS Implantation du produit écoAZUR | C188: =IF(LEN('Détail des projets'!C188)=0,"",'Détail des projets'!C188) -> Restaurant Lévisien inc. | D188: =IF(LEN('Détail des projets'!G188)=0,"",'Détail des projets'!G188) -> 12-Chaudière-Appalaches | E188: =IF(LEN('Détail des projets'!K188)=0,"",'Détail des projets'!K188) -> 40069.85 | F188: 32.05588023 | G188: À la fin du projet (suite au dernier versement) | H188: 123.2434004 | I188: QC-Québec | J188: Oui | K188: 10 | L188: 32.51277542 | N188: Non | O188: Oui | P188: 0 | R188: 0 | T188: 0 | V188: 10.83759181 | X188: 32.33510998 | Z188: 32.33510998 | AB188: 32.4239427 | AD188: 32.33510998 | AF188: 32.33510998
B189: =IF(LEN('Détail des projets'!B189)=0,"",'Détail des projets'!B189) -> C5535-MONY Implantation du produit écoAZUR | C189: =IF(LEN('Détail des projets'!C189)=0,"",'Détail des projets'!C189) -> Restaurant Montmagny (2014) inc. | D189: =IF(LEN('Détail des projets'!G189)=0,"",'Détail des projets'!G189) -> 12-Chaudière-Appalaches | E189: =IF(LEN('Détail des projets'!K189)=0,"",'Détail des projets'!K189) -> 40069.85 | F189: 32.05588023 | G189: À la fin du projet (suite au dernier versement) | H189: 99.4763874 | I189: QC-Québec | J189: Oui | K189: 10 | L189: 40.28076516 | N189: Non | O189: Oui | P189: 0 | R189: 0 | T189: 0 | V189: 13.53697846 | X189: 40.06065169 | Z189: 40.06065169 | AB189: 40.17070842 | AD189: 40.06065169 | AF189: 40.06065169
B190: =IF(LEN('Détail des projets'!B190)=0,"",'Détail des projets'!B190) -> C5543-HRIV Implantation du produit écoAZUR | C190: =IF(LEN('Détail des projets'!C190)=0,"",'Détail des projets'!C190) -> Restaurant Henri IV (2014) inc. | D190: =IF(LEN('Détail des projets'!G190)=0,"",'Détail des projets'!G190) -> 03-Capitale-Nationale | E190: =IF(LEN('Détail des projets'!K190)=0,"",'Détail des projets'!K190) -> 11676 | F190: 9.34079808 | G190: À la fin du projet (suite au dernier versement) | H190: 78.93539703 | I190: QC-Québec | J190: Oui | K190: 10 | L190: 14.791843 | N190: Non | O190: Oui | P190: 0 | R190: 0 | T190: 0 | V190: 0 | X190: 7.234262014 | Z190: 14.71101326 | AB190: 14.75142813 | AD190: 14.71101326 | AF190: 14.71101326
B191: =IF(LEN('Détail des projets'!B191)=0,"",'Détail des projets'!B191) -> C5542-DVAL Implantation du produit écoAZUR | C191: =IF(LEN('Détail des projets'!C191)=0,"",'Détail des projets'!C191) -> Restaurant Normandin Ste-Foy (2014) inc. | D191: =IF(LEN('Détail des projets'!G191)=0,"",'Détail des projets'!G191) -> 03-Capitale-Nationale | E191: =IF(LEN('Détail des projets'!K191)=0,"",'Détail des projets'!K191) -> 9775 | F191: 9.34079808 | G191: À la fin du projet (suite au dernier versement) | H191: 87.5501727 | I191: QC-Québec | J191: Oui | K191: 10 | L191: 11.16502652 | N191: Non | O191: Oui | P191: 0 | R191: 0 | T191: 0 | V191: 0 | X191: 6.131612925 | Z191: 11.10401545 | AB191: 11.13452098 | AD191: 11.10401545 | AF191: 11.10401545
B192: =IF(LEN('Détail des projets'!B192)=0,"",'Détail des projets'!B192) -> C5529-RIKI Implantation du produit écoAZUR | C192: =IF(LEN('Détail des projets'!C192)=0,"",'Détail des projets'!C192) -> Le Rimouskais (2014) inc. | D192: =IF(LEN('Détail des projets'!G192)=0,"",'Détail des projets'!G192) -> 01-Bas-Saint-Laurent | E192: =IF(LEN('Détail des projets'!K192)=0,"",'Détail des projets'!K192) -> 40069.85 | F192: 32.05588023 | G192: À la fin du projet (suite au dernier versement) | H192: 112.9202436 | I192: QC-Québec | J192: Oui | K192: 10 | L192: 35.48508995 | N192: Non | O192: Oui | P192: 0 | R192: 0 | T192: 0 | V192: 0 | X192: 29.4739545 | Z192: 35.29118236 | AB192: 35.38813615 | AD192: 35.29118236 | AF192: 35.29118236
B193: =IF(LEN('Détail des projets'!B193)=0,"",'Détail des projets'!B193) -> C5524-STGO Implantation du produit écoAZUR | C193: =IF(LEN('Détail des projets'!C193)=0,"",'Détail des projets'!C193) -> Restaurant St-Georges (2014) inc. | D193: =IF(LEN('Détail des projets'!G193)=0,"",'Détail des projets'!G193) -> 12-Chaudière-Appalaches | E193: =IF(LEN('Détail des projets'!K193)=0,"",'Détail des projets'!K193) -> 34648.21 | F193: 27.71856876 | G193: À la fin du projet (suite au dernier versement) | H193: 110.9994646 | I193: QC-Québec | J193: Oui | K193: 10 | L193: 31.21475416 | N193: Non | O193: Oui | P193: 0 | R193: 0 | T193: 0 | V193: 0 | X193: 9.381483491 | Z193: 31.04418173 | AB193: 31.12946795 | AD193: 31.04418173 | AF193: 31.04418173
B194: =IF(LEN('Détail des projets'!B194)=0,"",'Détail des projets'!B194) -> C5526-CITÉ Implantation du produit écoAZUR | C194: =IF(LEN('Détail des projets'!C194)=0,"",'Détail des projets'!C194) -> Restaurant Normandin (2014) inc. | D194: =IF(LEN('Détail des projets'!G194)=0,"",'Détail des projets'!G194) -> 03-Capitale-Nationale | E194: =IF(LEN('Détail des projets'!K194)=0,"",'Détail des projets'!K194) -> 34648.21 | F194: 27.71856876 | G194: À la fin du projet (suite au dernier versement) | H194: 113.4966828 | I194: QC-Québec | J194: Oui | K194: 10 | L194: 30.52794948 | N194: Non | O194: Oui | P194: 0 | R194: 0 | T194: 0 | V194: 13.76260018 | X194: 30.36113008 | Z194: 30.36113008 | AB194: 30.44453978 | AD194: 30.36113008 | AF194: 30.36113008
B195: =IF(LEN('Détail des projets'!B195)=0,"",'Détail des projets'!B195) -> C5530-RVLOU Implantation du produit écoAZUR | C195: =IF(LEN('Détail des projets'!C195)=0,"",'Détail des projets'!C195) -> Le Riveloup (2014) inc. | D195: =IF(LEN('Détail des projets'!G195)=0,"",'Détail des projets'!G195) -> 01-Bas-Saint-Laurent | E195: =IF(LEN('Détail des projets'!K195)=0,"",'Détail des projets'!K195) -> 40069.85 | F195: 32.05588023 | G195: À la fin du projet (suite au dernier versement) | H195: 125.3388604 | I195: QC-Québec | J195: Oui | K195: 10 | L195: 31.9692152 | N195: Non | O195: Oui | P195: 0 | R195: 0 | T195: 0 | V195: 14.32500353 | X195: 31.79452003 | Z195: 31.79452003 | AB195: 31.88186762 | AD195: 31.79452003 | AF195: 31.79452003
B196: =IF(LEN('Détail des projets'!B196)=0,"",'Détail des projets'!B196) -> C5531-STJU Implantation du produit écoAZUR | C196: =IF(LEN('Détail des projets'!C196)=0,"",'Détail des projets'!C196) -> Restaurant le STJU inc. | D196: =IF(LEN('Détail des projets'!G196)=0,"",'Détail des projets'!G196) -> 16-Montérégie | E196: =IF(LEN('Détail des projets'!K196)=0,"",'Détail des projets'!K196) -> 34648.21 | F196: 27.71856876 | G196: À la fin du projet (suite au dernier versement) | H196: 100.7774674 | I196: QC-Québec | J196: Oui | K196: 10 | L196: 34.38090964 | N196: Non | O196: Oui | P196: 0 | R196: 0 | T196: 0 | V196: 5.35440396 | X196: 34.19303582 | Z196: 34.19303582 | AB196: 34.28697273 | AD196: 34.19303582 | AF196: 34.19303582
B197: =IF(LEN('Détail des projets'!B197)=0,"",'Détail des projets'!B197) -> C5532-STCA Implantation du produit écoAZUR | C197: =IF(LEN('Détail des projets'!C197)=0,"",'Détail des projets'!C197) -> Restaurant BF (2014) inc. | D197: =IF(LEN('Détail des projets'!G197)=0,"",'Détail des projets'!G197) -> 03-Capitale-Nationale | E197: =IF(LEN('Détail des projets'!K197)=0,"",'Détail des projets'!K197) -> 40069.85 | F197: 32.05588023 | G197: À la fin du projet (suite au dernier versement) | H197: 121.7764844 | I197: QC-Québec | J197: Oui | K197: 10 | L197: 32.90442337 | N197: Non | O197: Oui | P197: 0 | R197: 0 | T197: 0 | V197: 4.13552862 | X197: 32.72461778 | Z197: 32.72461778 | AB197: 32.81452057 | AD197: 32.72461778 | AF197: 32.72461778
B198: =IF(LEN('Détail des projets'!B198)=0,"",'Détail des projets'!B198) -> C5541-VBEL Implantation du produit écoAZUR | C198: =IF(LEN('Détail des projets'!C198)=0,"",'Détail des projets'!C198) -> Restaurant VB (2014) inc. | D198: =IF(LEN('Détail des projets'!G198)=0,"",'Détail des projets'!G198) -> 03-Capitale-Nationale | E198: =IF(LEN('Détail des projets'!K198)=0,"",'Détail des projets'!K198) -> 11676 | F198: 9.34079808 | G198: À la fin du projet (suite au dernier versement) | H198: 92.83923712 | I198: QC-Québec | J198: Oui | K198: 10 | L198: 12.576579 | N198: Non | O198: Oui | P198: 0 | R198: 0 | T198: 0 | V198: 3.74548391 | X198: 12.50785452 | Z198: 12.50785452 | AB198: 12.54221676 | AD198: 12.50785452 | AF198: 12.50785452
B199: =IF(LEN('Détail des projets'!B199)=0,"",'Détail des projets'!B199) -> C5539-GRBY Implantation du produit écoAZUR | C199: =IF(LEN('Détail des projets'!C199)=0,"",'Détail des projets'!C199) -> Restaurant Normandin (2014) inc. | D199: =IF(LEN('Détail des projets'!G199)=0,"",'Détail des projets'!G199) -> 05-Estrie | E199: =IF(LEN('Détail des projets'!K199)=0,"",'Détail des projets'!K199) -> 24010.13 | F199: 19.20810564 | G199: À la fin du projet (suite au dernier versement) | H199: 93.81129672 | I199: QC-Québec | J199: Oui | K199: 10 | L199: 25.59407112 | N199: Non | O199: Oui | P199: 0 | R199: 0 | T199: 0 | V199: 0 | X199: 22.86683403 | Z199: 25.45421281 | AB199: 25.52414196 | AD199: 25.45421281 | AF199: 25.45421281
B200: =IF(LEN('Détail des projets'!B200)=0,"",'Détail des projets'!B200) -> C5538-DCHB Implantation du produit écoAZUR | C200: =IF(LEN('Détail des projets'!C200)=0,"",'Détail des projets'!C200) -> Restaurant Deschambault (2014) inc. | D200: =IF(LEN('Détail des projets'!G200)=0,"",'Détail des projets'!G200) -> 03-Capitale-Nationale | E200: =IF(LEN('Détail des projets'!K200)=0,"",'Détail des projets'!K200) -> 40069.85 | F200: 32.05588023 | G200: À la fin du projet (suite au dernier versement) | H200: 114.231328 | I200: QC-Québec | J200: Oui | K200: 10 | L200: 35.07781158 | N200: Non | O200: Oui | P200: 0 | R200: 0 | T200: 0 | V200: 17.63474681 | X200: 34.88612955 | Z200: 34.88612955 | AB200: 34.98197057 | AD200: 34.88612955 | AF200: 34.88612955
B201: =IF(LEN('Détail des projets'!B201)=0,"",'Détail des projets'!B201) -> C5537-STAN Implantation du produit écoAZUR | C201: =IF(LEN('Détail des projets'!C201)=0,"",'Détail des projets'!C201) -> Le St-Anselme inc. | D201: =IF(LEN('Détail des projets'!G201)=0,"",'Détail des projets'!G201) -> 12-Chaudière-Appalaches | E201: =IF(LEN('Détail des projets'!K201)=0,"",'Détail des projets'!K201) -> 40069.85 | F201: 32.05588023 | G201: À la fin du projet (suite au dernier versement) | H201: 122.901767 | I201: QC-Québec | J201: Oui | K201: 10 | L201: 32.60315206 | N201: Non | O201: Oui | P201: 0 | R201: 0 | T201: 0 | V201: 10.2441598 | X201: 32.42499276 | Z201: 32.42499276 | AB201: 32.51407241 | AD201: 32.42499276 | AF201: 32.42499276
B202: =IF(LEN('Détail des projets'!B202)=0,"",'Détail des projets'!B202) -> C5536-MOJO Implantation du produit écoAZUR | C202: =IF(LEN('Détail des projets'!C202)=0,"",'Détail des projets'!C202) -> Restaurant le Mont-Jolien inc. | D202: =IF(LEN('Détail des projets'!G202)=0,"",'Détail des projets'!G202) -> 01-Bas-Saint-Laurent | E202: =IF(LEN('Détail des projets'!K202)=0,"",'Détail des projets'!K202) -> 40069.85 | F202: 32.05588023 | G202: À la fin du projet (suite au dernier versement) | H202: 112.1219856 | I202: QC-Québec | J202: Oui | K202: 10 | L202: 35.73772778 | N202: Non | O202: Oui | P202: 0 | R202: 0 | T202: 0 | V202: 12.01021999 | X202: 35.54243965 | Z202: 35.54243965 | AB202: 35.64008372 | AD202: 35.54243965 | AF202: 35.54243965
B203: =IF(LEN('Détail des projets'!B203)=0,"",'Détail des projets'!B203) -> C5544-ORSV Implantation du produit écoAZUR | C203: =IF(LEN('Détail des projets'!C203)=0,"",'Détail des projets'!C203) -> Restaurant BDJ (2014) inc. | D203: =IF(LEN('Détail des projets'!G203)=0,"",'Détail des projets'!G203) -> 03-Capitale-Nationale | E203: =IF(LEN('Détail des projets'!K203)=0,"",'Détail des projets'!K203) -> 9775 | F203: 9.34079808 | G203: À la fin du projet (suite au dernier versement) | H203: 75.05005459 | I203: QC-Québec | J203: Oui | K203: 10 | L203: 13.02464076 | N203: Non | O203: Oui | P203: 0 | R203: 0 | T203: 0 | V203: 0 | X203: 6.40556103 | Z203: 12.95346786 | AB203: 12.98905431 | AD203: 12.95346786 | AF203: 12.95346786
B204: =IF(LEN('Détail des projets'!B204)=0,"",'Détail des projets'!B204) -> C5545-JGAU Implantation du produit écoAZUR | C204: =IF(LEN('Détail des projets'!C204)=0,"",'Détail des projets'!C204) -> Le Gauvinois (2014) inc. | D204: =IF(LEN('Détail des projets'!G204)=0,"",'Détail des projets'!G204) -> 03-Capitale-Nationale | E204: =IF(LEN('Détail des projets'!K204)=0,"",'Détail des projets'!K204) -> 9775 | F204: 9.34079808 | G204: À la fin du projet (suite au dernier versement) | H204: 101.5080594 | I204: QC-Québec | J204: Oui | K204: 10 | L204: 9.62977724 | N204: Non | O204: Oui | P204: 0 | R204: 0 | T204: 0 | V204: 0 | X204: 4.73595602 | Z204: 9.577155506 | AB204: 9.603466373 | AD204: 9.577155506 | AF204: 9.577155506
B205: =IF(LEN('Détail des projets'!B205)=0,"",'Détail des projets'!B205) -> C5546-BSTA Implantation du produit écoAZUR | C205: =IF(LEN('Détail des projets'!C205)=0,"",'Détail des projets'!C205) -> Le Beauport Ste-Anne (2014) inc. | D205: =IF(LEN('Détail des projets'!G205)=0,"",'Détail des projets'!G205) -> 03-Capitale-Nationale | E205: =IF(LEN('Détail des projets'!K205)=0,"",'Détail des projets'!K205) -> 9775 | F205: 9.34079808 | G205: À la fin du projet (suite au dernier versement) | H205: 74.58571857 | I205: QC-Québec | J205: Oui | K205: 10 | L205: 13.10572612 | N205: Non | O205: Oui | P205: 0 | R205: 0 | T205: 0 | V205: 0 | X205: 10.77820645 | Z205: 13.03411013 | AB205: 13.06991813 | AD205: 13.03411013 | AF205: 13.03411013
B206: =IF(LEN('Détail des projets'!B206)=0,"",'Détail des projets'!B206) -> C5547-TRIO Implantation du produit écoAZUR | C206: =IF(LEN('Détail des projets'!C206)=0,"",'Détail des projets'!C206) -> Restaurant Normandin (2014) inc. | D206: =IF(LEN('Détail des projets'!G206)=0,"",'Détail des projets'!G206) -> 04-Mauricie | E206: =IF(LEN('Détail des projets'!K206)=0,"",'Détail des projets'!K206) -> 34648.21 | F206: 27.71856876 | G206: À la fin du projet (suite au dernier versement) | H206: 143.6546118 | I206: QC-Québec | J206: Oui | K206: 10 | L206: 24.11910732 | N206: Non | O206: Oui | P206: 0 | R206: 0 | T206: 0 | V206: 3.822153619 | X206: 23.98730892 | Z206: 23.98730892 | AB206: 24.05320812 | AD206: 23.98730892 | AF206: 23.98730892
B207: =IF(LEN('Détail des projets'!B207)=0,"",'Détail des projets'!B207) -> Ajout de chauffage électrique radiant | C207: =IF(LEN('Détail des projets'!C207)=0,"",'Détail des projets'!C207) -> Alimentation Sébastien Blackburn inc. | D207: =IF(LEN('Détail des projets'!G207)=0,"",'Détail des projets'!G207) -> 02-Saguenay--Lac-Saint-Jean | E207: =IF(LEN('Détail des projets'!K207)=0,"",'Détail des projets'!K207) -> 23776.14 | F207: 19.0209152 | G207: À la fin du projet (suite au dernier versement) | H207: 33.65384049 | I207: QC-Québec | J207: Oui | K207: 20 | L207: 0 | M207: 35.3245568 | N207: Non | O207: Oui | P207: 0 | R207: 0 | T207: 0 | V207: 29.72667621 | X207: 35.13152643 | Z207: 35.13152643 | AB207: 35.22804162 | AD207: 35.13152643 | AF207: 35.13152643
B208: =IF(LEN('Détail des projets'!B208)=0,"",'Détail des projets'!B208) -> C5540-STHY Implantation du produit écoAZUR | C208: =IF(LEN('Détail des projets'!C208)=0,"",'Détail des projets'!C208) -> Restaurant Normandin (2014) inc. | D208: =IF(LEN('Détail des projets'!G208)=0,"",'Détail des projets'!G208) -> 16-Montérégie | E208: =IF(LEN('Détail des projets'!K208)=0,"",'Détail des projets'!K208) -> 24010.13 | F208: 19.20810564 | G208: À la fin du projet (suite au dernier versement) | H208: 105.3627435 | I208: QC-Québec | J208: Oui | K208: 10 | L208: 22.78806456 | N208: Non | O208: Oui | P208: 0 | R208: 0 | T208: 0 | V208: 0 | X208: 20.35982817 | Z208: 22.66353962 | AB208: 22.72580209 | AD208: 22.66353962 | AF208: 22.66353962
B209: =IF(LEN('Détail des projets'!B209)=0,"",'Détail des projets'!B209) -> Récupération chaleur résiduelle centrale thermique | C209: =IF(LEN('Détail des projets'!C209)=0,"",'Détail des projets'!C209) -> Centre Intégré Santé Service Sociaux des Îles | D209: =IF(LEN('Détail des projets'!G209)=0,"",'Détail des projets'!G209) -> 11-Gaspésie--Îles-de-la-Madeleine | E209: =IF(LEN('Détail des projets'!K209)=0,"",'Détail des projets'!K209) -> 1944282.88 | F209: 1555.426306 | G209: À la fin du projet (suite au dernier versement) | H209: 47.17155538 | I209: QC-Québec | J209: Oui | K209: 25 | L209: 1648.690923 | N209: Non | O209: Oui | P209: 0 | R209: 0 | T209: 0 | V209: 0 | X209: 144.1478403 | Z209: 1639.681683 | AB209: 1644.186303 | AD209: 1639.681683 | AF209: 1639.681683
B210: =IF(LEN('Détail des projets'!B210)=0,"",'Détail des projets'!B210) -> Réfrigération CO2 avec récupération de chaleur (8182) | C210: =IF(LEN('Détail des projets'!C210)=0,"",'Détail des projets'!C210) -> Sobeys Capital Incorporée | D210: =IF(LEN('Détail des projets'!G210)=0,"",'Détail des projets'!G210) -> 02-Saguenay--Lac-Saint-Jean | E210: =IF(LEN('Détail des projets'!K210)=0,"",'Détail des projets'!K210) -> 0 | F210: 0 | G210: À la fin du projet (suite au dernier versement) | H210: 0 | I210: QC-Québec | J210: Oui | K210: 15 | L210: 1.10139804 | N210: Non | O210: Oui | P210: 0 | R210: 0 | T210: 0 | V210: 0.4483833551 | X210: 1.095379471 | Z210: 1.095379471 | AB210: 1.098388756 | AD210: 1.095379471 | AF210: 1.095379471
B211: =IF(LEN('Détail des projets'!B211)=0,"",'Détail des projets'!B211) -> Agrandissement du 655, Pierre-Bertrand | C211: =IF(LEN('Détail des projets'!C211)=0,"",'Détail des projets'!C211) -> Groleau Développement immobilier inc. | D211: =IF(LEN('Détail des projets'!G211)=0,"",'Détail des projets'!G211) -> 03-Capitale-Nationale | E211: =IF(LEN('Détail des projets'!K211)=0,"",'Détail des projets'!K211) -> 5900 | F211: 0 | G211: À la fin du projet (suite au dernier versement) | H211: 0 | I211: QC-Québec | J211: Oui | K211: 0 | L211: 0 | N211: Non | O211: Oui
B212: =IF(LEN('Détail des projets'!B212)=0,"",'Détail des projets'!B212) -> Agrandissement du 655, Pierre-Bertrand | C212: =IF(LEN('Détail des projets'!C212)=0,"",'Détail des projets'!C212) -> Groleau Développement immobilier inc. | D212: =IF(LEN('Détail des projets'!G212)=0,"",'Détail des projets'!G212) -> 03-Capitale-Nationale | E212: =IF(LEN('Détail des projets'!K212)=0,"",'Détail des projets'!K212) -> 79546.87 | F212: 16.18354892 | G212: À la fin du projet (suite au dernier versement) | H212: 50.00000013 | I212: QC-Québec | J212: Oui | K212: 25 | L212: 63.63749584 | N212: Non | O212: Oui | P212: 0 | R212: 0 | T212: 0 | V212: 0 | X212: 62.42038526 | Z212: 63.28974996 | AB212: 63.4636229 | AD212: 63.28974996 | AF212: 63.28974996
B213: =IF(LEN('Détail des projets'!B213)=0,"",'Détail des projets'!B213) -> Chaufferie de l'école du Parchemin | C213: =IF(LEN('Détail des projets'!C213)=0,"",'Détail des projets'!C213) -> Centre de services scolaire des Hauts-Cantons | D213: =IF(LEN('Détail des projets'!G213)=0,"",'Détail des projets'!G213) -> 05-Estrie | E213: =IF(LEN('Détail des projets'!K213)=0,"",'Détail des projets'!K213) -> 28339.8 | F213: 22.67184 | G213: À la fin du projet (suite au dernier versement) | H213: 45.80502328 | I213: QC-Québec | J213: Oui | K213: 25 | L213: 24.74820268 | N213: Non | O213: Oui | P213: 0 | R213: 0 | T213: 0 | V213: 11.49506682 | X213: 24.6129666 | Z213: 24.6129666 | AB213: 24.68058464 | AD213: 24.6129666 | AF213: 24.6129666
B214: =IF(LEN('Détail des projets'!B214)=0,"",'Détail des projets'!B214) -> Analyse pour définir des projets d'efficacité énergétique portant sur 19 bâtiments | C214: =IF(LEN('Détail des projets'!C214)=0,"",'Détail des projets'!C214) -> Centre de services scolaire Central Québec | D214: =IF(LEN('Détail des projets'!G214)=0,"",'Détail des projets'!G214) -> 03-Capitale-Nationale | E214: =IF(LEN('Détail des projets'!K214)=0,"",'Détail des projets'!K214) -> 58720 | F214: 0 | G214: À la fin du projet (suite au dernier versement) | H214: 0 | I214: QC-Québec | J214: Oui | K214: 35.22431183 | L214: 0 | N214: Non | O214: Oui
... 448 more rows

Sheet Indicateurs
B2: =Utilitaire!E8 -> Plan d'action 2013-2020 sur les changements climatiques
B3: ="Action " & Accueil!D58 -> Action en cours
B4: =Accueil!D55 -> 20.1 | C4: =Accueil!E55 -> Conversion et efficacité énergétique dans les bâtiments commerciaux et institutionnels (Écoperformance)
B5: Ministère porteur: | C5: =Accueil!$D$65 -> MERN (SITE)
B6: Indicateurs
B20: Informations en date du : | E20: 2022-03-31
B22: INDICATEURS DE PERFORMANCE | H22: =IF(OR(AND(MONTH(#REF!)>6,YEAR(#REF!)=VALUE(MID(G23,1,4))),YEAR(#REF!)>VALUE(MID(G23,1,4))),"Réel","Prévu") ->  | I22: =IF(OR(AND(MONTH(#REF!)>6,YEAR(#REF!)=VALUE(MID(H23,1,4))),YEAR(#REF!)>VALUE(MID(H23,1,4))),"Réel","Prévu") ->  | J22: =IF(OR(AND(MONTH(#REF!)>6,YEAR(#REF!)=VALUE(MID(I23,1,4))),YEAR(#REF!)>VALUE(MID(I23,1,4))),"Réel","Prévu") ->  | K22: =IF(OR(AND(MONTH(#REF!)>6,YEAR(#REF!)=VALUE(MID(J23,1,4))),YEAR(#REF!)>VALUE(MID(J23,1,4))),"Réel","Prévu") ->  | L22: =IF(OR(AND(MONTH(#REF!)>6,YEAR(#REF!)=VALUE(MID(K23,1,4))),YEAR(#REF!)>VALUE(MID(K23,1,4))),"Réel","Prévu") ->  | M22: =IF(OR(AND(MONTH(#REF!)>6,YEAR(#REF!)=VALUE(MID(L23,1,4))),YEAR(#REF!)>VALUE(MID(L23,1,4))),"Réel","Prévu") ->  | N22: =IF(OR(AND(MONTH(#REF!)>6,YEAR(#REF!)=VALUE(MID(M23,1,4))),YEAR(#REF!)>VALUE(MID(M23,1,4))),"Réel","Prévu") ->  | O22: =IF(OR(AND(MONTH(#REF!)>6,YEAR(#REF!)=VALUE(MID(N23,1,4))),YEAR(#REF!)>VALUE(MID(N23,1,4))),"Réel","Prévu") ->  | P22: =IF(OR(AND(MONTH(#REF!)>6,YEAR(#REF!)=VALUE(MID(O23,1,4))),YEAR(#REF!)>VALUE(MID(O23,1,4))),"Réel","Prévu") ->  | Q22: =IF(OR(AND(MONTH(#REF!)>6,YEAR(#REF!)=VALUE(MID(P23,1,4))),YEAR(#REF!)>VALUE(MID(P23,1,4))),"Réel","Prévu") ->  | S22: =IF(OR(AND(MONTH(#REF!)>6,YEAR(#REF!)=VALUE(MID(Q23,1,4))),YEAR(#REF!)>VALUE(MID(Q23,1,4))),"Réel","Prévu") ->  | T22: =MONTH(#REF!) -> 
B23: Cible | C23: Unité de mesure | D23: Année prévue d'atteinte de la cible | E23: Description de l'indicateur | F23: Type d'indicateur | G23: 2013-2014 | H23: 2014-2015 | I23: 2015-2016 | J23: 2016-2017 | K23: 2017-2018 | L23: 2018-2019 | M23: 2019-2020 | N23: 2020-2021 | O23: 2021-2022 | P23: 2022-2023 | Q23: 2023-2024 | R23: 2024-2025 | S23: RÉSULTAT À COMPARER AVEC LA CIBLE | T23: Pourcentage d'atteinte de la cible | U23: Commentaires sur les résultats
G24: Réel | H24: Réel | I24: Réel | J24: Réel | K24: Réel | L24: Réel | M24: Réel | N24: Réel | O24: Réel | P24: Prévu | Q24: Prévu | R24: Prévu | U24: (facultatif)
A25: 1 | G25: =PourcentageAvancementJbf(Utilitaire!C229,'Détail des projets'!O661,1000000*Accueil!$D$67) -> 0 | H25: =PourcentageAvancementJbf(Utilitaire!D229,'Détail des projets'!P661,1000000*Accueil!$D$67) -> 0.02175705188 | I25: =PourcentageAvancementJbf(Utilitaire!E229,'Détail des projets'!Q661,1000000*Accueil!$D$67) -> 0.04084295532 | J25: =PourcentageAvancementJbf(Utilitaire!F229,'Détail des projets'!R661,1000000*Accueil!$D$67) -> 0.05089003804 | K25: =PourcentageAvancementJbf(Utilitaire!G229,'Détail des projets'!S661,1000000*Accueil!$D$67) -> 0.05566833659 | L25: =PourcentageAvancementJbf(Utilitaire!H229,'Détail des projets'!T661,1000000*Accueil!$D$67) -> 0.09564412396 | M25: =PourcentageAvancementJbf(Utilitaire!I229,'Détail des projets'!U661,1000000*Accueil!$D$67) -> 0.08303666323 | N25: =PourcentageAvancementJbf(Utilitaire!J229,'Détail des projets'!V661,1000000*Accueil!$D$67) -> 0.08332212565 | O25: =PourcentageAvancementJbf(Utilitaire!K229,'Détail des projets'!W661,1000000*Accueil!$D$67) -> 0.05909801117 | T25: =IF(COUNTA(B25)=1,IF(COUNTA(S25)=1,IF(F25="Minimum à atteindre",IF(B25=0,IF(S25>0,1,0),S25/B25),IF(F25="Maximum à ne pas dépasser",IF(B25=0,IF(S25<0,1,0),(B25-S25)/B25+1),IF(F25="Binaire",IF(B25=S25,1,0),""))),0),"") -> 
A26: 2 | C26: emplois | D26: 2020 | E26: Emplois créés (aucune cible) | S26: 3969 | T26: =IF(COUNTA(B26)=1,IF(COUNTA(S26)=1,IF(F26="Minimum à atteindre",IF(B26=0,IF(S26>0,1,0),S26/B26),IF(F26="Maximum à ne pas dépasser",IF(B26=0,IF(S26<0,1,0),(B26-S26)/B26+1),IF(F26="Binaire",IF(B26=S26,1,0),""))),0),"") -> 
A27: 3 | C27: dossiers | D27: 2020 | E27: Nombre de dossiers acceptés (aucune cible) | S27: 604
A28: 4 | B28: 51000 | C28: T/CO2 | D28: 2020 | E28: Réduction annuelle des émissions de gaz à effet de serre (GES) | F28: minimum à atteindre | G28: 4.19 | H28: 1225.14 | I28: 9239.82 | J28: 16977.33 | K28: 31430.16 | L28: 48210.83 | M28: 63492.76 | N28: 75359.87 | O28: 77867.67 | S28: 77867.77 | T28: 1.52681902
A29: 5 | B29: 51000 | C29: T/CO2 | D29: 2020 | E29: Réduction annuelle des émissions de gaz à effet de serre (GES) pour les dossiers en cours | F29: minimum à atteindre | S29: 48598.37 | T29: 0.9529092157
A30: 6 | B30: 51000 | C30: T/CO2 | D30: 2020 | E30: Réduction annuelle des émissions de gaz à effet de serre (GES) pour les dossiers en traitement | F30: minimum à atteindre | T30: 0
A31: 7 | C31: $/tonne | D31: 2020 | E31: VAN/t | S31: 33.8
A32: 8
A33: 9
A34: 10
A35: 11 | T35: =IF(COUNTA(B35)=1,IF(COUNTA(S35)=1,IF(F35="Minimum à atteindre",IF(B35=0,IF(S35>0,1,0),S35/B35),IF(F35="Maximum à ne pas dépasser",IF(B35=0,IF(S35<0,1,0),(B35-S35)/B35+1),IF(F35="Binaire",IF(B35=S35,1,0),""))),0),"") -> 
A36: 12 | T36: =IF(COUNTA(B36)=1,IF(COUNTA(S36)=1,IF(F36="Minimum à atteindre",IF(B36=0,IF(S36>0,1,0),S36/B36),IF(F36="Maximum à ne pas dépasser",IF(B36=0,IF(S36<0,1,0),(B36-S36)/B36+1),IF(F36="Binaire",IF(B36=S36,1,0),""))),0),"") -> 
A37: 13 | T37: =IF(COUNTA(B37)=1,IF(COUNTA(S37)=1,IF(F37="Minimum à atteindre",IF(B37=0,IF(S37>0,1,0),S37/B37),IF(F37="Maximum à ne pas dépasser",IF(B37=0,IF(S37<0,1,0),(B37-S37)/B37+1),IF(F37="Binaire",IF(B37=S37,1,0),""))),0),"") -> 
A38: 14
A39: 15 | T39: =IF(COUNTA(B39)=1,IF(COUNTA(S39)=1,IF(F39="Minimum à atteindre",IF(B39=0,IF(S39>0,1,0),S39/B39),IF(F39="Maximum à ne pas dépasser",IF(B39=0,IF(S39<0,1,0),(B39-S39)/B39+1),IF(F39="Binaire",IF(B39=S39,1,0),""))),0),"") -> 
A40: 16 | T40: =IF(COUNTA(B40)=1,IF(COUNTA(S40)=1,IF(F40="Minimum à atteindre",IF(B40=0,IF(S40>0,1,0),S40/B40),IF(F40="Maximum à ne pas dépasser",IF(B40=0,IF(S40<0,1,0),(B40-S40)/B40+1),IF(F40="Binaire",IF(B40=S40,1,0),""))),0),"") -> 
A41: 17
A42: 18
A43: 19
A44: 20
A45: 21 | AQ45: FALSE
B69: PRÉVISIONS DES RETOMBÉES SUR LES RÉDUCTIONS DES ÉMISSIONS DE GES | F69: Ce tableau et les résultats par action qu'il contient ne seront pas publiés. L'objectif est de permettre une appréciation à l'échelle du PACC des résultats escomptés. Veuillez le compléter et vérifier l'information qui y est contenue, au meilleur de vos connaissances et avec l'information dont vous disposez.
B70: Niveau de certitude | E70: Lieu | F70: 2020 | G70: 2021 | H70: 2022 | I70: 2023 | J70: 2024 | K70: 2025 | L70: 2026 | M70: 2030 | N70: 2035 | O70: 2036 | P70: 2038 | Q70: 2029 | R70: 2031 | S70: 2040 | T70: 2050 | U70: Commentaires sur les résultats
B71: Pérennité des réductions d'émissions de GES réalisées à ce jour (T éq. CO2) | E71: Au Québec
E72: Hors Québec
E73: Non distingué
B74: Développement du potentiel de réduction des émissions de GES pour le futur (T éq. CO2) | E74: Au Québec
E75: Hors Québec
E76: Non distingué
B153: ADAPTATION AUX EFFETS DES CHANGEMENTS CLIMATIQUES
B154: Solutions d'adaptation proposées | D154: Lignes concernées de l'onglet Détail des projets | E154: Étape | F154: Ajustements | H154: Risques | J154: Effets des changements climatiques | L154: Région | S154: Échelle humaine | U154: Échelle environnementale
F155: La solution agit sur : | H155: afin de protéger : | J155: de : | S155: (estimation du nombre de personnes desservies) | U155: (estimation du nombre d'espèces desservies)
D156: 25
D157: 26
D158: 27
D159: 28
D160: 29
D161: 30
D162: 31
D163: 32
B292: Ajouter une ligne

Sheet Évaluation (hidden)
B2: =Utilitaire!E8 -> Plan d'action 2013-2020 sur les changements climatiques | H2: Conseils de rédaction : | M2: Informations en date du : | N2: =Utilitaire!G6 -> 2022-03-31
B3: ="Action " & Accueil!D58 -> Action en cours | H3: - Veuillez compléter la section "Évaluation de l'action" (OBLIGATOIRE) - ligne 204 (Fin du PACC) - Cet onglet sera pour usage interne seulement, il ne sera pas publié. - Des bulles commentaires dans chacun des titres vous aideront à remplir adéquatement les différentes colonnes. - Les cases de la section « Évaluation de l'action » sont limitées à 3000 caractères.
B4: =Accueil!D55 -> 20.1 | C4: =Accueil!E55 -> Conversion et efficacité énergétique dans les bâtiments commerciaux et institutionnels (Écoperformance)
B5: Ministère porteur: | C5: =Accueil!$D$65 -> MERN (SITE)
B6: Évaluation
B7: Informations en date du :
B38: Est-ce qu'une production d'un rapport d'évaluation complet est prévue dans le cadre de cette action :
B40: Liste des livrables
B41: Titre du document | D41: Date du document | F41: Type de document | I41: Date prévue de transmission au BECC | K41: Date réelle de transmission au BECC | M41: Référence | N41: Commentaires
B42: Rapport d'évaluation - ÉcoPerformance | D42: 2021-05-14 | F42: Rapport d'évaluation | M42: https://transitionenergetique.gouv.qc.ca/fileadmin/medias/pdf/evaluation-programmes/EcoPerformance_rapport_evaluation_2021.pdf
B146: Ajouter une ligne
B204: Évaluation de l'action
C209: Début : | D209: =Accueil!$D$68 -> 2013-10-28 | I209: Fin : | J209: =Accueil!$K$68 -> 2024-10-31
B210: Résultats attendus : | C210: =IF(LEN(Description!C49)>0,Description!C49,"") -> Les résultats directs attendus sont l'économie d'énergie, la réduction des émissions de GES, des investissements importants dans les secteurs commercial et institutionnel, la création d'emplois et une amélioration soutenue de la performance des secteurs commercial et institutionnel au Québec. De façon générale, en efficacité énergétique, il y a la création de quatorze emplois par million de dollars investis Les autres avantages ou co-bénéfices attendus de l'action sont de faire appel à des sources d'énergie émergentes ou l'hydroélectricité, de permettre de faire des choix d'équipements plus performants lors de nouveaux projets. Également, l'action permet de transformer le marché et de dynamiser les interventions dans le secteur commercial et institutionnel. Plusieurs analyses permettront aux organisations de se conscientiser sur leur consommation énergétique et de prendre action pour améliorer leur performance.
B211: Résultats obtenus (Cibles, indicateurs et description) : | C211: =IF(COUNTA(Indicateurs!B25:B45)=0,0,AVERAGE(Indicateurs!$T$25:$T$45)) -> 0.8265760784 | D211: =IF(LEN(Description!C50)>0,Description!C50,"") -> 
D212: =IF(LEN(Description!C51)>0,Description!C51,"") -> En date du 31 mars 2022, 126 analyses et 478 projets d'implantation ont été acceptés par le ministre, pour une réduction annuelle potentielle de 126,5 kt de CO2, nécessitant des investissements de 283,5 M$ grâce à des aides financières de 87,7 M$ pour un coût moyen de l'aide financière de 33,80 $/t sur la durée de vie des équipements (20,5 ans). Ces investissements entraîneraient la création de 3 969 emplois.
B217: Type d'évaluation :
B218: Est-ce que les résultats obtenus dans le cadre de l'action sont satisfaisants? | C218: Oui | D218: Les projets de nos participants se réalisent sur une période de 36 à 48 mois. Les projets reçues et acceptés ces 2-3 dernières années vont produire des résultats réels dans le courant des 2-3 prochaines années.
B219: Quelles sont les améliorations possibles pour le futur?
B220: Quels sont les forces et les points positifs de l'action?
B221: Quelle est votre recommandation quant à la poursuite de cette action?
B222: Autres commentaires | C222: Reddition de compte à revoir pour nos programmes dans le cadre du PEV. Le détail des décaissements par année financière pour chacun des projets complexifie cette reddition de compte sans pour autant la valoriser. Ceci en fonction de la gestion de nos ver

Sheet Commentaires (hidden)
B2: =Utilitaire!E8 -> Plan d'action 2013-2020 sur les changements climatiques | T2: COF
B3: ="Action " & Accueil!D58 -> Action en cours | T3: Frais
B4: =Accueil!D55 -> 20.1 | C4: =Accueil!E55 -> Conversion et efficacité énergétique dans les bâtiments commerciaux et institutionnels (Écoperformance) | T4: ETC
B5: Ministère porteur: | C5: =Accueil!$D$65 -> MERN (SITE) | T5: Détail des projets
B6: Commentaires | T6: Détail des projets (GES)
T7: Bilan GES
T8: Indicateurs
T9: Toutes-Autre
T12: 2013-2014
T13: 2014-2015
T14: 2015-2016
T15: 2016-2017
T16: 2017-2018
T17: 2018-2019
T18: 2019-2020
T19: 2020-2021
B20: Informations en date du : | E20: 2022-03-31 | T20: 2021-2022
T21: 2022-2023
T22: 2023-2024
B24: Commentaires | M24: Section concernée | O24: Année | P24: Exercice | Q24: nom Commentateur | R24: courriel Commentateur
T32: juin
T33: décembre

Sheet Validation (hidden)
B2: =Utilitaire!E8 -> Plan d'action 2013-2020 sur les changements climatiques
B3: ="Action " & Accueil!D58 -> Action en cours
B4: =Accueil!D55 -> 20.1
B5: Ministère porteur: | D5: =Accueil!$D$65 -> MERN (SITE) | E5: =Accueil!$D$65 -> MERN (SITE)
B6: Rapport de validation de la fiche de suivi
B8: Conseils de rédaction : | E8: Informations en date du : | G8: =Utilitaire!G6 -> 2022-03-31
B9: '- Cet onglet ne sera pas diffusé. - Nous apprécierions vos commentaires constructifs par rapport aux nouvelles fiches de suivi. La case B15 est réservée à cet effet. - Complétez la grille de validation ci-dessous (ligne 19) en cochant chaque point. Vous pouvez inscrire des commentaires à l'endroit prévu à cet effet.
B14: Votre appréciation de la fiche de suivi et suggestions pour les prochains exercices
B17: Grille de validation de la fiche de suivi
B18: Fin du PACC | G18: Commentaires
B19: Avez-vous complété le tableau de la ligne 204 de l'onglet Évaluation?
B20: Avez-vous saisi tous vos engagements à SAGIR (vous avez jusqu'au 31 mai)?
B21: Onglet Accueil | G21: Commentaires
B22: Vérifier que toutes les cases sont remplies.
B23: Les cases non remplies s'affichent en orange Les lignes 69 à 73 seront masquées pour la publication.
B24: Vérifier que la part de financement est écrite sous forme de pourcentage (ex. : 60 %).
B25: Inscrire un nombre entre 0 et 100 suivi du symbole "%". Si le pourcentage est variable, inscrire "Variable".
B26: Vérifier que le statut de l'action est toujours conforme avec son évolution.
B27: Utiliser l'information des onglets "Description" et Détail des projets" afin que le statut soit conforme avec l'évolution de l'action.
B28: Vérifier, s'il y a lieu, que le nom du programme est inscrit.
B29: Onglet Description | G29: Commentaires
B30: Vérifier que toutes les cases obligatoires sont remplies.
B31: Vérifier que tous les éléments pertinents en lien avec le COVID-19 sont inscrits au tableau prévu à cet effet.
B32: Vérifier que les éléments de classification de l'action sont sélectionnés à partir du menu déroulant.
B33: Vérifier que l'entièreté du texte est lisible.
B34: Vérifier que l'échéancier dans la section "Mise en œuvre" est inscrit.
B35: Vérifier que l'état d'avancement est sélectionné à partir du menu déroulant.
B36: Vérifier que le tableau "Plans, stratégies, politiques incluant la mise en œuvre de cette action" est rempli.
B37: Onglet Détail des projets | G37: Commentaires
B38: Vérifier que les informations confidentielles sont inscrites en bleu.
B39: Transmettre au BECC le rapport des résultats, si un projet est terminé.
B40: Vérifier le total des dépenses réelles de tous les projets correspond à celui inscrit dans les COF pour chaque année financière complétée.
B41: Vérifier que le total des dépenses réelles et prévues pour un projet n'excède pas le montant engagé.
B42: Vérifier l'utilisation des nouveaux statuts de projets pour les projets affectés par le COVID-19
B43: Onglet GES | G43: Commentaires
B44: Vérifier que le total des réductions de GES correspond aux données de l'onglet "Indicateurs".
B45: Vérifier que les deux cases de la ligne 20 sont bien remplies.
B46: Vérifier que le coût la tonne et la durée du projet sont bien indiqués pour tous les projets ayant soit un potentiel de réduction ou des réductions réelles (colonnes H et K).
B47: La méthode de calcul du coût la tonne doit respecter les indications en commentaire dans la cellule H23.
B48: Onglet Indicateurs | G48: Commentaires
B49: Vérifier la cohérence des cibles, des résultats et des résultats à comparer avec les cibles. (même unité de mesure, évolution des résultats annuels)
B50: S'il y a lieu, utiliser la colonne "Commentaires sur les résultats" afin de fournir davantage d'informations.
B51: Vérifier que les commentaires à l'intention du BECC qui ne sont pas pour diffusion sont inscrits en bleu.
B52: Vérifier qu'il y a des résultats pour tous les indicateurs. Inscrire un 0 comme résultat pour les indicateurs ne présentant pas de résultats.
B53: Si les résultats ne sont pas disponibles, vous devez inscrire un commentaire dans la colonne prévue à cet effet indiquant à quel moment ils seront disponibles.
B54: Transmettre au BECC pour approbation une annexe 4 (fiche-indicateur) si vous désirez qu'un indicateur soit ajouté.
B55: Vérifier que le tableau "PRÉVISIONS DES RETOMBÉES SUR LES RÉDUCTIONS DES ÉMISSIONS DE GES" est bien rempli si votre action vise la réduction des GES.
B56: Vérifier que le tableau "ADAPTATION AUX EFFETS DES CHANGEMENTS CLIMATIQUES" est bien rempli si votre action vise l'adaptation aux changements climatiques.
B57: Onglet Commentaires | G57: Commentaires
B58: Vérifier que les commentaires de l'exercice précédent s'appliquent toujours. Retirer tous les commentaires qui ne s'appliquent plus.
B59: Inscrire en noir les commentaires nécessaires à afficher lors de la publication des fiches
B60: Onglet Évaluation | G60: Commentaires
B61: Remplir et mettre à jour la liste des livrables. Veuillez transmettre tout livrable attendu au BECC avec votre fiche de suivi.
B62: Veuillez remplir la section Évaluation de l'action. Obligatoire pour la fin du PACC.
A81: Code de couleur | B81: Onglet concerné | C81: no ligne | D81: Description de la problématique | E81: No d'erreur | G81: Commentaires
B82: Description | D82: Les informations "Description, objectif, clientèle, critères d'admissibilité, processus de suivi de l'action, résultats attendus, résultats obtenus dans la dernière année, résultats obtenus, finalité, catégorie" sont manquantes dans l'onglet Description. | E82: 18
B83: détail des projets | D83: Aucun projet n'est mentionné dans la fiche. Cette situation est acceptable seulement si l'action n'est pas encore lancée (statut non démarrée ou en élaboration). | E83: 12
B84: GES | D84: Les informations "Potentiel de réduction des GES, réduction réelle des émissions de GES" sont manquantes dans l'onglet GES. | E84: 18
B85: indicateurs | D85: Aucun indicateur n'est inscrit pour cette action. Acceptable seulement si l'action n'est pas démarrée. | E85: 20

Sheet Modalités de fin du PACC (hidden)
B2: Échéancier de la fin du Plan d'action 2013-2020 sur les changements climatiques
B4: - | C4: 2021-03-31 | E4: Fin du PACC. Vous ne pouvez plus prendre de nouveaux engagements en vertu des actions du PACC.
B5: - | C5: 2021-05-31 | E5: Échéance pour saisir dans SAGIR les engagements (lettre d'octroi suffisante) pris avant le 31 mars.
B6: - | C6: 2021-12-31 | E6: Échéance pour signer les conventions de subventions se rapportant aux engagements saisis à SAGIR.
B7: - | C7: 2022-12-31 | E7: Fin des projets réalisés à l'interne des Partenaires
B8: - | C8: 2025-12-31 | E8: Fin des projets
B9: Lorsque tous les projets liés à une action seront terminés et que tous les résultats liés à l'action seront colligés, l'action sera inscrite comme étant « terminée » et sera retirée du suivi semestriel.
B13: Modalités détaillées de la fin du PACC
B14: (Ces modalités sont annexées à l'entente administrative concernant la mise en œuvre du PACC et concordent avec l'échéancier ci-dessus)
C15: 1. Les enveloppes budgétaires 2013-2020 des actions et sous-actions (Annexe 2 de l’ENTENTE) doivent être respectées en tout temps.
C16: 2. Tous les engagements (c.-à-d. une dépense jugée admissible et autorisée) doivent être pris avant le 31 mars 2021. Après cette date, les engagements pris ne peuvent plus être bonifiés.
C17: 3. Tous les engagements pris avant le 31 mars 2021 (par exemple : lettre d’octroi de subvention signée par vos autorités, contrat, convention ou entente signés, décret ou CT approuvé) doivent être saisis dans SAGIR au plus tard le 31 mai 2021. Une nouvelle version de la « Procédure de comptabilisation des dépenses portées au débit du Fonds d’électrification et de changements climatiques par les ministères et organismes partenaires » sera transmise ultérieurement lors de la fermeture de la fin d’année financière 2020-2021 afin de tenir compte de la fin du PACC.
C18: 4. Les conventions d’aide financière qui ne pourront être signées avant le 31 mars 2021 pourront être reconnues comme engagées seulement si le Partenaire transmet une lettre d’octroi de subvention au bénéficiaire avant cette date :
D19: · La lettre d’octroi devra mentionner le montant total de la subvention avec le détail des versements estimés par année financière et devra préciser qu’elle est conditionnelle à une décision du Conseil des ministres ou du Conseil du trésor lorsqu’applicable. Enfin, la lettre devra préciser que la subvention est conditionnelle à la signature d’une convention de subvention au plus tard le 31 décembre 2021.
C20: 5. Aucun engagement ne pourra s’échelonner au-delà du 31 décembre 2025.
C21: 6. Les frais d’administration (dépenses de rémunération et de fonctionnement) nécessaires au suivi de conventions d’aide financière ou de contrats pourront être imputés au FECC jusqu’au terme des projets ou au plus tard au 31 décembre 2025.
C22: 7. Les suivis se poursuivront tant que les actions ne seront pas terminées.
C23: 8. Aucune dépense pour les projets réalisés à l’interne (projets majoritairement réalisés en régie interne par le personnel du Partenaire) ne pourra être effectuée au-delà du 31 mars 2022.

Sheet Prochain Exercice-Commentaire (hidden)
B2: =Utilitaire!E8 -> Plan d'action 2013-2020 sur les changements climatiques
B4: Commentaires | E4: =Accueil!D65 & " - " &Accueil!D53 -> MERN (SITE) - 20.1
E5: ="Action " & Accueil!D58 -> Action en cours
B6: Conseils de rédaction : | D6: Informations en date du : | F6: =Utilitaire!G6 -> 2022-03-31
B7: - Veuillez inscrire ici tout commentaire pour prochain exercice
B10: Onglet de la fiche | C10: Case | D10: Commentaire
B12: Détail des projets | C12: i489 | D12: Veuillez faire la mise à jour des status car la date du dernier financement de quelques projets remontent à plusieurs années.
B13: Détail des projets | C13: k661 | D13: Veuillez vérifier les montants engagés car ils doivent être plus petit ou égaux au budget total du projet (colonne N).
B14: Indicateurs | C14: u28 | D14: Pouvez-vous expliquer l'écart avec la cible
